Workbook

Sheet Main
B10: 2020-07-02
B12: Sheet No. | C12: Template Name | D12: Summary
B13: 1 | C13: Future Intra | D13: For Intraday trading in F&O segment
B14: 2 | C14: Cash Intra | D14: For Intraday trading in cash market segment
B15: 3 | C15: Mid-cap Intra | D15: For Intraday trading in Mid-cap stocks
B16: 4 | C16: Bulk Deals | D16: Reveals Bulk Deals carried on NSE & BSE
B17: 5 | C17: Call Tracker
K27: `

Sheet Future Intra
M5: Back to Main Page
A6: FOR INTRA DAY TRADING | L6: =Main!B10 -> 2020-07-02
A9: Sr.no | B9: Sector | C9: Scrip | D9: CLOSE RATE | E9: Pivot Point | F9: Supports | I9: Resistances
B10: Sector | D10: Point | E10: Point | F10: S1 | G10: S2 | H10: S3 | I10: R1 | J10: R2 | K10: R3 | L10: HIGH | M10: LOW | N10: OI | O10: % Change in OI
A11: 1 | B11: Index | C11: BANKNIFTY | D11: 21930.45 | E11: 21699.82 | F11: 21385.63 | G11: 20840.82 | H11: 20526.63 | I11: 22244.63 | J11: 22558.82 | K11: 23103.63 | L11: 22014 | M11: 21155 | N11: 1448000 | O11: 8.24%
A12: 2 | B12: Index | C12: NIFTY | D12: 10408.30 | E12: 10360.98 | F12: 10291.42 | G12: 10174.53 | H12: 10104.97 | I12: 10477.87 | J12: 10547.43 | K12: 10664.32 | L12: 10430.55 | M12: 10244.1 | N12: 11738175 | O12: -5.63%
A13: 3 | B13: Cement | C13: ACC | D13: 1327.40 | E13: 1326.43 | F13: 1309.57 | G13: 1291.73 | H13: 1274.87 | I13: 1344.27 | J13: 1361.13 | K13: 1378.97 | L13: 1343.3 | M13: 1308.6 | N13: 2227000 | O13: -4.42%
A14: 4 | B14: Others | C14: ADANIENT | D14: 157.90 | E14: 157.78 | F14: 156.27 | G14: 154.63 | H14: 153.12 | I14: 159.42 | J14: 160.93 | K14: 162.57 | L14: 159.3 | M14: 156.15 | N14: 18700000 | O14: 1.02%
A15: 5 | B15: Others | C15: ADANIPORTS | D15: 344.95 | E15: 344.85 | F15: 342.45 | G15: 339.95 | H15: 337.55 | I15: 347.35 | J15: 349.75 | K15: 352.25 | L15: 347.25 | M15: 342.35 | N15: 29475000 | O15: 0.32%
A16: 6 | B16: Automobile | C16: AMARAJABAT | D16: 661.05 | E16: 658.75 | F16: 651.15 | G16: 641.25 | H16: 633.65 | I16: 668.65 | J16: 676.25 | K16: 686.15 | L16: 666.35 | M16: 648.85 | N16: 1875000 | O16: -4.97%
A17: 7 | B17: Cement | C17: AMBUJACEM | D17: 192.90 | E17: 192.92 | F17: 191.03 | G17: 189.17 | H17: 187.28 | I17: 194.78 | J17: 196.67 | K17: 198.53 | L17: 194.8 | M17: 191.05 | N17: 18648000 | O17: -0.96%
A18: 8 | B18: Others | C18: APOLLOHOSP | D18: 1322.95 | E18: 1329.03 | F18: 1304.97 | G18: 1286.98 | H18: 1262.92 | I18: 1347.02 | J18: 1371.08 | K18: 1389.07 | L18: 1353.1 | M18: 1311.05 | N18: 1457000 | O18: 9.06%
A19: 9 | B19: Automobile | C19: APOLLOTYRE | D19: 109.95 | E19: 109.75 | F19: 108.50 | G19: 107.05 | H19: 105.80 | I19: 111.20 | J19: 112.45 | K19: 113.90 | L19: 111 | M19: 108.3 | N19: 10215000 | O19: -0.54%
A20: 10 | B20: Automobile | C20: ASHOKLEY | D20: 48.30 | E20: 47.87 | F20: 47.13 | G20: 45.97 | H20: 45.23 | I20: 49.03 | J20: 49.77 | K20: 50.93 | L20: 48.6 | M20: 46.7 | N20: 47502000 | O20: 0.80%
A21: 11 | B21: FMCG | C21: ASIANPAINT | D21: 1687.65 | E21: 1686.25 | F21: 1676.40 | G21: 1665.15 | H21: 1655.30 | I21: 1697.50 | J21: 1707.35 | K21: 1718.60 | L21: 1696.1 | M21: 1675 | N21: 5274600 | O21: -1.46%
A22: 12 | B22: Pharma | C22: AUROPHARMA | D22: 778.80 | E22: 775.02 | F22: 766.48 | G22: 754.17 | H22: 745.63 | I22: 787.33 | J22: 795.87 | K22: 808.18 | L22: 783.55 | M22: 762.7 | N22: 12148500 | O22: -1.49%
A23: 13 | B23: Banking | C23: AXISBANK | D23: 434.15 | E23: 426.22 | F23: 414.13 | G23: 394.12 | H23: 382.03 | I23: 446.23 | J23: 458.32 | K23: 478.33 | L23: 438.3 | M23: 406.2 | N23: 68661600 | O23: 12.27%
A24: 14 | B24: Automobile | C24: BAJAJ-AUTO | D24: 2849.05 | E24: 2846.58 | F24: 2828.42 | G24: 2807.78 | H24: 2789.62 | I24: 2867.22 | J24: 2885.38 | K24: 2906.02 | L24: 2864.75 | M24: 2825.95 | N24: 1735000 | O24: -2.32%
A25: 15 | B25: Finance | C25: BAJAJFINSV | D25: 6178.95 | E25: 6064.20 | F25: 5920.40 | G25: 5661.85 | H25: 5518.05 | I25: 6322.75 | J25: 6466.55 | K25: 6725.10 | L25: 6208 | M25: 5805.65 | N25: 865625 | O25: 6.21%
A26: 16 | B26: Finance | C26: BAJFINANCE | D26: 2958.65 | E26: 2912.03 | F26: 2849.07 | G26: 2739.48 | H26: 2676.52 | I26: 3021.62 | J26: 3084.58 | K26: 3194.17 | L26: 2975 | M26: 2802.45 | N26: 6140750 | O26: -3.84%
A27: 17 | B27: Automobile | C27: BALKRISIND | D27: 1269.85 | E27: 1275.10 | F27: 1260.30 | G27: 1250.75 | H27: 1235.95 | I27: 1284.65 | J27: 1299.45 | K27: 1309.00 | L27: 1289.9 | M27: 1265.55 | N27: 896800 | O27: 0.09%
A28: 18 | B28: Banking | C28: BANDHANBNK | D28: 326.90 | E28: 324.12 | F28: 316.78 | G28: 306.67 | H28: 299.33 | I28: 334.23 | J28: 341.57 | K28: 351.68 | L28: 331.45 | M28: 314 | N28: 10251000 | O28: -3.05%
A29: 19 | B29: Banking | C29: BANKBARODA | D29: 51.60 | E29: 50.55 | F29: 49.25 | G29: 46.90 | H29: 45.60 | I29: 52.90 | J29: 54.20 | K29: 56.55 | L29: 51.85 | M29: 48.2 | N29: 45739600 | O29: 12.03%
A30: 20 | B30: FMCG | C30: BATAINDIA | D30: 1285.55 | E30: 1291.97 | F30: 1266.08 | G30: 1246.62 | H30: 1220.73 | I30: 1311.43 | J30: 1337.32 | K30: 1356.78 | L30: 1317.85 | M30: 1272.5 | N30: 1426700 | O30: 4.89%
A31: 21 | B31: Capital_Goods | C31: BEL | D31: 89.00 | E31: 88.53 | F31: 87.67 | G31: 86.33 | H31: 85.47 | I31: 89.87 | J31: 90.73 | K31: 92.07 | L31: 89.4 | M31: 87.2 | N31: 25064800 | O31: -5.88%
A32: 22 | B32: FMCG | C32: BERGEPAINT | D32: 495.70 | E32: 495.32 | F32: 491.38 | G32: 487.07 | H32: 483.13 | I32: 499.63 | J32: 503.57 | K32: 507.88 | L32: 499.25 | M32: 491 | N32: 4599100 | O32: 1.51%
A33: 23 | B33: Automobile | C33: BHARATFORG | D33: 337.10 | E33: 331.87 | F33: 321.53 | G33: 305.97 | H33: 295.63 | I33: 347.43 | J33: 357.77 | K33: 373.33 | L33: 342.2 | M33: 316.3 | N33: 6297000 | O33: -12.45%
A34: 24 | B34: Telecom | C34: BHARTIARTL | D34: 561.75 | E34: 564.25 | F34: 557.55 | G34: 553.35 | H34: 546.65 | I34: 568.45 | J34: 575.15 | K34: 579.35 | L34: 570.95 | M34: 560.05 | N34: 81525444 | O34: 1.35%
A35: 25 | B35: Capital_Goods | C35: BHEL | D35: 36.15 | E35: 36.07 | F35: 35.48 | G35: 34.82 | H35: 34.23 | I35: 36.73 | J35: 37.32 | K35: 37.98 | L35: 36.65 | M35: 35.4 | N35: 51891000 | O35: 2.66%
A36: 26 | B36: Pharma | C36: BIOCON | D36: 388.35 | E36: 388.48 | F36: 383.92 | G36: 379.48 | H36: 374.92 | I36: 392.92 | J36: 397.48 | K36: 401.92 | L36: 393.05 | M36: 384.05 | N36: 15134000 | O36: -1.73%
A37: 27 | B37: Automobile | C37: BOSCHLTD | D37: 11304.60 | E37: 11263.73 | F37: 11147.52 | G37: 10990.43 | H37: 10874.22 | I37: 11420.82 | J37: 11537.03 | K37: 11694.12 | L37: 11379.95 | M37: 11106.65 | N37: 144950 | O37: 2.33%
A38: 28 | B38: Oil_Gas | C38: BPCL | D38: 381.35 | E38: 379.63 | F38: 375.57 | G38: 369.78 | H38: 365.72 | I38: 385.42 | J38: 389.48 | K38: 395.27 | L38: 383.7 | M38: 373.85 | N38: 18144000 | O38: -1.51%
A39: 29 | B39: FMCG | C39: BRITANNIA | D39: 3551.60 | E39: 3561.10 | F39: 3526.90 | G39: 3502.20 | H39: 3468.00 | I39: 3585.80 | J39: 3620.00 | K39: 3644.70 | L39: 3595.3 | M39: 3536.4 | N39: 1638800 | O39: -6.35%
A40: 30 | B40: Pharma | C40: CADILAHC | D40: 350.05 | E40: 350.70 | F40: 347.05 | G40: 344.05 | H40: 340.40 | I40: 353.70 | J40: 357.35 | K40: 360.35 | L40: 354.35 | M40: 347.7 | N40: 6243600 | O40: 3.20%
A41: 31 | B41: Banking | C41: CANBK | D41: 105.75 | E41: 103.77 | F41: 101.23 | G41: 96.72 | H41: 94.18 | I41: 108.28 | J41: 110.82 | K41: 115.33 | L41: 106.3 | M41: 99.25 | N41: 10375000 | O41: 6.74%
A42: 32 | B42: Textile | C42: CENTURYTEX | D42: 303.25 | E42: 299.47 | F42: 294.43 | G42: 285.62 | H42: 280.58 | I42: 308.28 | J42: 313.32 | K42: 322.13 | L42: 304.5 | M42: 290.65 | N42: 2321200 | O42: 2.47%
A43: 33 | B43: Finance | C43: CHOLAFIN | D43: 196.25 | E43: 194.08 | F43: 188.97 | G43: 181.68 | H43: 176.57 | I43: 201.37 | J43: 206.48 | K43: 213.77 | L43: 199.2 | M43: 186.8 | N43: 7750000 | O43: 7.53%
A44: 34 | B44: Pharma | C44: CIPLA | D44: 628.55 | E44: 630.00 | F44: 620.10 | G44: 611.65 | H44: 601.75 | I44: 638.45 | J44: 648.35 | K44: 656.80 | L44: 639.9 | M44: 621.55 | N44: 11107200 | O44: 0.85%
A45: 35 | B45: Others | C45: COALINDIA | D45: 134.35 | E45: 133.48 | F45: 132.22 | G45: 130.08 | H45: 128.82 | I45: 135.62 | J45: 136.88 | K45: 139.02 | L45: 134.75 | M45: 131.35 | N45: 33536800 | O45: -0.98%
A46: 36 | B46: FMCG | C46: COLPAL | D46: 1376.35 | E46: 1378.28 | F46: 1360.57 | G46: 1344.78 | H46: 1327.07 | I46: 1394.07 | J46: 1411.78 | K46: 1427.57 | L46: 1396 | M46: 1362.5 | N46: 2609600 | O46: 3.44%
A47: 37 | B47: Others | C47: CONCOR | D47: 414.15 | E47: 411.15 | F47: 404.45 | G47: 394.75 | H47: 388.05 | I47: 420.85 | J47: 427.55 | K47: 437.25 | L47: 417.85 | M47: 401.45 | N47: 5017230 | O47: 0.53%
A48: 38 | B48: Capital_Goods | C48: CUMMINSIND | D48: 398.35 | E48: 396.10 | F48: 391.35 | G48: 384.35 | H48: 379.60 | I48: 403.10 | J48: 407.85 | K48: 414.85 | L48: 400.85 | M48: 389.1 | N48: 1542000 | O48: -0.93%
A49: 39 | B49: FMCG | C49: DABUR | D49: 466.25 | E49: 467.38 | F49: 463.87 | G49: 461.48 | H49: 457.97 | I49: 469.77 | J49: 473.28 | K49: 475.67 | L49: 470.9 | M49: 465 | N49: 13380000 | O49: -0.15%
A50: 40 | B50: Pharma | C50: DIVISLAB | D50: 2248.50 | E50: 2254.87 | F50: 2229.78 | G50: 2211.07 | H50: 2185.98 | I50: 2273.58 | J50: 2298.67 | K50: 2317.38 | L50: 2279.95 | M50: 2236.15 | N50: 3452800 | O50: 1.47%
A51: 41 | B51: Realty | C51: DLF | D51: 150.65 | E51: 150.43 | F51: 148.02 | G51: 145.38 | H51: 142.97 | I51: 153.07 | J51: 155.48 | K51: 158.12 | L51: 152.85 | M51: 147.8 | N51: 27858600 | O51: 1.86%
A52: 42 | B52: Pharma | C52: DRREDDY | D52: 3888.45 | E52: 3895.85 | F52: 3856.00 | G52: 3823.55 | H52: 3783.70 | I52: 3928.30 | J52: 3968.15 | K52: 4000.60 | L52: 3935.7 | M52: 3863.4 | N52: 3360750 | O52: 0.89%
A53: 43 | B53: Automobile | C53: EICHERMOT | D53: 18411.30 | E53: 18425.77 | F53: 18251.53 | G53: 18091.77 | H53: 17917.53 | I53: 18585.53 | J53: 18759.77 | K53: 18919.53 | L53: 18600 | M53: 18266 | N53: 287385 | O53: 2.59%
A54: 44 | B54: Finance | C54: EQUITAS | D54: 51.70 | E54: 51.00 | F54: 49.85 | G54: 48.00 | H54: 46.85 | I54: 52.85 | J54: 54.00 | K54: 55.85 | L54: 52.15 | M54: 49.15 | N54: 13315200 | O54: 3.36%
A55: 45 | B55: Automobile | C55: ESCORTS | D55: 1033.75 | E55: 1041.28 | F55: 1008.62 | G55: 983.48 | H55: 950.82 | I55: 1066.42 | J55: 1099.08 | K55: 1124.22 | L55: 1073.95 | M55: 1016.15 | N55: 2674100 | O55: -5.19%
A56: 46 | B56: Automobile | C56: EXIDEIND | D56: 149.15 | E56: 149.15 | F56: 148.05 | G56: 146.95 | H56: 145.85 | I56: 150.25 | J56: 151.35 | K56: 152.45 | L56: 150.25 | M56: 148.05 | N56: 11448000 | O56: 1.27%
A57: 47 | B57: Banking | C57: FEDERALBNK | D57: 53.35 | E57: 52.58 | F57: 51.62 | G57: 49.88 | H57: 48.92 | I57: 54.32 | J57: 55.28 | K57: 57.02 | L57: 53.55 | M57: 50.85 | N57: 57315500 | O57: 0.87%
A58: 48 | B58: Oil_Gas | C58: GAIL | D58: 102.90 | E58: 102.07 | F58: 100.88 | G58: 98.87 | H58: 97.68 | I58: 104.08 | J58: 105.27 | K58: 107.28 | L58: 103.25 | M58: 100.05 | N58: 31506500 | O58: -2.58%
A59: 49 | B59: Pharma | C59: GLENMARK | D59: 436.55 | E59: 435.27 | F59: 425.28 | G59: 414.02 | H59: 404.03 | I59: 446.53 | J59: 456.52 | K59: 467.78 | L59: 445.25 | M59: 424 | N59: 6955200 | O59: 17.67%
A60: 50 | B60: Infrastructure | C60: GMRINFRA | D60: 20.65 | E60: 20.43 | F60: 20.12 | G60: 19.58 | H60: 19.27 | I60: 20.97 | J60: 21.28 | K60: 21.82 | L60: 20.75 | M60: 19.9 | N60: 89235000 | O60: 4.04%
A61: 51 | B61: FMCG | C61: GODREJCP | D61: 694.50 | E61: 691.83 | F61: 687.37 | G61: 680.23 | H61: 675.77 | I61: 698.97 | J61: 703.43 | K61: 710.57 | L61: 696.3 | M61: 684.7 | N61: 6591000 | O61: 1.09%
A62: 52 | B62: Others | C62: GODREJPROP | D62: 859.45 | E62: 860.35 | F62: 850.10 | G62: 840.75 | H62: 830.50 | I62: 869.70 | J62: 879.95 | K62: 889.30 | L62: 870.6 | M62: 851 | N62: 389350 | O62: -0.50%
A63: 53 | B63: Cement | C63: GRASIM | D63: 616.45 | E63: 617.98 | F63: 610.97 | G63: 605.48 | H63: 598.47 | I63: 623.47 | J63: 630.48 | K63: 635.97 | L63: 625 | M63: 612.5 | N63: 18882200 | O63: -0.19%
A64: 54 | B64: Others | C64: HAVELLS | D64: 575.45 | E64: 577.08 | F64: 570.52 | G64: 565.58 | H64: 559.02 | I64: 582.02 | J64: 588.58 | K64: 593.52 | L64: 583.65 | M64: 572.15 | N64: 5278000 | O64: 1.32%
A65: 55 | B65: Technology | C65: HCLTECH | D65: 553.25 | E65: 555.05 | F65: 550.45 | G65: 547.65 | H65: 543.05 | I65: 557.85 | J65: 562.45 | K65: 565.25 | L65: 559.65 | M65: 552.25 | N65: 20493200 | O65: 2.30%
A66: 56 | B66: Finance | C66: HDFC | D66: 1817.25 | E66: 1793.90 | F66: 1763.90 | G66: 1710.55 | H66: 1680.55 | I66: 1847.25 | J66: 1877.25 | K66: 1930.60 | L66: 1823.9 | M66: 1740.55 | N66: 30891900 | O66: -0.79%
A67: 57 | B67: Banking | C67: HDFCBANK | D67: 1078.65 | E67: 1072.80 | F67: 1057.95 | G67: 1037.25 | H67: 1022.40 | I67: 1093.50 | J67: 1108.35 | K67: 1129.05 | L67: 1087.65 | M67: 1052.1 | N67: 45338700 | O67: 1.63%
A68: 58 | B68: Finance | C68: HDFCLIFE | D68: 550.85 | E68: 552.92 | F68: 545.83 | G68: 540.82 | H68: 533.73 | I68: 557.93 | J68: 565.02 | K68: 570.03 | L68: 560 | M68: 547.9 | N68: 14883000 | O68: 0.64%
A69: 59 | B69: Automobile | C69: HEROMOTOCO | D69: 2523.05 | E69: 2524.23 | F69: 2501.37 | G69: 2479.68 | H69: 2456.82 | I69: 2545.92 | J69: 2568.78 | K69: 2590.47 | L69: 2547.1 | M69: 2502.55 | N69: 2989200 | O69: 0.26%
A70: 60 | B70: Metals | C70: HINDALCO | D70: 148.00 | E70: 147.20 | F70: 145.30 | G70: 142.60 | H70: 140.70 | I70: 149.90 | J70: 151.80 | K70: 154.50 | L70: 149.1 | M70: 144.5 | N70: 32817600 | O70: -0.34%
A71: 61 | B71: Oil_Gas | C71: HINDPETRO | D71: 213.25 | E71: 210.83 | F71: 207.72 | G71: 202.18 | H71: 199.07 | I71: 216.37 | J71: 219.48 | K71: 225.02 | L71: 213.95 | M71: 205.3 | N71: 23071500 | O71: 11.87%
A72: 62 | B72: FMCG | C72: HINDUNILVR | D72: 2172.25 | E72: 2173.73 | F72: 2159.32 | G72: 2146.38 | H72: 2131.97 | I72: 2186.67 | J72: 2201.08 | K72: 2214.02 | L72: 2188.15 | M72: 2160.8 | N72: 16739700 | O72: -1.03%
A73: 63 | B73: Finance | C73: IBULHSGFIN | D73: 220.05 | E73: 219.20 | F73: 203.75 | G73: 187.45 | H73: 172.00 | I73: 235.50 | J73: 250.95 | K73: 267.25 | L73: 234.65 | M73: 202.9 | N73: 14015100 | O73: 14.86%
A74: 64 | B74: Banking | C74: ICICIBANK | D74: 364.05 | E74: 360.25 | F74: 354.70 | G74: 345.35 | H74: 339.80 | I74: 369.60 | J74: 375.15 | K74: 384.50 | L74: 365.8 | M74: 350.9 | N74: 113716625 | O74: -0.98%
A75: 65 | B75: Finance | C75: ICICIPRULI | D75: 420.50 | E75: 422.37 | F75: 416.18 | G75: 411.87 | H75: 405.68 | I75: 426.68 | J75: 432.87 | K75: 437.18 | L75: 428.55 | M75: 418.05 | N75: 7155000 | O75: -0.63%
A76: 66 | B76: Telecom | C76: IDEA | D76: 10.20 | E76: 10.32 | F76: 9.93 | G76: 9.67 | H76: 9.28 | I76: 10.58 | J76: 10.97 | K76: 11.23 | L76: 10.7 | M76: 10.05 | N76: 366380000 | O76: -9.60%
A77: 67 | B77: Banking | C77: IDFCFIRSTB | D77: 26.45 | E77: 26.15 | F77: 25.80 | G77: 25.15 | H77: 24.80 | I77: 26.80 | J77: 27.15 | K77: 27.80 | L77: 26.5 | M77: 25.5 | N77: 109440000 | O77: 2.31%
A78: 68 | B78: Oil_Gas | C78: IGL | D78: 439.80 | E78: 440.97 | F78: 436.98 | G78: 434.17 | H78: 430.18 | I78: 443.78 | J78: 447.77 | K78: 450.58 | L78: 444.95 | M78: 438.15 | N78: 7405750 | O78: -2.14%
A79: 69 | B79: Others | C79: INDIGO | D79: 997.65 | E79: 995.08 | F79: 983.67 | G79: 969.68 | H79: 958.27 | I79: 1009.07 | J79: 1020.48 | K79: 1034.47 | L79: 1006.5 | M79: 981.1 | N79: 2723000 | O79: 0.28%
A80: 70 | B80: Banking | C80: INDUSINDBK | D80: 494.45 | E80: 488.77 | F80: 480.78 | G80: 467.12 | H80: 459.13 | I80: 502.43 | J80: 510.42 | K80: 524.08 | L80: 496.75 | M80: 475.1 | N80: 32284000 | O80: 4.76%
A81: 71 | B81: Telecom | C81: INFRATEL | D81: 219.40 | E81: 219.23 | F81: 216.97 | G81: 214.53 | H81: 212.27 | I81: 221.67 | J81: 223.93 | K81: 226.37 | L81: 221.5 | M81: 216.8 | N81: 10108000 | O81: 2.97%
A82: 72 | B82: Technology | C82: INFY | D82: 733.40 | E82: 735.18 | F82: 729.47 | G82: 725.53 | H82: 719.82 | I82: 739.12 | J82: 744.83 | K82: 748.77 | L82: 740.9 | M82: 731.25 | N82: 52040400 | O82: -2.08%
A83: 73 | B83: Oil_Gas | C83: IOC | D83: 85.95 | E83: 85.57 | F83: 84.68 | G83: 83.42 | H83: 82.53 | I83: 86.83 | J83: 87.72 | K83: 88.98 | L83: 86.45 | M83: 84.3 | N83: 56817600 | O83: 0.93%
A84: 74 | B84: FMCG | C84: ITC | D84: 203.10 | E84: 200.48 | F84: 197.17 | G84: 191.23 | H84: 187.92 | I84: 206.42 | J84: 209.73 | K84: 215.67 | L84: 203.8 | M84: 194.55 | N84: 89056000 | O84: -2.31%
A85: 75 | B85: Metals | C85: JINDALSTEL | D85: 153.95 | E85: 156.40 | F85: 149.65 | G85: 145.35 | H85: 138.60 | I85: 160.70 | J85: 167.45 | K85: 171.75 | L85: 163.15 | M85: 152.1 | N85: 18340000 | O85: -11.04%
A86: 76 | B86: Metals | C86: JSWSTEEL | D86: 190.20 | E86: 189.53 | F86: 187.47 | G86: 184.73 | H86: 182.67 | I86: 192.27 | J86: 194.33 | K86: 197.07 | L86: 191.6 | M86: 186.8 | N86: 42082200 | O86: 1.54%
A87: 77 | B87: Others | C87: JUBLFOOD | D87: 1701.10 | E87: 1712.28 | F87: 1681.77 | G87: 1662.43 | H87: 1631.92 | I87: 1731.62 | J87: 1762.13 | K87: 1781.47 | L87: 1742.8 | M87: 1692.95 | N87: 2306500 | O87: 1.05%
A88: 78 | B88: Others | C88: JUSTDIAL | D88: 375.75 | E88: 378.75 | F88: 369.80 | G88: 363.85 | H88: 354.90 | I88: 384.70 | J88: 393.65 | K88: 399.60 | L88: 387.7 | M88: 372.8 | N88: 1741600 | O88: 8.55%
A89: 79 | B89: Banking | C89: KOTAKBANK | D89: 1352.95 | E89: 1341.88 | F89: 1322.22 | G89: 1291.48 | H89: 1271.82 | I89: 1372.62 | J89: 1392.28 | K89: 1423.02 | L89: 1361.55 | M89: 1311.15 | N89: 9028800 | O89: -5.60%
A90: 80 | B90: Finance | C90: L&TFH | D90: 67.90 | E90: 67.18 | F90: 66.17 | G90: 64.43 | H90: 63.42 | I90: 68.92 | J90: 69.93 | K90: 71.67 | L90: 68.2 | M90: 65.45 | N90: 22365200 | O90: 1.36%
A91: 81 | B91: Finance | C91: LICHSGFIN | D91: 277.10 | E91: 273.67 | F91: 268.43 | G91: 259.77 | H91: 254.53 | I91: 282.33 | J91: 287.57 | K91: 296.23 | L91: 278.9 | M91: 265 | N91: 6844000 | O91: -5.18%
A92: 82 | B92: Capital_Goods | C92: LT | D92: 923.70 | E92: 923.98 | F92: 912.32 | G92: 900.93 | H92: 889.27 | I92: 935.37 | J92: 947.03 | K92: 958.42 | L92: 935.65 | M92: 912.6 | N92: 9002950 | O92: -4.94%
A93: 83 | B93: Pharma | C93: LUPIN | D93: 899.95 | E93: 897.33 | F93: 889.07 | G93: 878.18 | H93: 869.92 | I93: 908.22 | J93: 916.48 | K93: 927.37 | L93: 905.6 | M93: 886.45 | N93: 7379700 | O93: 0.98%
A94: 84 | B94: Automobile | C94: M&M | D94: 498.30 | E94: 503.60 | F94: 488.50 | G94: 478.70 | H94: 463.60 | I94: 513.40 | J94: 528.50 | K94: 538.30 | L94: 518.7 | M94: 493.8 | N94: 19269600 | O94: 2.30%
A95: 85 | B95: Finance | C95: M&MFIN | D95: 173.75 | E95: 171.27 | F95: 167.03 | G95: 160.32 | H95: 156.08 | I95: 177.98 | J95: 182.22 | K95: 188.93 | L95: 175.5 | M95: 164.55 | N95: 12276600 | O95: 17.22%
A96: 86 | B96: Finance | C96: MANAPPURAM | D96: 158.60 | E96: 156.60 | F96: 153.95 | G96: 149.30 | H96: 146.65 | I96: 161.25 | J96: 163.90 | K96: 168.55 | L96: 159.25 | M96: 151.95 | N96: 15372000 | O96: 8.47%
A97: 87 | B97: FMCG | C97: MARICO | D97: 351.70 | E97: 352.38 | F97: 349.12 | G97: 346.53 | H97: 343.27 | I97: 354.97 | J97: 358.23 | K97: 360.82 | L97: 355.65 | M97: 349.8 | N97: 11892000 | O97: -0.68%
A98: 88 | B98: Automobile | C98: MARUTI | D98: 5799.35 | E98: 5813.78 | F98: 5750.57 | G98: 5701.78 | H98: 5638.57 | I98: 5862.57 | J98: 5925.78 | K98: 5974.57 | L98: 5877 | M98: 5765 | N98: 2956500 | O98: -0.08%
A99: 89 | B99: FMCG | C99: MCDOWELL-N | D99: 600.90 | E99: 598.28 | F99: 593.07 | G99: 585.23 | H99: 580.02 | I99: 606.12 | J99: 611.33 | K99: 619.17 | L99: 603.5 | M99: 590.45 | N99: 14240000 | O99: 3.59%
A100: 90 | B100: Finance | C100: MFSL | D100: 531.30 | E100: 529.27 | F100: 518.03 | G100: 504.77 | H100: 493.53 | I100: 542.53 | J100: 553.77 | K100: 567.03 | L100: 540.5 | M100: 516 | N100: 1640600 | O100: -0.47%
A101: 91 | B101: Oil_Gas | C101: MGL | D101: 1052.35 | E101: 1048.45 | F101: 1038.90 | G101: 1025.45 | H101: 1015.90 | I101: 1061.90 | J101: 1071.45 | K101: 1084.90 | L101: 1058 | M101: 1035 | N101: 655800 | O101: 2.34%
A102: 92 | B102: Technology | C102: MINDTREE | D102: 917.25 | E102: 917.45 | F102: 907.90 | G102: 898.55 | H102: 889.00 | I102: 926.80 | J102: 936.35 | K102: 945.70 | L102: 927 | M102: 908.1 | N102: 1792800 | O102: -1.02%
A103: 93 | B103: Automobile | C103: MOTHERSUMI | D103: 97.55 | E103: 96.50 | F103: 95.00 | G103: 92.45 | H103: 90.95 | I103: 99.05 | J103: 100.55 | K103: 103.10 | L103: 98 | M103: 93.95 | N103: 26110000 | O103: 7.55%
A104: 94 | B104: Automobile | C104: MRF | D104: 66036.75 | E104: 66163.30 | F104: 65615.45 | G104: 65194.15 | H104: 64646.30 | I104: 66584.60 | J104: 67132.45 | K104: 67553.75 | L104: 66711.15 | M104: 65742 | N104: 14790 | O104: -5.07%
A105: 95 | B105: Finance | C105: MUTHOOTFIN | D105: 1100.85 | E105: 1107.08 | F105: 1079.37 | G105: 1057.88 | H105: 1030.17 | I105: 1128.57 | J105: 1156.28 | K105: 1177.77 | L105: 1134.8 | M105: 1085.6 | N105: 3210000 | O105: 0.42%
A106: 96 | B106: Metals | C106: NATIONALUM | D106: 31.75 | E106: 31.67 | F106: 31.23 | G106: 30.72 | H106: 30.28 | I106: 32.18 | J106: 32.62 | K106: 33.13 | L106: 32.1 | M106: 31.15 | N106: 38318000 | O106: 2.78%
A107: 97 | B107: Others | C107: NAUKRI | D107: 2765.40 | E107: 2756.68 | F107: 2733.37 | G107: 2701.33 | H107: 2678.02 | I107: 2788.72 | J107: 2812.03 | K107: 2844.07 | L107: 2780 | M107: 2724.65 | N107: 730500 | O107: 0.72%
A108: 98 | B108: Infrastructure | C108: NCC | D108: 29.95 | E108: 29.73 | F108: 29.22 | G108: 28.48 | H108: 27.97 | I108: 30.47 | J108: 30.98 | K108: 31.72 | L108: 30.25 | M108: 29 | N108: 18123000 | O108: 3.85%
A109: 99 | B109: FMCG | C109: NESTLEIND | D109: 16837.15 | E109: 16865.72 | F109: 16706.43 | G109: 16575.72 | H109: 16416.43 | I109: 16996.43 | J109: 17155.72 | K109: 17286.43 | L109: 17025 | M109: 16735 | N109: 534150 | O109: -0.60%
A110: 100 | B110: Technology | C110: NIITTECH | D110: 1390.00 | E110: 1393.83 | F110: 1368.72 | G110: 1347.43 | H110: 1322.32 | I110: 1415.12 | J110: 1440.23 | K110: 1461.52 | L110: 1418.95 | M110: 1372.55 | N110: 570750 | O110: 4.75%
A111: 101 | B111: Metals | C111: NMDC | D111: 81.30 | E111: 81.25 | F111: 80.15 | G111: 79.00 | H111: 77.90 | I111: 82.40 | J111: 83.50 | K111: 84.65 | L111: 82.35 | M111: 80.1 | N111: 28220400 | O111: -1.29%
A112: 102 | B112: Power | C112: NTPC | D112: 93.70 | E112: 93.47 | F112: 92.48 | G112: 91.27 | H112: 90.28 | I112: 94.68 | J112: 95.67 | K112: 96.88 | L112: 94.45 | M112: 92.25 | N112: 60733500 | O112: -0.25%
A113: 103 | B113: Oil_Gas | C113: ONGC | D113: 80.80 | E113: 80.15 | F113: 79.05 | G113: 77.30 | H113: 76.20 | I113: 81.90 | J113: 83.00 | K113: 84.75 | L113: 81.25 | M113: 78.4 | N113: 65688700 | O113: -2.12%
A114: 104 | B114: Textile | C114: PAGEIND | D114: 20289.05 | E114: 20199.68 | F114: 20009.37 | G114: 19729.68 | H114: 19539.37 | I114: 20479.37 | J114: 20669.68 | K114: 20949.37 | L114: 20390 | M114: 19920 | N114: 113220 | O114: 2.69%
A115: 105 | B115: Pharma | C115: PEL | D115: 1368.45 | E115: 1360.37 | F115: 1345.73 | G115: 1323.02 | H115: 1308.38 | I115: 1383.08 | J115: 1397.72 | K115: 1420.43 | L115: 1375 | M115: 1337.65 | N115: 3654750 | O115: -2.47%
A116: 106 | B116: Oil_Gas | C116: PETRONET | D116: 256.95 | E116: 255.88 | F116: 252.87 | G116: 248.78 | H116: 245.77 | I116: 259.97 | J116: 262.98 | K116: 267.07 | L116: 258.9 | M116: 251.8 | N116: 19620000 | O116: 0.49%
A117: 107 | B117: Finance | C117: PFC | D117: 84.95 | E117: 84.78 | F117: 83.77 | G117: 82.58 | H117: 81.57 | I117: 85.97 | J117: 86.98 | K117: 88.17 | L117: 85.8 | M117: 83.6 | N117: 48918000 | O117: -1.72%
A118: 108 | B118: FMCG | C118: PIDILITIND | D118: 1369.95 | E118: 1369.07 | F118: 1358.88 | G118: 1347.82 | H118: 1337.63 | I118: 1380.13 | J118: 1390.32 | K118: 1401.38 | L118: 1379.25 | M118: 1358 | N118: 3283000 | O118: -2.90%
A119: 109 | B119: Banking | C119: PNB | D119: 36.55 | E119: 35.90 | F119: 35.15 | G119: 33.75 | H119: 33.00 | I119: 37.30 | J119: 38.05 | K119: 39.45 | L119: 36.65 | M119: 34.5 | N119: 51660000 | O119: 5.31%
A120: 110 | B120: Power | C120: POWERGRID | D120: 174.05 | E120: 174.00 | F120: 172.40 | G120: 170.75 | H120: 169.15 | I120: 175.65 | J120: 177.25 | K120: 178.90 | L120: 175.6 | M120: 172.35 | N120: 31816000 | O120: 3.58%
A121: 111 | B121: Media | C121: PVR | D121: 961.70 | E121: 956.25 | F121: 941.95 | G121: 922.20 | H121: 907.90 | I121: 976.00 | J121: 990.30 | K121: 1010.05 | L121: 970.55 | M121: 936.5 | N121: 1322800 | O121: -2.74%
A122: 112 | B122: Cement | C122: RAMCOCEM | D122: 646.80 | E122: 642.43 | F122: 634.97 | G122: 623.13 | H122: 615.67 | I122: 654.27 | J122: 661.73 | K122: 673.57 | L122: 649.9 | M122: 630.6 | N122: 1038700 | O122: 1.33%
A123: 113 | B123: Banking | C123: RBLBANK | D123: 173.65 | E123: 172.72 | F123: 169.13 | G123: 164.62 | H123: 161.03 | I123: 177.23 | J123: 180.82 | K123: 185.33 | L123: 176.3 | M123: 168.2 | N123: 19656000 | O123: 0.51%
A124: 114 | B124: Power | C124: RECLTD | D124: 108.95 | E124: 108.63 | F124: 107.17 | G124: 105.38 | H124: 103.92 | I124: 110.42 | J124: 111.88 | K124: 113.67 | L124: 110.1 | M124: 106.85 | N124: 15228000 | O124: 4.83%
A125: 115 | B125: Oil_Gas | C125: RELIANCE | D125: 1736.50 | E125: 1729.88 | F125: 1712.37 | G125: 1688.23 | H125: 1670.72 | I125: 1754.02 | J125: 1771.53 | K125: 1795.67 | L125: 1747.4 | M125: 1705.75 | N125: 39889950 | O125: -0.68%
A126: 116 | B126: Metals | C126: SAIL | D126: 30.50 | E126: 30.40 | F126: 30.10 | G126: 29.70 | H126: 29.40 | I126: 30.80 | J126: 31.10 | K126: 31.50 | L126: 30.7 | M126: 30 | N126: 53846000 | O126: 0.89%
A127: 117 | B127: Finance | C127: SBILIFE | D127: 806.95 | E127: 809.65 | F127: 799.40 | G127: 791.85 | H127: 781.60 | I127: 817.20 | J127: 827.45 | K127: 835.00 | L127: 819.9 | M127: 802.1 | N127: 5781000 | O127: 0.77%
A128: 118 | B128: Banking | C128: SBIN | D128: 185.35 | E128: 183.18 | F128: 180.37 | G128: 175.38 | H128: 172.57 | I128: 188.17 | J128: 190.98 | K128: 195.97 | L128: 186 | M128: 178.2 | N128: 106863000 | O128: 1.08%
A129: 119 | B129: Cement | C129: SHREECEM | D129: 22706.40 | E129: 22823.63 | F129: 22494.97 | G129: 22283.53 | H129: 21954.87 | I129: 23035.07 | J129: 23363.73 | K129: 23575.17 | L129: 23152.3 | M129: 22612.2 | N129: 142900 | O129: -1.45%
A130: 120 | B130: Capital_Goods | C130: SIEMENS | D130: 1098.25 | E130: 1095.83 | F130: 1083.57 | G130: 1068.88 | H130: 1056.62 | I130: 1110.52 | J130: 1122.78 | K130: 1137.47 | L130: 1108.1 | M130: 1081.15 | N130: 2314950 | O130: 0.60%
A131: 121 | B131: Textile | C131: SRF | D131: 3605.30 | E131: 3609.90 | F131: 3585.40 | G131: 3565.50 | H131: 3541.00 | I131: 3629.80 | J131: 3654.30 | K131: 3674.20 | L131: 3634.4 | M131: 3590 | N131: 542500 | O131: 1.69%
A132: 122 | B132: Finance | C132: SRTRANSFIN | D132: 702.55 | E132: 698.37 | F132: 685.48 | G132: 668.42 | H132: 655.53 | I132: 715.43 | J132: 728.32 | K132: 745.38 | L132: 711.25 | M132: 681.3 | N132: 2682550 | O132: -7.30%
A133: 123 | B133: Pharma | C133: SUNPHARMA | D133: 468.10 | E133: 469.15 | F133: 464.10 | G133: 460.10 | H133: 455.05 | I133: 473.15 | J133: 478.20 | K133: 482.20 | L133: 474.2 | M133: 465.15 | N133: 31129000 | O133: -0.47%
A134: 124 | B134: Media | C134: SUNTV | D134: 403.60 | E134: 406.23 | F134: 399.12 | G134: 394.63 | H134: 387.52 | I134: 410.72 | J134: 417.83 | K134: 422.32 | L134: 413.35 | M134: 401.75 | N134: 4941000 | O134: -2.95%
A135: 125 | B135: Fertilisers | C135: TATACHEM | D135: 308.85 | E135: 309.32 | F135: 307.18 | G135: 305.52 | H135: 303.38 | I135: 310.98 | J135: 313.12 | K135: 314.78 | L135: 311.45 | M135: 307.65 | N135: 1642000 | O135: -0.85%
A136: 126 | B136: Others | C136: TATACONSUM | D136: 385.30 | E136: 384.82 | F136: 381.43 | G136: 377.57 | H136: 374.18 | I136: 388.68 | J136: 392.07 | K136: 395.93 | L136: 388.2 | M136: 380.95 | N136: 13473000 | O136: -0.76%
A137: 127 | B137: Automobile | C137: TATAMOTORS | D137: 100.90 | E137: 100.32 | F137: 98.83 | G137: 96.77 | H137: 95.28 | I137: 102.38 | J137: 103.87 | K137: 105.93 | L137: 101.8 | M137: 98.25 | N137: 80945700 | O137: 0.70%
A138: 128 | B138: Power | C138: TATAPOWER | D138: 45.85 | E138: 45.30 | F138: 44.40 | G138: 42.95 | H138: 42.05 | I138: 46.75 | J138: 47.65 | K138: 49.10 | L138: 46.2 | M138: 43.85 | N138: 51070500 | O138: 2.11%
A139: 129 | B139: Metals | C139: TATASTEEL | D139: 321.65 | E139: 322.30 | F139: 317.75 | G139: 313.85 | H139: 309.30 | I139: 326.20 | J139: 330.75 | K139: 334.65 | L139: 326.85 | M139: 318.4 | N139: 16561400 | O139: -1.44%
A140: 130 | B140: Technology | C140: TCS | D140: 2089.75 | E140: 2091.23 | F140: 2073.07 | G140: 2056.38 | H140: 2038.22 | I140: 2107.92 | J140: 2126.08 | K140: 2142.77 | L140: 2109.4 | M140: 2074.55 | N140: 8265000 | O140: -2.92%
A141: 131 | B141: Technology | C141: TECHM | D141: 541.85 | E141: 538.83 | F141: 534.97 | G141: 528.08 | H141: 524.22 | I141: 545.72 | J141: 549.58 | K141: 556.47 | L141: 542.7 | M141: 531.95 | N141: 18199200 | O141: -0.26%
A142: 132 | B142: FMCG | C142: TITAN | D142: 950.95 | E142: 954.87 | F142: 942.08 | G142: 933.22 | H142: 920.43 | I142: 963.73 | J142: 976.52 | K142: 985.38 | L142: 967.65 | M142: 946 | N142: 6960000 | O142: 2.48%
A143: 133 | B143: Pharma | C143: TORNTPHARM | D143: 2344.35 | E143: 2355.17 | F143: 2320.43 | G143: 2296.52 | H143: 2261.78 | I143: 2379.08 | J143: 2413.82 | K143: 2437.73 | L143: 2389.9 | M143: 2331.25 | N143: 1369000 | O143: 1.03%
A144: 134 | B144: Power | C144: TORNTPOWER | D144: 322.40 | E144: 321.37 | F144: 318.03 | G144: 313.67 | H144: 310.33 | I144: 325.73 | J144: 329.07 | K144: 333.43 | L144: 324.7 | M144: 317 | N144: 1770000 | O144: -4.53%
A145: 135 | B145: Automobile | C145: TVSMOTOR | D145: 378.70 | E145: 377.93 | F145: 373.57 | G145: 368.43 | H145: 364.07 | I145: 383.07 | J145: 387.43 | K145: 392.57 | L145: 382.3 | M145: 372.8 | N145: 4214000 | O145: 3.86%
A146: 136 | B146: FMCG | C146: UBL | D146: 1022.35 | E146: 1026.42 | F146: 1011.93 | G146: 1001.52 | H146: 987.03 | I146: 1036.83 | J146: 1051.32 | K146: 1061.73 | L146: 1040.9 | M146: 1016 | N146: 873600 | O146: -2.04%
A147: 137 | B147: Finance | C147: UJJIVAN | D147: 232.85 | E147: 227.78 | F147: 221.17 | G147: 209.48 | H147: 202.87 | I147: 239.47 | J147: 246.08 | K147: 257.77 | L147: 234.4 | M147: 216.1 | N147: 3385800 | O147: -7.46%
A148: 138 | B148: Cement | C148: ULTRACEMCO | D148: 3899.75 | E148: 3893.92 | F148: 3861.83 | G148: 3823.92 | H148: 3791.83 | I148: 3931.83 | J148: 3963.92 | K148: 4001.83 | L148: 3926 | M148: 3856 | N148: 2235400 | O148: -1.47%
A149: 139 | B149: Fertilisers | C149: UPL | D149: 443.10 | E149: 437.67 | F149: 430.53 | G149: 417.97 | H149: 410.83 | I149: 450.23 | J149: 457.37 | K149: 469.93 | L149: 444.8 | M149: 425.1 | N149: 9148100 | O149: -3.71%
A150: 140 | B150: Metals | C150: VEDL | D150: 108.05 | E150: 107.55 | F150: 106.10 | G150: 104.15 | H150: 102.70 | I150: 109.50 | J150: 110.95 | K150: 112.90 | L150: 109 | M150: 105.6 | N150: 106063400 | O150: -1.30%
A151: 141 | B151: Capital_Goods | C151: VOLTAS | D151: 542.30 | E151: 541.95 | F151: 539.25 | G151: 536.20 | H151: 533.50 | I151: 545.00 | J151: 547.70 | K151: 550.75 | L151: 544.65 | M151: 538.9 | N151: 3309000 | O151: -1.14%
A152: 142 | B152: Technology | C152: WIPRO | D152: 219.60 | E152: 219.83 | F152: 217.97 | G152: 216.33 | H152: 214.47 | I152: 221.47 | J152: 223.33 | K152: 224.97 | L152: 221.7 | M152: 218.2 | N152: 25072000 | O152: -1.63%
A153: 143 | B153: Media | C153: ZEEL | D153: 175.75 | E153: 172.90 | F153: 167.30 | G153: 158.85 | H153: 153.25 | I153: 181.35 | J153: 186.95 | K153: 195.40 | L153: 178.5 | M153: 164.45 | N153: 22479000 | O153: 0.03%
A154: 144
A155: 145
A156: 146
A157: 147
A175: Pivot Point: This is trigger point for intra day buy/sell based on the price range of the previous day
A176: As per the tool,the trader should take BUY position just above Pivot and keep the stop loss of pivot point and the first target would be Resistance 1(R1)
A177: If R1 is crossed then R2 becomes the next target with stop loss of at R1
A178: Similarly if price goes below pivot point then the trader should sell and keep a stop loss of pivot point and the first target would be S1
A179: If S1 is crossed then S2 becomes the next target with stop loss of at S1
A181: Disclaimer:
A182: This document has been prepared by the Retail Research Desk of Asit C Mehta
A183: Investment Intermediates Ltd. and is meant for use of the recipient only
A184: and is not for circulation. This document is not to be reported or
A185: copied or made available to others. It should not be considered to be
A186: taken as an offer to sell or a solicitation to buy any security. The
A187: information contained herein is from sources believed reliable. We do
A188: not represent that it is accurate or complete and it should not be
A189: relied upon as such. We may from time to time have positions in and buy
A190: and sell securities referred to herein

Sheet Cash Intra
M5: Back to Main Page
A6: FOR INTRA DAY TRADING | K6: =Main!B10 -> 2020-07-02
A8: Sr.no | B8: Scrip | C8: CLOSE RATE | D8: Pivot Point | E8: Supports | H8: Resistances
C9: Point | E9: S1 | F9: S2 | G9: S3 | H9: R1 | I9: R2 | J9: R3 | K9: HIGH | L9: LOW | M9: Total Trade Quanity in Lakhs
A10: 1 | B10: Nifty 50 | C10: 10430.05 | D10: 10392.23 | E10: 10337.42 | F10: 10244.78 | G10: 10189.97 | H10: 10484.87 | I10: 10539.68 | J10: 10632.32 | K10: 10447.05 | L10: 10299.6
A11: 2 | B11: Nifty Bank | C11: 21977.6 | D11: 21773.68 | E11: 21485.77 | F11: 20993.93 | G11: 20706.02 | H11: 22265.52 | I11: 22553.43 | J11: 23045.27 | K11: 22061.6 | L11: 21281.85
A12: 3 | B12: Nifty CPSE | C12: 1430.8 | D12: 1427.77 | E12: 1421.18 | F12: 1411.57 | G12: 1404.98 | H12: 1437.38 | I12: 1443.97 | J12: 1453.58 | K12: 1434.35 | L12: 1418.15
A13: 4 | B13: Nifty Infra | C13: 3031.4 | D13: 3030.53 | E13: 3013.42 | F13: 2995.43 | G13: 2978.32 | H13: 3048.52 | I13: 3065.63 | J13: 3083.62 | K13: 3047.65 | L13: 3012.55
A14: 5 | B14: Nifty IT | C14: 14732.1 | D14: 14759.82 | E14: 14676.78 | F14: 14621.47 | G14: 14538.43 | H14: 14815.13 | I14: 14898.17 | J14: 14953.48 | K14: 14842.85 | L14: 14704.5
A15: 6 | B15: Nifty PSE | C15: 2492.4 | D15: 2484.52 | E15: 2471.88 | F15: 2451.37 | G15: 2438.73 | H15: 2505.03 | I15: 2517.67 | J15: 2538.18 | K15: 2497.15 | L15: 2464
A16: 7 | B16: Nifty Midcap 50 | C16: 4115.8 | D16: 4104.33 | E16: 4085.17 | F16: 4054.53 | G16: 4035.37 | H16: 4134.97 | I16: 4154.13 | J16: 4184.77 | K16: 4123.5 | L16: 4073.7
A17: 8 | B17: ACC | C17: 1325.95 | D17: 1324.87 | E17: 1309.73 | F17: 1293.52 | G17: 1278.38 | H17: 1341.08 | I17: 1356.22 | J17: 1372.43 | K17: 1340 | L17: 1308.65 | M17: 14.11969
A18: 9 | B18: AUBANK | C18: 558.5 | D18: 556.17 | E18: 544.33 | F18: 530.17 | G18: 518.33 | H18: 570.33 | I18: 582.17 | J18: 596.33 | K18: 568 | L18: 542 | M18: 3.66183
A19: 10 | B19: ADANIPORTS | C19: 343.8 | D19: 344.05 | E19: 341.05 | F19: 338.30 | G19: 335.30 | H19: 346.80 | I19: 349.80 | J19: 352.55 | K19: 347.05 | L19: 341.3 | M19: 12.0208
A20: 11 | B20: ADANIPOWER | C20: 35.9 | D20: 35.92 | E20: 35.73 | F20: 35.57 | G20: 35.38 | H20: 36.08 | I20: 36.27 | J20: 36.43 | K20: 36.1 | L20: 35.75 | M20: 24.51686
A21: 12 | B21: ABCAPITAL | C21: 64.3 | D21: 64.02 | E21: 62.78 | F21: 61.27 | G21: 60.03 | H21: 65.53 | I21: 66.77 | J21: 68.28 | K21: 65.25 | L21: 62.5 | M21: 25.97459
A22: 13 | B22: ABFRL | C22: 123.8 | D22: 124.37 | E22: 122.48 | F22: 121.17 | G22: 119.28 | H22: 125.68 | I22: 127.57 | J22: 128.88 | K22: 126.25 | L22: 123.05 | M22: 8.78487
A23: 14 | B23: AJANTPHARM | C23: 1430.1 | D23: 1426.27 | E23: 1416.53 | F23: 1402.97 | G23: 1393.23 | H23: 1439.83 | I23: 1449.57 | J23: 1463.13 | K23: 1436 | L23: 1412.7 | M23: 0.90205
A24: 15 | B24: ALKEM | C24: 2352.15 | D24: 2357.88 | E24: 2337.92 | F24: 2323.68 | G24: 2303.72 | H24: 2372.12 | I24: 2392.08 | J24: 2406.32 | K24: 2377.85 | L24: 2343.65 | M24: 0.72516
A25: 16 | B25: AMARAJABAT | C25: 660.6 | D25: 658.48 | E25: 651.02 | F25: 641.43 | G25: 633.97 | H25: 668.07 | I25: 675.53 | J25: 685.12 | K25: 665.95 | L25: 648.9 | M25: 10.91795
A26: 17 | B26: AMBUJACEM | C26: 192.2 | D26: 192.77 | E26: 189.83 | F26: 187.47 | G26: 184.53 | H26: 195.13 | I26: 198.07 | J26: 200.43 | K26: 195.7 | L26: 190.4 | M26: 28.67676
A27: 18 | B27: APOLLOHOSP | C27: 1319.65 | D27: 1328.07 | E27: 1302.58 | F27: 1285.52 | G27: 1260.03 | H27: 1345.13 | I27: 1370.62 | J27: 1387.68 | K27: 1353.55 | L27: 1311 | M27: 10.66672
A28: 19 | B28: APOLLOTYRE | C28: 109.75 | D28: 109.67 | E28: 108.43 | F28: 107.12 | G28: 105.88 | H28: 110.98 | I28: 112.22 | J28: 113.53 | K28: 110.9 | L28: 108.35 | M28: 53.14438
A29: 20 | B29: ASHOKLEY | C29: 48.2 | D29: 47.88 | E29: 47.17 | F29: 46.13 | G29: 45.42 | H29: 48.92 | I29: 49.63 | J29: 50.67 | K29: 48.6 | L29: 46.85 | M29: 525.70261
A30: 21 | B30: ASIANPAINT | C30: 1688 | D30: 1688.68 | E30: 1679.37 | F30: 1670.73 | G30: 1661.42 | H30: 1697.32 | I30: 1706.63 | J30: 1715.27 | K30: 1698 | L30: 1680.05 | M30: 16.61301
A31: 22 | B31: AUROPHARMA | C31: 775.75 | D31: 774.75 | E31: 767.55 | F31: 759.35 | G31: 752.15 | H31: 782.95 | I31: 790.15 | J31: 798.35 | K31: 781.95 | L31: 766.55 | M31: 29.32066
A32: 23 | B32: DMART | C32: 2289.35 | D32: 2300.45 | E32: 2273.90 | F32: 2258.45 | G32: 2231.90 | H32: 2315.90 | I32: 2342.45 | J32: 2357.90 | K32: 2327 | L32: 2285 | M32: 2.30105
A33: 24 | B33: AXISBANK | C33: 433.25 | D33: 425.75 | E33: 414.15 | F33: 395.05 | G33: 383.45 | H33: 444.85 | I33: 456.45 | J33: 475.55 | K33: 437.35 | L33: 406.65 | M33: 533.80997
A34: 25 | B34: BAJAJ-AUTO | C34: 2842.05 | D34: 2847.55 | E34: 2823.10 | F34: 2804.15 | G34: 2779.70 | H34: 2866.50 | I34: 2890.95 | J34: 2909.90 | K34: 2872 | L34: 2828.6 | M34: 5.25801
A35: 26 | B35: BAJFINANCE | C35: 2953.9 | D35: 2909.53 | E35: 2850.37 | F35: 2746.83 | G35: 2687.67 | H35: 3013.07 | I35: 3072.23 | J35: 3175.77 | K35: 2968.7 | L35: 2806 | M35: 127.05275
A36: 27 | B36: BAJAJFINSV | C36: 6169.35 | D36: 6055.60 | E36: 5916.40 | F36: 5663.45 | G36: 5524.25 | H36: 6308.55 | I36: 6447.75 | J36: 6700.70 | K36: 6194.8 | L36: 5802.65 | M36: 17.24244
A37: 28 | B37: BAJAJHLDNG | C37: 2570.15 | D37: 2567.90 | E37: 2536.25 | F37: 2502.35 | G37: 2470.70 | H37: 2601.80 | I37: 2633.45 | J37: 2667.35 | K37: 2599.55 | L37: 2534 | M37: 0.56481
A38: 29 | B38: BALKRISIND | C38: 1269.85 | D38: 1275.28 | E38: 1256.57 | F38: 1243.28 | G38: 1224.57 | H38: 1288.57 | I38: 1307.28 | J38: 1320.57 | K38: 1294 | L38: 1262 | M38: 8.16698
A39: 30 | B39: BANDHANBNK | C39: 325.85 | D39: 323.85 | E39: 317.00 | F39: 308.15 | G39: 301.30 | H39: 332.70 | I39: 339.55 | J39: 348.40 | K39: 330.7 | L39: 315 | M39: 132.25572
A40: 31 | B40: BANKBARODA | C40: 51.4 | D40: 50.43 | E40: 49.17 | F40: 46.93 | G40: 45.67 | H40: 52.67 | I40: 53.93 | J40: 56.17 | K40: 51.7 | L40: 48.2 | M40: 563.78625
A41: 32 | B41: BANKINDIA | C41: 50.15 | D41: 49.57 | E41: 48.63 | F41: 47.12 | G41: 46.18 | H41: 51.08 | I41: 52.02 | J41: 53.53 | K41: 50.5 | L41: 48.05 | M41: 41.26731
A42: 33 | B42: BATAINDIA | C42: 1285 | D42: 1292.13 | E42: 1264.47 | F42: 1243.93 | G42: 1216.27 | H42: 1312.67 | I42: 1340.33 | J42: 1360.87 | K42: 1319.8 | L42: 1271.6 | M42: 9.02468
A43: 34 | B43: BERGEPAINT | C43: 494.3 | D43: 495.03 | E43: 490.07 | F43: 485.83 | G43: 480.87 | H43: 499.27 | I43: 504.23 | J43: 508.47 | K43: 500 | L43: 490.8 | M43: 9.94079
A44: 35 | B44: BEL | C44: 88.7 | D44: 88.52 | E44: 87.73 | F44: 86.77 | G44: 85.98 | H44: 89.48 | I44: 90.27 | J44: 91.23 | K44: 89.3 | L44: 87.55 | M44: 117.94991
A45: 36 | B45: BHARATFORG | C45: 337.35 | D45: 333.35 | E45: 325.00 | F45: 312.65 | G45: 304.30 | H45: 345.70 | I45: 354.05 | J45: 366.40 | K45: 341.7 | L45: 321 | M45: 68.51171
A46: 37 | B46: BHEL | C46: 36.05 | D46: 36.05 | E46: 35.40 | F46: 34.75 | G46: 34.10 | H46: 36.70 | I46: 37.35 | J46: 38.00 | K46: 36.7 | L46: 35.4 | M46: 473.03972
A47: 38 | B47: BPCL | C47: 380.15 | D47: 379.22 | E47: 375.03 | F47: 369.92 | G47: 365.73 | H47: 384.33 | I47: 388.52 | J47: 393.63 | K47: 383.4 | L47: 374.1 | M47: 51.82894
A48: 39 | B48: BHARTIARTL | C48: 560.15 | D48: 564.48 | E48: 553.97 | F48: 547.78 | G48: 537.27 | H48: 570.67 | I48: 581.18 | J48: 587.37 | K48: 575 | L48: 558.3 | M48: 136.39649
A49: 40 | B49: INFRATEL | C49: 218.65 | D49: 219.38 | E49: 215.77 | F49: 212.88 | G49: 209.27 | H49: 222.27 | I49: 225.88 | J49: 228.77 | K49: 223 | L49: 216.5 | M49: 53.47618
A50: 41 | B50: BIOCON | C50: 388.45 | D50: 388.90 | E50: 384.05 | F50: 379.65 | G50: 374.80 | H50: 393.30 | I50: 398.15 | J50: 402.55 | K50: 393.75 | L50: 384.5 | M50: 27.27818
A51: 42 | B51: BBTC | C51: 1041.4 | D51: 1045.70 | E51: 1030.70 | F51: 1020.00 | G51: 1005.00 | H51: 1056.40 | I51: 1071.40 | J51: 1082.10 | K51: 1060.7 | L51: 1035 | M51: 0.55208
A52: 43 | B52: BOSCHLTD | C52: 11289.45 | D52: 11296.48 | E52: 11142.97 | F52: 10996.48 | G52: 10842.97 | H52: 11442.97 | I52: 11596.48 | J52: 11742.97 | K52: 11450 | L52: 11150 | M52: 0.31749
A53: 44 | B53: BRITANNIA | C53: 3545.95 | D53: 3564.32 | E53: 3517.63 | F53: 3489.32 | G53: 3442.63 | H53: 3592.63 | I53: 3639.32 | J53: 3667.63 | K53: 3611 | L53: 3536 | M53: 5.86225
A54: 45 | B54: CESC | C54: 641.65 | D54: 635.72 | E54: 626.43 | F54: 611.22 | G54: 601.93 | H54: 650.93 | I54: 660.22 | J54: 675.43 | K54: 645 | L54: 620.5 | M54: 5.8441
A55: 46 | B55: CADILAHC | C55: 348.7 | D55: 349.87 | E55: 345.88 | F55: 343.07 | G55: 339.08 | H55: 352.68 | I55: 356.67 | J55: 359.48 | K55: 353.85 | L55: 347.05 | M55: 25.38312
A56: 47 | B56: CANBK | C56: 105.5 | D56: 103.67 | E56: 101.33 | F56: 97.17 | G56: 94.83 | H56: 107.83 | I56: 110.17 | J56: 114.33 | K56: 106 | L56: 99.5 | M56: 184.04445
A57: 48 | B57: CASTROLIND | C57: 123.3 | D57: 124.32 | E57: 121.98 | F57: 120.67 | G57: 118.33 | H57: 125.63 | I57: 127.97 | J57: 129.28 | K57: 126.65 | L57: 123 | M57: 5.40881
A58: 49 | B58: CHOLAFIN | C58: 197 | D58: 194.58 | E58: 189.42 | F58: 181.83 | G58: 176.67 | H58: 202.17 | I58: 207.33 | J58: 214.92 | K58: 199.75 | L58: 187 | M58: 182.53804
A59: 50 | B59: CIPLA | C59: 627.1 | D59: 630.25 | E59: 617.90 | F59: 608.70 | G59: 596.35 | H59: 639.45 | I59: 651.80 | J59: 661.00 | K59: 642.6 | L59: 621.05 | M59: 48.09654
A60: 51 | B60: CUB | C60: 122.5 | D60: 122.40 | E60: 120.80 | F60: 119.10 | G60: 117.50 | H60: 124.10 | I60: 125.70 | J60: 127.40 | K60: 124 | L60: 120.7 | M60: 38.99696
A61: 52 | B61: COALINDIA | C61: 133.85 | D61: 133.30 | E61: 131.95 | F61: 130.05 | G61: 128.70 | H61: 135.20 | I61: 136.55 | J61: 138.45 | K61: 134.65 | L61: 131.4 | M61: 84.13691
A62: 53 | B62: COLPAL | C62: 1374.8 | D62: 1378.10 | E62: 1358.20 | F62: 1341.60 | G62: 1321.70 | H62: 1394.70 | I62: 1414.60 | J62: 1431.20 | K62: 1398 | L62: 1361.5 | M62: 10.61335
A63: 54 | B63: CONCOR | C63: 413 | D63: 411.73 | E63: 403.57 | F63: 394.13 | G63: 385.97 | H63: 421.17 | I63: 429.33 | J63: 438.77 | K63: 419.9 | L63: 402.3 | M63: 13.27344
A64: 55 | B64: COROMANDEL | C64: 752.2 | D64: 754.12 | E64: 743.23 | F64: 734.27 | G64: 723.38 | H64: 763.08 | I64: 773.97 | J64: 782.93 | K64: 765 | L64: 745.15 | M64: 2.87294
A65: 56 | B65: CROMPTON | C65: 238.8 | D65: 238.27 | E65: 235.58 | F65: 232.37 | G65: 229.68 | H65: 241.48 | I65: 244.17 | J65: 247.38 | K65: 240.95 | L65: 235.05 | M65: 3.6216
A66: 57 | B66: CUMMINSIND | C66: 397.2 | D66: 395.20 | E66: 390.65 | F66: 384.10 | G66: 379.55 | H66: 401.75 | I66: 406.30 | J66: 412.85 | K66: 399.75 | L66: 388.65 | M66: 8.89353
A67: 58 | B67: DLF | C67: 150.25 | D67: 150.22 | E67: 147.93 | F67: 145.62 | G67: 143.33 | H67: 152.53 | I67: 154.82 | J67: 157.13 | K67: 152.5 | L67: 147.9 | M67: 73.25712
A68: 59 | B68: DABUR | C68: 466.6 | D68: 467.72 | E68: 464.43 | F68: 462.27 | G68: 458.98 | H68: 469.88 | I68: 473.17 | J68: 475.33 | K68: 471 | L68: 465.55 | M68: 23.83843
A69: 60 | B69: DALBHARAT | C69: 697.3 | D69: 689.62 | E69: 678.58 | F69: 659.87 | G69: 648.83 | H69: 708.33 | I69: 719.37 | J69: 738.08 | K69: 700.65 | L69: 670.9 | M69: 1.06238
A70: 61 | B70: DIVISLAB | C70: 2241.25 | D70: 2252.75 | E70: 2221.50 | F70: 2201.75 | G70: 2170.50 | H70: 2272.50 | I70: 2303.75 | J70: 2323.50 | K70: 2284 | L70: 2233 | M70: 7.88451
A71: 62 | B71: DRREDDY | C71: 3911.45 | D71: 3921.10 | E71: 3876.20 | F71: 3840.95 | G71: 3796.05 | H71: 3956.35 | I71: 4001.25 | J71: 4036.50 | K71: 3966 | L71: 3885.85 | M71: 6.23565
A72: 63 | B72: EDELWEISS | C72: 59.7 | D72: 60.80 | E72: 58.60 | F72: 57.50 | G72: 55.30 | H72: 61.90 | I72: 64.10 | J72: 65.20 | K72: 63 | L72: 59.7 | M72: 17.72035
A73: 64 | B73: EICHERMOT | C73: 18401.95 | D73: 18450.83 | E73: 18252.12 | F73: 18102.28 | G73: 17903.57 | H73: 18600.67 | I73: 18799.38 | J73: 18949.22 | K73: 18649.55 | L73: 18301 | M73: 2.33486
A74: 65 | B74: EMAMILTD | C74: 227.95 | D74: 224.62 | E74: 218.33 | F74: 208.72 | G74: 202.43 | H74: 234.23 | I74: 240.52 | J74: 250.13 | K74: 230.9 | L74: 215 | M74: 25.68362
A75: 66 | B75: ENDURANCE | C75: 877 | D75: 877.52 | E75: 870.23 | F75: 863.47 | G75: 856.18 | H75: 884.28 | I75: 891.57 | J75: 898.33 | K75: 884.8 | L75: 870.75 | M75: 0.53155
A76: 67 | B76: ENGINERSIN | C76: 76.7 | D76: 76.52 | E76: 75.73 | F76: 74.77 | G76: 73.98 | H76: 77.48 | I76: 78.27 | J76: 79.23 | K76: 77.3 | L76: 75.55 | M76: 24.50317
A77: 68 | B77: ESCORTS | C77: 1033.85 | D77: 1040.32 | E77: 1011.63 | F77: 989.42 | G77: 960.73 | H77: 1062.53 | I77: 1091.22 | J77: 1113.43 | K77: 1069 | L77: 1018.1 | M77: 34.30142
A78: 69 | B78: EXIDEIND | C78: 148.75 | D78: 148.87 | E78: 147.48 | F78: 146.22 | G78: 144.83 | H78: 150.13 | I78: 151.52 | J78: 152.78 | K78: 150.25 | L78: 147.6 | M78: 22.60662
A79: 70 | B79: FEDERALBNK | C79: 53.2 | D79: 52.48 | E79: 51.62 | F79: 50.03 | G79: 49.17 | H79: 54.07 | I79: 54.93 | J79: 56.52 | K79: 53.35 | L79: 50.9 | M79: 265.54225
A80: 71 | B80: FORTIS | C80: 122.6 | D80: 123.08 | E80: 121.27 | F80: 119.93 | G80: 118.12 | H80: 124.42 | I80: 126.23 | J80: 127.57 | K80: 124.9 | L80: 121.75 | M80: 16.96766
A81: 72 | B81: FCONSUMER | C81: 15.8 | D81: 15.80 | E81: 15.80 | F81: 15.80 | G81: 15.80 | H81: 15.80 | I81: 15.80 | J81: 15.80 | K81: 15.8 | L81: 15.8 | M81: 38.06314
A82: 73 | B82: FRETAIL | C82: 135.25 | D82: 131.33 | E82: 127.42 | F82: 119.58 | G82: 115.67 | H82: 139.17 | I82: 143.08 | J82: 150.92 | K82: 135.25 | L82: 123.5 | M82: 94.85819
A83: 74 | B83: GAIL | C83: 102.95 | D83: 102.18 | E83: 101.02 | F83: 99.08 | G83: 97.92 | H83: 104.12 | I83: 105.28 | J83: 107.22 | K83: 103.35 | L83: 100.25 | M83: 99.47216
A84: 75 | B84: GMRINFRA | C84: 20.55 | D84: 20.35 | E84: 20.00 | F84: 19.45 | G84: 19.10 | H84: 20.90 | I84: 21.25 | J84: 21.80 | K84: 20.7 | L84: 19.8 | M84: 120.81015
A85: 76 | B85: GICRE | C85: 151.9 | D85: 152.33 | E85: 150.67 | F85: 149.43 | G85: 147.77 | H85: 153.57 | I85: 155.23 | J85: 156.47 | K85: 154 | L85: 151.1 | M85: 2.7394
A86: 77 | B86: GLENMARK | C86: 435.2 | D86: 434.70 | E86: 424.40 | F86: 413.60 | G86: 403.30 | H86: 445.50 | I86: 455.80 | J86: 466.60 | K86: 445 | L86: 423.9 | M86: 210.51292
A87: 78 | B87: GODREJAGRO | C87: 434.55 | D87: 434.93 | E87: 430.67 | F87: 426.78 | G87: 422.52 | H87: 438.82 | I87: 443.08 | J87: 446.97 | K87: 439.2 | L87: 431.05 | M87: 0.83178
A88: 79 | B88: GODREJCP | C88: 694.85 | D88: 692.25 | E88: 687.65 | F88: 680.45 | G88: 675.85 | H88: 699.45 | I88: 704.05 | J88: 711.25 | K88: 696.85 | L88: 685.05 | M88: 7.08593
A89: 80 | B89: GODREJIND | C89: 405.8 | D89: 410.57 | E89: 398.43 | F89: 391.07 | G89: 378.93 | H89: 417.93 | I89: 430.07 | J89: 437.43 | K89: 422.7 | L89: 403.2 | M89: 0.69467
A90: 81 | B90: GODREJPROP | C90: 856.45 | D90: 859.43 | E90: 849.17 | F90: 841.88 | G90: 831.62 | H90: 866.72 | I90: 876.98 | J90: 884.27 | K90: 869.7 | L90: 852.15 | M90: 2.01022
A91: 82 | B91: GRAPHITE | C91: 183.3 | D91: 183.43 | E91: 180.87 | F91: 178.43 | G91: 175.87 | H91: 185.87 | I91: 188.43 | J91: 190.87 | K91: 186 | L91: 181 | M91: 2.41144
A92: 83 | B92: GRASIM | C92: 614.35 | D92: 617.48 | E92: 609.02 | F92: 603.68 | G92: 595.22 | H92: 622.82 | I92: 631.28 | J92: 636.62 | K92: 625.95 | L92: 612.15 | M92: 13.97405
A93: 84 | B93: GSPL | C93: 224.1 | D93: 222.82 | E93: 220.18 | F93: 216.27 | G93: 213.63 | H93: 226.73 | I93: 229.37 | J93: 233.28 | K93: 225.45 | L93: 218.9 | M93: 10.82966
A94: 85 | B94: HEG | C94: 832.45 | D94: 833.25 | E94: 817.80 | F94: 803.15 | G94: 787.70 | H94: 847.90 | I94: 863.35 | J94: 878.00 | K94: 848.7 | L94: 818.6 | M94: 1.94736
A95: 86 | B95: HCLTECH | C95: 551.75 | D95: 554.12 | E95: 548.63 | F95: 545.52 | G95: 540.03 | H95: 557.23 | I95: 562.72 | J95: 565.83 | K95: 559.6 | L95: 551 | M95: 30.04728
A96: 87 | B96: HDFCAMC | C96: 2476.15 | D96: 2479.05 | E96: 2462.10 | F96: 2448.05 | G96: 2431.10 | H96: 2493.10 | I96: 2510.05 | J96: 2524.10 | K96: 2496 | L96: 2465 | M96: 2.45358
A97: 88 | B97: HDFCBANK | C97: 1084.6 | D97: 1080.63 | E97: 1065.27 | F97: 1045.93 | G97: 1030.57 | H97: 1099.97 | I97: 1115.33 | J97: 1134.67 | K97: 1096 | L97: 1061.3 | M97: 174.23378
A98: 89 | B98: HDFCLIFE | C98: 549.65 | D98: 551.93 | E98: 543.87 | F98: 538.08 | G98: 530.02 | H98: 557.72 | I98: 565.78 | J98: 571.57 | K98: 560 | L98: 546.15 | M98: 34.19823
A99: 90 | B99: HAVELLS | C99: 574.4 | D99: 576.92 | E99: 569.53 | F99: 564.67 | G99: 557.28 | H99: 581.78 | I99: 589.17 | J99: 594.03 | K99: 584.3 | L99: 572.05 | M99: 14.83762
A100: 91 | B100: HEROMOTOCO | C100: 2547.45 | D100: 2550.83 | E100: 2526.62 | F100: 2505.78 | G100: 2481.57 | H100: 2571.67 | I100: 2595.88 | J100: 2616.72 | K100: 2575.05 | L100: 2530 | M100: 13.36769
A101: 92 | B101: HEXAWARE | C101: 333.85 | D101: 334.13 | E101: 330.47 | F101: 327.08 | G101: 323.42 | H101: 337.52 | I101: 341.18 | J101: 344.57 | K101: 337.8 | L101: 330.75 | M101: 11.23117
A102: 93 | B102: HINDALCO | C102: 147.55 | D102: 146.97 | E102: 145.08 | F102: 142.62 | G102: 140.73 | H102: 149.43 | I102: 151.32 | J102: 153.78 | K102: 148.85 | L102: 144.5 | M102: 82.55408
A103: 94 | B103: HINDPETRO | C103: 222.35 | D103: 220.02 | E103: 216.83 | F103: 211.32 | G103: 208.13 | H103: 225.53 | I103: 228.72 | J103: 234.23 | K103: 223.2 | L103: 214.5 | M103: 92.83957
A104: 95 | B104: HINDUNILVR | C104: 2170.4 | D104: 2174.10 | E104: 2156.40 | F104: 2142.40 | G104: 2124.70 | H104: 2188.10 | I104: 2205.80 | J104: 2219.80 | K104: 2191.8 | L104: 2160.1 | M104: 15.32935
A105: 96 | B105: HINDZINC | C105: 198.25 | D105: 197.07 | E105: 194.78 | F105: 191.32 | G105: 189.03 | H105: 200.53 | I105: 202.82 | J105: 206.28 | K105: 199.35 | L105: 193.6 | M105: 6.54893
A106: 97 | B106: HUDCO | C106: 33.55 | D106: 33.80 | E106: 32.65 | F106: 31.75 | G106: 30.60 | H106: 34.70 | I106: 35.85 | J106: 36.75 | K106: 34.95 | L106: 32.9 | M106: 48.00803
A107: 98 | B107: HDFC | C107: 1835.15 | D107: 1813.45 | E107: 1782.10 | F107: 1729.05 | G107: 1697.70 | H107: 1866.50 | I107: 1897.85 | J107: 1950.90 | K107: 1844.8 | L107: 1760.4 | M107: 69.91685
A108: 99 | B108: ICICIBANK | C108: 364.05 | D108: 360.47 | E108: 355.18 | F108: 346.32 | G108: 341.03 | H108: 369.33 | I108: 374.62 | J108: 383.48 | K108: 365.75 | L108: 351.6 | M108: 369.22717
A109: 100 | B109: ICICIGI | C109: 1266.6 | D109: 1263.12 | E109: 1251.63 | F109: 1236.67 | G109: 1225.18 | H109: 1278.08 | I109: 1289.57 | J109: 1304.53 | K109: 1274.6 | L109: 1248.15 | M109: 4.05555
A110: 101 | B110: ICICIPRULI | C110: 419.65 | D110: 421.67 | E110: 415.13 | F110: 410.62 | G110: 404.08 | H110: 426.18 | I110: 432.72 | J110: 437.23 | K110: 428.2 | L110: 417.15 | M110: 13.378
A111: 102 | B111: IDBI | C111: 46.3 | D111: 45.72 | E111: 45.13 | F111: 43.97 | G111: 43.38 | H111: 46.88 | I111: 47.47 | J111: 48.63 | K111: 46.3 | L111: 44.55 | M111: 197.70995
A112: 103 | B112: IDFCFIRSTB | C112: 26.35 | D112: 26.12 | E112: 25.78 | F112: 25.22 | G112: 24.88 | H112: 26.68 | I112: 27.02 | J112: 27.58 | K112: 26.45 | L112: 25.55 | M112: 280.77591
A113: 104 | B113: ITC | C113: 202.9 | D113: 200.47 | E113: 197.08 | F113: 191.27 | G113: 187.88 | H113: 206.28 | I113: 209.67 | J113: 215.48 | K113: 203.85 | L113: 194.65 | M113: 442.98379
A114: 105 | B114: IBULHSGFIN | C114: 220.15 | D114: 218.78 | E114: 205.17 | F114: 190.18 | G114: 176.57 | H114: 233.77 | I114: 247.38 | J114: 262.37 | K114: 232.4 | L114: 203.8 | M114: 760.81142
A115: 106 | B115: IBVENTURES | C115: 119.9 | D115: 119.93 | E115: 115.92 | F115: 111.93 | G115: 107.92 | H115: 123.92 | I115: 127.93 | J115: 131.92 | K115: 123.95 | L115: 115.95 | M115: 52.62343
A116: 107 | B116: INDIANB | C116: 65.75 | D116: 64.25 | E116: 62.00 | F116: 58.25 | G116: 56.00 | H116: 68.00 | I116: 70.25 | J116: 74.00 | K116: 66.5 | L116: 60.5 | M116: 44.15178
A117: 108 | B117: INDHOTEL | C117: 79.2 | D117: 79.57 | E117: 78.63 | F117: 78.07 | G117: 77.13 | H117: 80.13 | I117: 81.07 | J117: 81.63 | K117: 80.5 | L117: 79 | M117: 7.22386
A118: 109 | B118: IOC | C118: 85.65 | D118: 85.37 | E118: 84.58 | F118: 83.52 | G118: 82.73 | H118: 86.43 | I118: 87.22 | J118: 88.28 | K118: 86.15 | L118: 84.3 | M118: 143.31346
A119: 110 | B119: IGL | C119: 438.7 | D119: 440.63 | E119: 435.32 | F119: 431.93 | G119: 426.62 | H119: 444.02 | I119: 449.33 | J119: 452.72 | K119: 445.95 | L119: 437.25 | M119: 21.08378
A120: 111 | B120: INDUSINDBK | C120: 492.45 | D120: 487.40 | E120: 480.20 | F120: 467.95 | G120: 460.75 | H120: 499.65 | I120: 506.85 | J120: 519.10 | K120: 494.6 | L120: 475.15 | M120: 205.09479
A121: 112 | B121: NAUKRI | C121: 2758.9 | D121: 2754.27 | E121: 2729.63 | F121: 2700.37 | G121: 2675.73 | H121: 2783.53 | I121: 2808.17 | J121: 2837.43 | K121: 2778.9 | L121: 2725 | M121: 2.82709
A122: 113 | B122: INFY | C122: 731.9 | D122: 734.65 | E122: 727.00 | F122: 722.10 | G122: 714.45 | H122: 739.55 | I122: 747.20 | J122: 752.10 | K122: 742.3 | L122: 729.75 | M122: 54.77687
A123: 114 | B123: INDIGO | C123: 995.65 | D123: 995.88 | E123: 984.77 | F123: 973.88 | G123: 962.77 | H123: 1006.77 | I123: 1017.88 | J123: 1028.77 | K123: 1007 | L123: 985 | M123: 8.67302
A124: 115 | B124: IPCALAB | C124: 1649.05 | D124: 1648.85 | E124: 1615.20 | F124: 1581.35 | G124: 1547.70 | H124: 1682.70 | I124: 1716.35 | J124: 1750.20 | K124: 1682.5 | L124: 1615 | M124: 2.62229
A125: 116 | B125: JSWENERGY | C125: 48.85 | D125: 48.68 | E125: 47.52 | F125: 46.18 | G125: 45.02 | H125: 50.02 | I125: 51.18 | J125: 52.52 | K125: 49.85 | L125: 47.35 | M125: 61.97702
A126: 117 | B126: JSWSTEEL | C126: 191.45 | D126: 191.02 | E126: 188.98 | F126: 186.52 | G126: 184.48 | H126: 193.48 | I126: 195.52 | J126: 197.98 | K126: 193.05 | L126: 188.55 | M126: 83.43254
A127: 118 | B127: JINDALSTEL | C127: 153.75 | D127: 156.38 | E127: 149.52 | F127: 145.28 | G127: 138.42 | H127: 160.62 | I127: 167.48 | J127: 171.72 | K127: 163.25 | L127: 152.15 | M127: 225.213
A128: 119 | B128: JUBLFOOD | C128: 1697.1 | D128: 1710.70 | E128: 1676.40 | F128: 1655.70 | G128: 1621.40 | H128: 1731.40 | I128: 1765.70 | J128: 1786.40 | K128: 1745 | L128: 1690 | M128: 5.84157
A129: 120 | B129: JUBILANT | C129: 664.65 | D129: 664.37 | E129: 657.73 | F129: 650.82 | G129: 644.18 | H129: 671.28 | I129: 677.92 | J129: 684.83 | K129: 671 | L129: 657.45 | M129: 2.33334
A130: 121 | B130: KOTAKBANK | C130: 1356.75 | D130: 1345.85 | E130: 1326.90 | F130: 1297.05 | G130: 1278.10 | H130: 1375.70 | I130: 1394.65 | J130: 1424.50 | K130: 1364.8 | L130: 1316 | M130: 89.39592
A131: 122 | B131: L&TFH | C131: 67.65 | D131: 67.17 | E131: 66.08 | F131: 64.52 | G131: 63.43 | H131: 68.73 | I131: 69.82 | J131: 71.38 | K131: 68.25 | L131: 65.6 | M131: 121.69387
A132: 123 | B132: LTTS | C132: 1298.7 | D132: 1290.08 | E132: 1273.62 | F132: 1248.53 | G132: 1232.07 | H132: 1315.17 | I132: 1331.63 | J132: 1356.72 | K132: 1306.55 | L132: 1265 | M132: 2.06827
A133: 124 | B133: LICHSGFIN | C133: 276.5 | D133: 273.45 | E133: 268.55 | F133: 260.60 | G133: 255.70 | H133: 281.40 | I133: 286.30 | J133: 294.25 | K133: 278.35 | L133: 265.5 | M133: 77.91843
A134: 125 | B134: LTI | C134: 1937.4 | D134: 1943.80 | E134: 1918.60 | F134: 1899.80 | G134: 1874.60 | H134: 1962.60 | I134: 1987.80 | J134: 2006.60 | K134: 1969 | L134: 1925 | M134: 0.84097
A135: 126 | B135: LT | C135: 924.3 | D135: 927.43 | E135: 913.87 | F135: 903.43 | G135: 889.87 | H135: 937.87 | I135: 951.43 | J135: 961.87 | K135: 941 | L135: 917 | M135: 64.26447
A136: 127 | B136: LUPIN | C136: 903.4 | D136: 901.97 | E136: 892.98 | F136: 882.57 | G136: 873.58 | H136: 912.38 | I136: 921.37 | J136: 931.78 | K136: 910.95 | L136: 891.55 | M136: 21.84248
A137: 128 | B137: MRF | C137: 65836.8 | D137: 66078.93 | E137: 65357.87 | F137: 64878.93 | G137: 64157.87 | H137: 66557.87 | I137: 67278.93 | J137: 67757.87 | K137: 66800 | L137: 65600 | M137: 0.1367
A138: 129 | B138: MGL | C138: 1050.05 | D138: 1047.52 | E138: 1036.13 | F138: 1022.22 | G138: 1010.83 | H138: 1061.43 | I138: 1072.82 | J138: 1086.73 | K138: 1058.9 | L138: 1033.6 | M138: 6.31653
A139: 130 | B139: M&MFIN | C139: 173.3 | D139: 171.00 | E139: 167.10 | F139: 160.90 | G139: 157.00 | H139: 177.20 | I139: 181.10 | J139: 187.30 | K139: 174.9 | L139: 164.8 | M139: 126.08406
A140: 131 | B140: M&M | C140: 498.95 | D140: 504.87 | E140: 488.33 | F140: 477.72 | G140: 461.18 | H140: 515.48 | I140: 532.02 | J140: 542.63 | K140: 521.4 | L140: 494.25 | M140: 89.90865
A141: 132 | B141: MANAPPURAM | C141: 158.3 | D141: 156.45 | E141: 154.00 | F141: 149.70 | G141: 147.25 | H141: 160.75 | I141: 163.20 | J141: 167.50 | K141: 158.9 | L141: 152.15 | M141: 141.52106
A142: 133 | B142: MRPL | C142: 36.9 | D142: 36.93 | E142: 36.22 | F142: 35.53 | G142: 34.82 | H142: 37.62 | I142: 38.33 | J142: 39.02 | K142: 37.65 | L142: 36.25 | M142: 8.64975
A143: 134 | B143: MARICO | C143: 351.3 | D143: 352.37 | E143: 348.73 | F143: 346.17 | G143: 342.53 | H143: 354.93 | I143: 358.57 | J143: 361.13 | K143: 356 | L143: 349.8 | M143: 28.34826
A144: 135 | B144: MARUTI | C144: 5803.1 | D144: 5821.03 | E144: 5757.07 | F144: 5711.03 | G144: 5647.07 | H144: 5867.07 | I144: 5931.03 | J144: 5977.07 | K144: 5885 | L144: 5775 | M144: 12.84965
A145: 136 | B145: MFSL | C145: 536.7 | D145: 533.57 | E145: 522.13 | F145: 507.57 | G145: 496.13 | H145: 548.13 | I145: 559.57 | J145: 574.13 | K145: 545 | L145: 519 | M145: 24.14676
A146: 137 | B146: MINDTREE | C146: 923.7 | D146: 926.30 | E146: 915.80 | F146: 907.90 | G146: 897.40 | H146: 934.20 | I146: 944.70 | J146: 952.60 | K146: 936.8 | L146: 918.4 | M146: 3.61582
A147: 138 | B147: MOTHERSUMI | C147: 97.1 | D147: 96.20 | E147: 94.75 | F147: 92.40 | G147: 90.95 | H147: 98.55 | I147: 100.00 | J147: 102.35 | K147: 97.65 | L147: 93.85 | M147: 117.58794
A148: 139 | B148: MPHASIS | C148: 882 | D148: 876.87 | E148: 862.63 | F148: 843.27 | G148: 829.03 | H148: 896.23 | I148: 910.47 | J148: 929.83 | K148: 891.1 | L148: 857.5 | M148: 2.50867
A149: 140 | B149: MUTHOOTFIN | C149: 1096.95 | D149: 1104.98 | E149: 1076.97 | F149: 1056.98 | G149: 1028.97 | H149: 1124.97 | I149: 1152.98 | J149: 1172.97 | K149: 1133 | L149: 1085 | M149: 38.2482
A150: 141 | B150: NATCOPHARM | C150: 637.2 | D150: 635.30 | E150: 627.00 | F150: 616.80 | G150: 608.50 | H150: 645.50 | I150: 653.80 | J150: 664.00 | K150: 643.6 | L150: 625.1 | M150: 1.91294
A151: 142 | B151: NBCC | C151: 23.4 | D151: 23.35 | E151: 23.05 | F151: 22.70 | G151: 22.40 | H151: 23.70 | I151: 24.00 | J151: 24.35 | K151: 23.65 | L151: 23 | M151: 48.81509
A152: 143 | B152: NHPC | C152: 20.05 | D152: 20.08 | E152: 19.92 | F152: 19.78 | G152: 19.62 | H152: 20.22 | I152: 20.38 | J152: 20.52 | K152: 20.25 | L152: 19.95 | M152: 27.15112
A153: 144 | B153: NMDC | C153: 81 | D153: 81.03 | E153: 80.02 | F153: 79.03 | G153: 78.02 | H153: 82.02 | I153: 83.03 | J153: 84.02 | K153: 82.05 | L153: 80.05 | M153: 48.94809
A154: 145 | B154: NTPC | C154: 93.6 | D154: 93.53 | E154: 92.37 | F154: 91.13 | G154: 89.97 | H154: 94.77 | I154: 95.93 | J154: 97.17 | K154: 94.7 | L154: 92.3 | M154: 216.39174
A155: 146 | B155: NATIONALUM | C155: 31.6 | D155: 31.65 | E155: 31.20 | F155: 30.80 | G155: 30.35 | H155: 32.05 | I155: 32.50 | J155: 32.90 | K155: 32.1 | L155: 31.25 | M155: 71.75025
A156: 147 | B156: NESTLEIND | C156: 16798.85 | D156: 16907.95 | E156: 16610.90 | F156: 16422.95 | G156: 16125.90 | H156: 17095.90 | I156: 17392.95 | J156: 17580.90 | K156: 17205 | L156: 16720 | M156: 2.16945
A157: 148 | B157: NAM-INDIA | C157: 313.95 | D157: 315.72 | E157: 311.03 | F157: 308.12 | G157: 303.43 | H157: 318.63 | I157: 323.32 | J157: 326.23 | K157: 320.4 | L157: 312.8 | M157: 9.84243
A158: 149 | B158: OBEROIRLTY | C158: 361.05 | D158: 362.05 | E158: 355.10 | F158: 349.15 | G158: 342.20 | H158: 368.00 | I158: 374.95 | J158: 380.90 | K158: 369 | L158: 356.1 | M158: 2.59231
A159: 150 | B159: ONGC | C159: 80.45 | D159: 79.90 | E159: 78.85 | F159: 77.25 | G159: 76.20 | H159: 81.50 | I159: 82.55 | J159: 84.15 | K159: 80.95 | L159: 78.3 | M159: 353.44809
A160: 151 | B160: OIL | C160: 94.8 | D160: 94.17 | E160: 93.33 | F160: 91.87 | G160: 91.03 | H160: 95.63 | I160: 96.47 | J160: 97.93 | K160: 95 | L160: 92.7 | M160: 10.90661
A161: 152 | B161: OFSS | C161: 2849.65 | D161: 2849.90 | E161: 2772.80 | F161: 2695.95 | G161: 2618.85 | H161: 2926.75 | I161: 3003.85 | J161: 3080.70 | K161: 2927 | L161: 2773.05 | M161: 0.8643
A162: 153 | B162: PIIND | C162: 1533.95 | D162: 1529.55 | E162: 1504.40 | F162: 1474.85 | G162: 1449.70 | H162: 1559.10 | I162: 1584.25 | J162: 1613.80 | K162: 1554.7 | L162: 1500 | M162: 3.22172
A163: 154 | B163: PNBHOUSING | C163: 217.9 | D163: 214.27 | E163: 210.63 | F163: 203.37 | G163: 199.73 | H163: 221.53 | I163: 225.17 | J163: 232.43 | K163: 217.9 | L163: 207 | M163: 6.05227
A164: 155 | B164: PAGEIND | C164: 20247.2 | D164: 20170.50 | E164: 19988.60 | F164: 19730.00 | G164: 19548.10 | H164: 20429.10 | I164: 20611.00 | J164: 20869.60 | K164: 20352.4 | L164: 19911.9 | M164: 0.24465
A165: 156 | B165: PETRONET | C165: 257.35 | D165: 256.87 | E165: 252.98 | F165: 248.62 | G165: 244.73 | H165: 261.23 | I165: 265.12 | J165: 269.48 | K165: 260.75 | L165: 252.5 | M165: 57.17559
A166: 157 | B166: PFIZER | C166: 3973.75 | D166: 3977.92 | E166: 3955.83 | F166: 3937.92 | G166: 3915.83 | H166: 3995.83 | I166: 4017.92 | J166: 4035.83 | K166: 4000 | L166: 3960 | M166: 0.1837
A167: 158 | B167: PIDILITIND | C167: 1370.75 | D167: 1370.77 | E167: 1357.58 | F167: 1344.42 | G167: 1331.23 | H167: 1383.93 | I167: 1397.12 | J167: 1410.28 | K167: 1383.95 | L167: 1357.6 | M167: 6.56829
A168: 159 | B168: PEL | C168: 1377.95 | D168: 1372.60 | E168: 1357.35 | F168: 1336.75 | G168: 1321.50 | H168: 1393.20 | I168: 1408.45 | J168: 1429.05 | K168: 1387.85 | L168: 1352 | M168: 13.67878
A169: 160 | B169: PFC | C169: 84.65 | D169: 84.57 | E169: 83.63 | F169: 82.62 | G169: 81.68 | H169: 85.58 | I169: 86.52 | J169: 87.53 | K169: 85.5 | L169: 83.55 | M169: 52.54933
A170: 161 | B170: POWERGRID | C170: 173.45 | D170: 173.58 | E170: 171.77 | F170: 170.08 | G170: 168.27 | H170: 175.27 | I170: 177.08 | J170: 178.77 | K170: 175.4 | L170: 171.9 | M170: 85.55691
A171: 162 | B171: PRESTIGE | C171: 205.55 | D171: 207.15 | E171: 203.40 | F171: 201.25 | G171: 197.50 | H171: 209.30 | I171: 213.05 | J171: 215.20 | K171: 210.9 | L171: 205 | M171: 3.84436
A172: 163 | B172: PGHH | C172: 10233.4 | D172: 10181.45 | E172: 10067.95 | F172: 9902.50 | G172: 9789.00 | H172: 10346.90 | I172: 10460.40 | J172: 10625.85 | K172: 10294.95 | L172: 10016 | M172: 0.04146
A173: 164 | B173: PNB | C173: 36.4 | D173: 35.82 | E173: 35.08 | F173: 33.77 | G173: 33.03 | H173: 37.13 | I173: 37.87 | J173: 39.18 | K173: 36.55 | L173: 34.5 | M173: 394.14255
A174: 165 | B174: QUESS | C174: 349.9 | D174: 353.47 | E174: 343.93 | F174: 337.97 | G174: 328.43 | H174: 359.43 | I174: 368.97 | J174: 374.93 | K174: 363 | L174: 347.5 | M174: 3.56963
A175: 166 | B175: RBLBANK | C175: 173.95 | D175: 174.20 | E175: 170.90 | F175: 167.85 | G175: 164.55 | H175: 177.25 | I175: 180.55 | J175: 183.60 | K175: 177.5 | L175: 171.15 | M175: 311.14519
A176: 167 | B176: RECLTD | C176: 108.6 | D176: 108.32 | E176: 106.88 | F176: 105.17 | G176: 103.73 | H176: 110.03 | I176: 111.47 | J176: 113.18 | K176: 109.75 | L176: 106.6 | M176: 73.52264
A177: 168 | B177: RAJESHEXPO | C177: 467.2 | D177: 470.07 | E177: 460.13 | F177: 453.07 | G177: 443.13 | H177: 477.13 | I177: 487.07 | J177: 494.13 | K177: 480 | L177: 463 | M177: 2.71586
A178: 169 | B178: RELIANCE | C178: 1737.6 | D178: 1731.55 | E178: 1714.10 | F178: 1690.60 | G178: 1673.15 | H178: 1755.05 | I178: 1772.50 | J178: 1796.00 | K178: 1749 | L178: 1708.05 | M178: 131.36706
A179: 170 | B179: SBILIFE | C179: 805.25 | D179: 809.03 | E179: 798.22 | F179: 791.18 | G179: 780.37 | H179: 816.07 | I179: 826.88 | J179: 833.92 | K179: 819.85 | L179: 802 | M179: 13.21001
A180: 171 | B180: SRF | C180: 3597.95 | D180: 3603.70 | E180: 3579.25 | F180: 3560.55 | G180: 3536.10 | H180: 3622.40 | I180: 3646.85 | J180: 3665.55 | K180: 3628.15 | L180: 3585 | M180: 1.01975
A181: 172 | B181: SHREECEM | C181: 22663.5 | D181: 22798.43 | E181: 22381.87 | F181: 22100.23 | G181: 21683.67 | H181: 23080.07 | I181: 23496.63 | J181: 23778.27 | K181: 23215 | L181: 22516.8 | M181: 0.71638
A182: 173 | B182: SRTRANSFIN | C182: 701.35 | D182: 698.80 | E182: 687.60 | F182: 673.85 | G182: 662.65 | H182: 712.55 | I182: 723.75 | J182: 737.50 | K182: 710 | L182: 685.05 | M182: 37.33942
A183: 174 | B183: SIEMENS | C183: 1094.95 | D183: 1095.50 | E183: 1081.90 | F183: 1068.85 | G183: 1055.25 | H183: 1108.55 | I183: 1122.15 | J183: 1135.20 | K183: 1109.1 | L183: 1082.45 | M183: 4.79828
A184: 175 | B184: SBIN | C184: 184.8 | D184: 182.93 | E184: 180.47 | F184: 176.13 | G184: 173.67 | H184: 187.27 | I184: 189.73 | J184: 194.07 | K184: 185.4 | L184: 178.6 | M184: 540.15536
A185: 176 | B185: SAIL | C185: 30.35 | D185: 30.35 | E185: 30.00 | F185: 29.65 | G185: 29.30 | H185: 30.70 | I185: 31.05 | J185: 31.40 | K185: 30.7 | L185: 30 | M185: 220.10171
A186: 177 | B186: STRTECH | C186: 117.55 | D186: 115.72 | E186: 112.13 | F186: 106.72 | G186: 103.13 | H186: 121.13 | I186: 124.72 | J186: 130.13 | K186: 119.3 | L186: 110.3 | M186: 27.25087
A187: 178 | B187: SUNPHARMA | C187: 468.15 | D187: 470.03 | E187: 464.27 | F187: 460.38 | G187: 454.62 | H187: 473.92 | I187: 479.68 | J187: 483.57 | K187: 475.8 | L187: 466.15 | M187: 59.8401
A188: 179 | B188: SUNTV | C188: 402.05 | D188: 405.40 | E188: 397.00 | F188: 391.95 | G188: 383.55 | H188: 410.45 | I188: 418.85 | J188: 423.90 | K188: 413.8 | L188: 400.35 | M188: 21.29535
A189: 180 | B189: SYNGENE | C189: 408.3 | D189: 408.43 | E189: 401.87 | F189: 395.43 | G189: 388.87 | H189: 414.87 | I189: 421.43 | J189: 427.87 | K189: 415 | L189: 402 | M189: 5.66303
A190: 181 | B190: TVSMOTOR | C190: 383.85 | D190: 382.50 | E190: 378.50 | F190: 373.15 | G190: 369.15 | H190: 387.85 | I190: 391.85 | J190: 397.20 | K190: 386.5 | L190: 377.15 | M190: 14.58044
A191: 182 | B191: TCS | C191: 2092.05 | D191: 2095.17 | E191: 2076.38 | F191: 2060.72 | G191: 2041.93 | H191: 2110.83 | I191: 2129.62 | J191: 2145.28 | K191: 2113.95 | L191: 2079.5 | M191: 25.03466
A192: 183 | B192: TATACONSUM | C192: 384.5 | D192: 384.50 | E192: 380.50 | F192: 376.50 | G192: 372.50 | H192: 388.50 | I192: 392.50 | J192: 396.50 | K192: 388.5 | L192: 380.5 | M192: 16.1156
A193: 184 | B193: TATAMTRDVR | C193: 40.95 | D193: 40.70 | E193: 40.10 | F193: 39.25 | G193: 38.65 | H193: 41.55 | I193: 42.15 | J193: 43.00 | K193: 41.3 | L193: 39.85 | M193: 32.68496
A194: 185 | B194: TATAMOTORS | C194: 100.75 | D194: 100.13 | E194: 98.82 | F194: 96.88 | G194: 95.57 | H194: 102.07 | I194: 103.38 | J194: 105.32 | K194: 101.45 | L194: 98.2 | M194: 508.68246
A195: 186 | B195: TATAPOWER | C195: 46.1 | D195: 45.62 | E195: 44.53 | F195: 42.97 | G195: 41.88 | H195: 47.18 | I195: 48.27 | J195: 49.83 | K195: 46.7 | L195: 44.05 | M195: 288.9435
A196: 187 | B196: TATASTEEL | C196: 323.7 | D196: 324.53 | E196: 319.47 | F196: 315.23 | G196: 310.17 | H196: 328.77 | I196: 333.83 | J196: 338.07 | K196: 329.6 | L196: 320.3 | M196: 104.89533
A197: 188 | B197: TECHM | C197: 545.9 | D197: 543.10 | E197: 538.85 | F197: 531.80 | G197: 527.55 | H197: 550.15 | I197: 554.40 | J197: 561.45 | K197: 547.35 | L197: 536.05 | M197: 36.62565
A198: 189 | B198: NIACL | C198: 120.55 | D198: 120.75 | E198: 118.50 | F198: 116.45 | G198: 114.20 | H198: 122.80 | I198: 125.05 | J198: 127.10 | K198: 123 | L198: 118.7 | M198: 30.77262
A199: 190 | B199: RAMCOCEM | C199: 650.1 | D199: 645.50 | E199: 638.00 | F199: 625.90 | G199: 618.40 | H199: 657.60 | I199: 665.10 | J199: 677.20 | K199: 653 | L199: 633.4 | M199: 6.95375
A200: 191 | B200: TITAN | C200: 948.2 | D200: 953.90 | E200: 939.30 | F200: 930.40 | G200: 915.80 | H200: 962.80 | I200: 977.40 | J200: 986.30 | K200: 968.5 | L200: 945 | M200: 30.43356
A201: 192 | B201: TORNTPHARM | C201: 2338.1 | D201: 2352.70 | E201: 2311.40 | F201: 2284.70 | G201: 2243.40 | H201: 2379.40 | I201: 2420.70 | J201: 2447.40 | K201: 2394 | L201: 2326 | M201: 4.27437
A202: 193 | B202: TORNTPOWER | C202: 321.8 | D202: 321.13 | E202: 317.77 | F202: 313.73 | G202: 310.37 | H202: 325.17 | I202: 328.53 | J202: 332.57 | K202: 324.5 | L202: 317.1 | M202: 9.97028
A203: 194 | B203: UPL | C203: 446.95 | D203: 441.65 | E203: 434.30 | F203: 421.65 | G203: 414.30 | H203: 454.30 | I203: 461.65 | J203: 474.30 | K203: 449 | L203: 429 | M203: 81.80143
A204: 195 | B204: ULTRACEMCO | C204: 3898.6 | D204: 3898.22 | E204: 3862.48 | F204: 3826.37 | G204: 3790.63 | H204: 3934.33 | I204: 3970.07 | J204: 4006.18 | K204: 3933.95 | L204: 3862.1 | M204: 3.31198
A205: 196 | B205: UNIONBANK | C205: 32.5 | D205: 32.22 | E205: 31.83 | F205: 31.17 | G205: 30.78 | H205: 32.88 | I205: 33.27 | J205: 33.93 | K205: 32.6 | L205: 31.55 | M205: 42.7817
... 30 more rows

Sheet MidCap Intra
L5: Back To Main Page
A6: FOR INTRA DAY TRADING | K6: =Main!B10 -> 2020-07-02
A9: Sr.no | B9: Scrip | C9: CLOSE RATE | D9: Pivot Point | E9: Supports | H9: Resistances
C10: Point | E10: S1 | F10: S2 | G10: S3 | H10: R1 | I10: R2 | J10: R3 | K10: HIGH | L10: LOW | M10: Total Trade Quanity in Lakhs
A11: 1 | B11: 3MINDIA | C11: 18605.4 | D11: 18687.13 | E11: 18418.27 | F11: 18231.13 | G11: 17962.27 | H11: 18874.27 | I11: 19143.13 | J11: 19330.27 | K11: 18956 | L11: 18500 | M11: 0.05815
A12: 2 | B12: AARTIIND | C12: 926.3 | D12: 929.10 | E12: 922.20 | F12: 918.10 | G12: 911.20 | H12: 933.20 | I12: 940.10 | J12: 944.20 | K12: 936 | L12: 925 | M12: 1.29159
A13: 3 | B13: AAVAS | C13: 1315.45 | D13: 1327.03 | E13: 1298.42 | F13: 1281.38 | G13: 1252.77 | H13: 1344.07 | I13: 1372.68 | J13: 1389.72 | K13: 1355.65 | L13: 1310 | M13: 0.25694
A14: 4 | B14: ABBOTINDIA | C14: 15755.95 | D14: 15792.85 | E14: 15695.20 | F14: 15634.45 | G14: 15536.80 | H14: 15853.60 | I14: 15951.25 | J14: 16012.00 | K14: 15890.5 | L14: 15732.1 | M14: 0.04858
A15: 5 | B15: ABCAPITAL | C15: 64.3 | D15: 64.02 | E15: 62.78 | F15: 61.27 | G15: 60.03 | H15: 65.53 | I15: 66.77 | J15: 68.28 | K15: 65.25 | L15: 62.5 | M15: 25.97459
A16: 6 | B16: ABFRL | C16: 123.8 | D16: 124.37 | E16: 122.48 | F16: 121.17 | G16: 119.28 | H16: 125.68 | I16: 127.57 | J16: 128.88 | K16: 126.25 | L16: 123.05 | M16: 8.78487
A17: 7 | B17: ACC | C17: 1325.95 | D17: 1324.87 | E17: 1309.73 | F17: 1293.52 | G17: 1278.38 | H17: 1341.08 | I17: 1356.22 | J17: 1372.43 | K17: 1340 | L17: 1308.65 | M17: 14.11969
A18: 8 | B18: ADANIGAS | C18: 159.15 | D18: 156.97 | E18: 153.43 | F18: 147.72 | G18: 144.18 | H18: 162.68 | I18: 166.22 | J18: 171.93 | K18: 160.5 | L18: 151.25 | M18: 23.98246
A19: 9 | B19: ADANIGREEN | C19: 340.95 | D19: 340.95 | E19: 340.95 | F19: 340.95 | G19: 340.95 | H19: 340.95 | I19: 340.95 | J19: 340.95 | K19: 340.95 | L19: 340.95 | M19: 0.80914
A20: 10 | B20: ADANIPORTS | C20: 343.8 | D20: 344.05 | E20: 341.05 | F20: 338.30 | G20: 335.30 | H20: 346.80 | I20: 349.80 | J20: 352.55 | K20: 347.05 | L20: 341.3 | M20: 12.0208
A21: 11 | B21: ADANIPOWER | C21: 35.9 | D21: 35.92 | E21: 35.73 | F21: 35.57 | G21: 35.38 | H21: 36.08 | I21: 36.27 | J21: 36.43 | K21: 36.1 | L21: 35.75 | M21: 24.51686
A22: 12 | B22: ADANITRANS | C22: 264 | D22: 264.30 | E22: 258.70 | F22: 253.40 | G22: 247.80 | H22: 269.60 | I22: 275.20 | J22: 280.50 | K22: 269.9 | L22: 259 | M22: 3.43745
A23: 13 | B23: ADVENZYMES | C23: 172.5 | D23: 172.12 | E23: 169.23 | F23: 165.97 | G23: 163.08 | H23: 175.38 | I23: 178.27 | J23: 181.53 | K23: 175 | L23: 168.85 | M23: 0.81534
A24: 14 | B24: AEGISCHEM | C24: 174.75 | D24: 175.63 | E24: 172.12 | F24: 169.48 | G24: 165.97 | H24: 178.27 | I24: 181.78 | J24: 184.42 | K24: 179.15 | L24: 173 | M24: 3.66588
A25: 15 | B25: AFFLE | C25: 1450.8 | D25: 1453.70 | E25: 1437.15 | F25: 1423.50 | G25: 1406.95 | H25: 1467.35 | I25: 1483.90 | J25: 1497.55 | K25: 1470.25 | L25: 1440.05 | M25: 0.22048
A26: 16 | B26: AIAENG | C26: 1586.95 | D26: 1596.30 | E26: 1567.65 | F26: 1548.35 | G26: 1519.70 | H26: 1615.60 | I26: 1644.25 | J26: 1663.55 | K26: 1624.95 | L26: 1577 | M26: 0.27466
A27: 17 | B27: AJANTPHARM | C27: 1430.1 | D27: 1426.27 | E27: 1416.53 | F27: 1402.97 | G27: 1393.23 | H27: 1439.83 | I27: 1449.57 | J27: 1463.13 | K27: 1436 | L27: 1412.7 | M27: 0.90205
A28: 18 | B28: AKZOINDIA | C28: 1808.8 | D28: 1816.17 | E28: 1794.93 | F28: 1781.07 | G28: 1759.83 | H28: 1830.03 | I28: 1851.27 | J28: 1865.13 | K28: 1837.4 | L28: 1802.3 | M28: 0.09326
A29: 19 | B29: ALKEM | C29: 2352.15 | D29: 2357.88 | E29: 2337.92 | F29: 2323.68 | G29: 2303.72 | H29: 2372.12 | I29: 2392.08 | J29: 2406.32 | K29: 2377.85 | L29: 2343.65 | M29: 0.72516
A30: 20 | B30: ALLCARGO | C30: 80.2 | D30: 80.35 | E30: 78.35 | F30: 76.50 | G30: 74.50 | H30: 82.20 | I30: 84.20 | J30: 86.05 | K30: 82.35 | L30: 78.5 | M30: 1.19976
A31: 21 | B31: AMARAJABAT | C31: 660.6 | D31: 658.48 | E31: 651.02 | F31: 641.43 | G31: 633.97 | H31: 668.07 | I31: 675.53 | J31: 685.12 | K31: 665.95 | L31: 648.9 | M31: 10.91795
A32: 22 | B32: AMBER | C32: 1442.2 | D32: 1442.37 | E32: 1426.38 | F32: 1410.57 | G32: 1394.58 | H32: 1458.18 | I32: 1474.17 | J32: 1489.98 | K32: 1458.35 | L32: 1426.55 | M32: 0.42175
A33: 23 | B33: AMBUJACEM | C33: 192.2 | D33: 192.77 | E33: 189.83 | F33: 187.47 | G33: 184.53 | H33: 195.13 | I33: 198.07 | J33: 200.43 | K33: 195.7 | L33: 190.4 | M33: 28.67676
A34: 24 | B34: APLAPOLLO | C34: 1620.1 | D34: 1600.05 | E34: 1575.10 | F34: 1530.10 | G34: 1505.15 | H34: 1645.05 | I34: 1670.00 | J34: 1715.00 | K34: 1625 | L34: 1555.05 | M34: 1.01826
A35: 25 | B35: APLLTD | C35: 906.2 | D35: 907.72 | E35: 886.48 | F35: 866.77 | G35: 845.53 | H35: 927.43 | I35: 948.67 | J35: 968.38 | K35: 928.95 | L35: 888 | M35: 4.10457
A36: 26 | B36: APOLLOHOSP | C36: 1319.65 | D36: 1328.07 | E36: 1302.58 | F36: 1285.52 | G36: 1260.03 | H36: 1345.13 | I36: 1370.62 | J36: 1387.68 | K36: 1353.55 | L36: 1311 | M36: 10.66672
A37: 27 | B37: APOLLOTYRE | C37: 109.75 | D37: 109.67 | E37: 108.43 | F37: 107.12 | G37: 105.88 | H37: 110.98 | I37: 112.22 | J37: 113.53 | K37: 110.9 | L37: 108.35 | M37: 53.14438
A38: 28 | B38: ARVINDFASN | C38: 160.7 | D38: 163.98 | E38: 155.97 | F38: 151.23 | G38: 143.22 | H38: 168.72 | I38: 176.73 | J38: 181.47 | K38: 172 | L38: 159.25 | M38: 0.67512
A39: 29 | B39: ASAHIINDIA | C39: 175.4 | D39: 175.02 | E39: 173.43 | F39: 171.47 | G39: 169.88 | H39: 176.98 | I39: 178.57 | J39: 180.53 | K39: 176.6 | L39: 173.05 | M39: 0.17383
A40: 30 | B40: ASHOKA | C40: 62.4 | D40: 62.13 | E40: 60.67 | F40: 58.93 | G40: 57.47 | H40: 63.87 | I40: 65.33 | J40: 67.07 | K40: 63.6 | L40: 60.4 | M40: 38.36694
A41: 31 | B41: ASHOKLEY | C41: 48.2 | D41: 47.88 | E41: 47.17 | F41: 46.13 | G41: 45.42 | H41: 48.92 | I41: 49.63 | J41: 50.67 | K41: 48.6 | L41: 46.85 | M41: 525.70261
A42: 32 | B42: ASIANPAINT | C42: 1688 | D42: 1688.68 | E42: 1679.37 | F42: 1670.73 | G42: 1661.42 | H42: 1697.32 | I42: 1706.63 | J42: 1715.27 | K42: 1698 | L42: 1680.05 | M42: 16.61301
A43: 33 | B43: ASTERDM | C43: 121.95 | D43: 122.45 | E43: 120.65 | F43: 119.35 | G43: 117.55 | H43: 123.75 | I43: 125.55 | J43: 126.85 | K43: 124.25 | L43: 121.15 | M43: 1.40233
A44: 34 | B44: ASTRAL | C44: 955.35 | D44: 956.62 | E44: 943.73 | F44: 932.12 | G44: 919.23 | H44: 968.23 | I44: 981.12 | J44: 992.73 | K44: 969.5 | L44: 945 | M44: 1.66757
A45: 35 | B45: ASTRAZEN | C45: 3552.4 | D45: 3536.83 | E45: 3485.57 | F45: 3418.73 | G45: 3367.47 | H45: 3603.67 | I45: 3654.93 | J45: 3721.77 | K45: 3588.1 | L45: 3470 | M45: 0.55715
A46: 36 | B46: ATUL | C46: 4509.4 | D46: 4513.80 | E46: 4475.60 | F46: 4441.80 | G46: 4403.60 | H46: 4547.60 | I46: 4585.80 | J46: 4619.60 | K46: 4552 | L46: 4480 | M46: 0.09771
A47: 37 | B47: AUBANK | C47: 558.5 | D47: 556.17 | E47: 544.33 | F47: 530.17 | G47: 518.33 | H47: 570.33 | I47: 582.17 | J47: 596.33 | K47: 568 | L47: 542 | M47: 3.66183
A48: 38 | B48: AUROPHARMA | C48: 775.75 | D48: 774.75 | E48: 767.55 | F48: 759.35 | G48: 752.15 | H48: 782.95 | I48: 790.15 | J48: 798.35 | K48: 781.95 | L48: 766.55 | M48: 29.32066
A49: 39 | B49: AVANTIFEED | C49: 495.8 | D49: 497.67 | E49: 488.33 | F49: 480.87 | G49: 471.53 | H49: 505.13 | I49: 514.47 | J49: 521.93 | K49: 507 | L49: 490.2 | M49: 9.73794
A50: 40 | B50: AXISBANK | C50: 433.25 | D50: 425.75 | E50: 414.15 | F50: 395.05 | G50: 383.45 | H50: 444.85 | I50: 456.45 | J50: 475.55 | K50: 437.35 | L50: 406.65 | M50: 533.80997
A51: 41 | B51: BAJAJ-AUTO | C51: 2842.05 | D51: 2847.55 | E51: 2823.10 | F51: 2804.15 | G51: 2779.70 | H51: 2866.50 | I51: 2890.95 | J51: 2909.90 | K51: 2872 | L51: 2828.6 | M51: 5.25801
A52: 42 | B52: BAJAJCON | C52: 146.9 | D52: 146.97 | E52: 145.43 | F52: 143.97 | G52: 142.43 | H52: 148.43 | I52: 149.97 | J52: 151.43 | K52: 148.5 | L52: 145.5 | M52: 2.1172
A53: 43 | B53: BAJAJELEC | C53: 389.7 | D53: 390.03 | E53: 383.97 | F53: 378.23 | G53: 372.17 | H53: 395.77 | I53: 401.83 | J53: 407.57 | K53: 396.1 | L53: 384.3 | M53: 1.34635
A54: 44 | B54: BAJAJFINSV | C54: 6169.35 | D54: 6055.60 | E54: 5916.40 | F54: 5663.45 | G54: 5524.25 | H54: 6308.55 | I54: 6447.75 | J54: 6700.70 | K54: 6194.8 | L54: 5802.65 | M54: 17.24244
A55: 45 | B55: BAJAJHLDNG | C55: 2570.15 | D55: 2567.90 | E55: 2536.25 | F55: 2502.35 | G55: 2470.70 | H55: 2601.80 | I55: 2633.45 | J55: 2667.35 | K55: 2599.55 | L55: 2534 | M55: 0.56481
A56: 46 | B56: BAJFINANCE | C56: 2953.9 | D56: 2909.53 | E56: 2850.37 | F56: 2746.83 | G56: 2687.67 | H56: 3013.07 | I56: 3072.23 | J56: 3175.77 | K56: 2968.7 | L56: 2806 | M56: 127.05275
A57: 47 | B57: BALKRISIND | C57: 1269.85 | D57: 1275.28 | E57: 1256.57 | F57: 1243.28 | G57: 1224.57 | H57: 1288.57 | I57: 1307.28 | J57: 1320.57 | K57: 1294 | L57: 1262 | M57: 8.16698
A58: 48 | B58: BALMLAWRIE | C58: 112.5 | D58: 112.63 | E58: 111.47 | F58: 110.43 | G58: 109.27 | H58: 113.67 | I58: 114.83 | J58: 115.87 | K58: 113.8 | L58: 111.6 | M58: 2.94998
A59: 49 | B59: BALRAMCHIN | C59: 133.55 | D59: 134.48 | E59: 132.17 | F59: 130.78 | G59: 128.47 | H59: 135.87 | I59: 138.18 | J59: 139.57 | K59: 136.8 | L59: 133.1 | M59: 15.83184
A60: 50 | B60: BANDHANBNK | C60: 325.85 | D60: 323.85 | E60: 317.00 | F60: 308.15 | G60: 301.30 | H60: 332.70 | I60: 339.55 | J60: 348.40 | K60: 330.7 | L60: 315 | M60: 132.25572
A61: 51 | B61: BANKBARODA | C61: 51.4 | D61: 50.43 | E61: 49.17 | F61: 46.93 | G61: 45.67 | H61: 52.67 | I61: 53.93 | J61: 56.17 | K61: 51.7 | L61: 48.2 | M61: 563.78625
A62: 52 | B62: BANKINDIA | C62: 50.15 | D62: 49.57 | E62: 48.63 | F62: 47.12 | G62: 46.18 | H62: 51.08 | I62: 52.02 | J62: 53.53 | K62: 50.5 | L62: 48.05 | M62: 41.26731
A63: 53 | B63: BASF | C63: 1181.1 | D63: 1167.73 | E63: 1147.47 | F63: 1113.83 | G63: 1093.57 | H63: 1201.37 | I63: 1221.63 | J63: 1255.27 | K63: 1188 | L63: 1134.1 | M63: 0.76112
A64: 54 | B64: BATAINDIA | C64: 1285 | D64: 1292.13 | E64: 1264.47 | F64: 1243.93 | G64: 1216.27 | H64: 1312.67 | I64: 1340.33 | J64: 1360.87 | K64: 1319.8 | L64: 1271.6 | M64: 9.02468
A65: 55 | B65: BAYERCROP | C65: 5980.25 | D65: 5963.42 | E65: 5926.83 | F65: 5873.42 | G65: 5836.83 | H65: 6016.83 | I65: 6053.42 | J65: 6106.83 | K65: 6000 | L65: 5910 | M65: 0.13772
A66: 56 | B66: BBTC | C66: 1041.4 | D66: 1045.70 | E66: 1030.70 | F66: 1020.00 | G66: 1005.00 | H66: 1056.40 | I66: 1071.40 | J66: 1082.10 | K66: 1060.7 | L66: 1035 | M66: 0.55208
A67: 57 | B67: BDL | C67: 318.3 | D67: 320.03 | E67: 309.27 | F67: 300.23 | G67: 289.47 | H67: 329.07 | I67: 339.83 | J67: 348.87 | K67: 330.8 | L67: 311 | M67: 9.79394
A68: 58 | B68: BEL | C68: 88.7 | D68: 88.52 | E68: 87.73 | F68: 86.77 | G68: 85.98 | H68: 89.48 | I68: 90.27 | J68: 91.23 | K68: 89.3 | L68: 87.55 | M68: 117.94991
A69: 59 | B69: BEML | C69: 630.65 | D69: 633.48 | E69: 623.17 | F69: 615.68 | G69: 605.37 | H69: 640.97 | I69: 651.28 | J69: 658.77 | K69: 643.8 | L69: 626 | M69: 2.87982
A70: 60 | B70: BERGEPAINT | C70: 494.3 | D70: 495.03 | E70: 490.07 | F70: 485.83 | G70: 480.87 | H70: 499.27 | I70: 504.23 | J70: 508.47 | K70: 500 | L70: 490.8 | M70: 9.94079
A71: 61 | B71: BHARATFORG | C71: 337.35 | D71: 333.35 | E71: 325.00 | F71: 312.65 | G71: 304.30 | H71: 345.70 | I71: 354.05 | J71: 366.40 | K71: 341.7 | L71: 321 | M71: 68.51171
A72: 62 | B72: BHARTIARTL | C72: 560.15 | D72: 564.48 | E72: 553.97 | F72: 547.78 | G72: 537.27 | H72: 570.67 | I72: 581.18 | J72: 587.37 | K72: 575 | L72: 558.3 | M72: 136.39649
A73: 63 | B73: BHEL | C73: 36.05 | D73: 36.05 | E73: 35.40 | F73: 34.75 | G73: 34.10 | H73: 36.70 | I73: 37.35 | J73: 38.00 | K73: 36.7 | L73: 35.4 | M73: 473.03972
A74: 64 | B74: BIOCON | C74: 388.45 | D74: 388.90 | E74: 384.05 | F74: 379.65 | G74: 374.80 | H74: 393.30 | I74: 398.15 | J74: 402.55 | K74: 393.75 | L74: 384.5 | M74: 27.27818
A75: 65 | B75: BIRLACORPN | C75: 580.85 | D75: 587.55 | E75: 571.30 | F75: 561.75 | G75: 545.50 | H75: 597.10 | I75: 613.35 | J75: 622.90 | K75: 603.8 | L75: 578 | M75: 2.78361
A76: 66 | B76: BLISSGVS | C76: 96.85 | D76: 96.83 | E76: 95.92 | F76: 94.98 | G76: 94.07 | H76: 97.77 | I76: 98.68 | J76: 99.62 | K76: 97.75 | L76: 95.9 | M76: 1.34781
A77: 67 | B77: BLUEDART | C77: 2009.4 | D77: 2028.57 | E77: 1987.83 | F77: 1966.27 | G77: 1925.53 | H77: 2050.13 | I77: 2090.87 | J77: 2112.43 | K77: 2069.3 | L77: 2007 | M77: 0.06493
A78: 68 | B78: BLUESTARCO | C78: 496.9 | D78: 498.63 | E78: 494.27 | F78: 491.63 | G78: 487.27 | H78: 501.27 | I78: 505.63 | J78: 508.27 | K78: 503 | L78: 496 | M78: 0.20849
A79: 69 | B79: BOMDYEING | C79: 72.4 | D79: 72.30 | E79: 71.15 | F79: 69.90 | G79: 68.75 | H79: 73.55 | I79: 74.70 | J79: 75.95 | K79: 73.45 | L79: 71.05 | M79: 15.66556
A80: 70 | B80: BOSCHLTD | C80: 11289.45 | D80: 11296.48 | E80: 11142.97 | F80: 10996.48 | G80: 10842.97 | H80: 11442.97 | I80: 11596.48 | J80: 11742.97 | K80: 11450 | L80: 11150 | M80: 0.31749
A81: 71 | B81: BPCL | C81: 380.15 | D81: 379.22 | E81: 375.03 | F81: 369.92 | G81: 365.73 | H81: 384.33 | I81: 388.52 | J81: 393.63 | K81: 383.4 | L81: 374.1 | M81: 51.82894
A82: 72 | B82: BRIGADE | C82: 136.2 | D82: 135.88 | E82: 134.32 | F82: 132.43 | G82: 130.87 | H82: 137.77 | I82: 139.33 | J82: 141.22 | K82: 137.45 | L82: 134 | M82: 0.90318
A83: 73 | B83: BRITANNIA | C83: 3545.95 | D83: 3564.32 | E83: 3517.63 | F83: 3489.32 | G83: 3442.63 | H83: 3592.63 | I83: 3639.32 | J83: 3667.63 | K83: 3611 | L83: 3536 | M83: 5.86225
A84: 74 | B84: BSE | C84: 471.85 | D84: 463.45 | E84: 448.90 | F84: 425.95 | G84: 411.40 | H84: 486.40 | I84: 500.95 | J84: 523.90 | K84: 478 | L84: 440.5 | M84: 5.32852
A85: 75 | B85: BSOFT | C85: 87.75 | D85: 88.20 | E85: 86.85 | F85: 85.95 | G85: 84.60 | H85: 89.10 | I85: 90.45 | J85: 91.35 | K85: 89.55 | L85: 87.3 | M85: 5.74127
A86: 76 | B86: CADILAHC | C86: 348.7 | D86: 349.87 | E86: 345.88 | F86: 343.07 | G86: 339.08 | H86: 352.68 | I86: 356.67 | J86: 359.48 | K86: 353.85 | L86: 347.05 | M86: 25.38312
A87: 77 | B87: CANBK | C87: 105.5 | D87: 103.67 | E87: 101.33 | F87: 97.17 | G87: 94.83 | H87: 107.83 | I87: 110.17 | J87: 114.33 | K87: 106 | L87: 99.5 | M87: 184.04445
A88: 78 | B88: CANFINHOME | C88: 345.7 | D88: 342.25 | E88: 334.60 | F88: 323.50 | G88: 315.85 | H88: 353.35 | I88: 361.00 | J88: 372.10 | K88: 349.9 | L88: 331.15 | M88: 5.06583
A89: 79 | B89: CAPLIPOINT | C89: 346.5 | D89: 334.38 | E89: 319.02 | F89: 291.53 | G89: 276.17 | H89: 361.87 | I89: 377.23 | J89: 404.72 | K89: 349.75 | L89: 306.9 | M89: 16.10632
A90: 80 | B90: CARBORUNIV | C90: 276.3 | D90: 278.80 | E90: 270.80 | F90: 265.30 | G90: 257.30 | H90: 284.30 | I90: 292.30 | J90: 297.80 | K90: 286.8 | L90: 273.3 | M90: 2.75473
A91: 81 | B91: CARERATING | C91: 411.05 | D91: 413.35 | E91: 404.70 | F91: 398.35 | G91: 389.70 | H91: 419.70 | I91: 428.35 | J91: 434.70 | K91: 422 | L91: 407 | M91: 0.22128
A92: 82 | B92: CASTROLIND | C92: 123.3 | D92: 124.32 | E92: 121.98 | F92: 120.67 | G92: 118.33 | H92: 125.63 | I92: 127.97 | J92: 129.28 | K92: 126.65 | L92: 123 | M92: 5.40881
A93: 83 | B93: CCL | C93: 235.75 | D93: 235.43 | E93: 227.87 | F93: 219.98 | G93: 212.42 | H93: 243.32 | I93: 250.88 | J93: 258.77 | K93: 243 | L93: 227.55 | M93: 1.20787
A94: 84 | B94: CDSL | C94: 276.25 | D94: 275.85 | E94: 270.75 | F94: 265.25 | G94: 260.15 | H94: 281.35 | I94: 286.45 | J94: 291.95 | K94: 280.95 | L94: 270.35 | M94: 4.98622
A95: 85 | B95: CEATLTD | C95: 907.1 | D95: 909.62 | E95: 899.43 | F95: 891.77 | G95: 881.58 | H95: 917.28 | I95: 927.47 | J95: 935.13 | K95: 919.8 | L95: 901.95 | M95: 1.92037
A96: 86 | B96: CENTRALBK | C96: 17.85 | D96: 17.97 | E96: 17.58 | F96: 17.32 | G96: 16.93 | H96: 18.23 | I96: 18.62 | J96: 18.88 | K96: 18.35 | L96: 17.7 | M96: 25.97522
A97: 87 | B97: CENTURYPLY | C97: 118.6 | D97: 118.97 | E97: 117.63 | F97: 116.67 | G97: 115.33 | H97: 119.93 | I97: 121.27 | J97: 122.23 | K97: 120.3 | L97: 118 | M97: 2.1286
A98: 88 | B98: CERA | C98: 2185.15 | D98: 2192.62 | E98: 2167.53 | F98: 2149.92 | G98: 2124.83 | H98: 2210.23 | I98: 2235.32 | J98: 2252.93 | K98: 2217.7 | L98: 2175 | M98: 0.0704
A99: 89 | B99: CESC | C99: 641.65 | D99: 635.72 | E99: 626.43 | F99: 611.22 | G99: 601.93 | H99: 650.93 | I99: 660.22 | J99: 675.43 | K99: 645 | L99: 620.5 | M99: 5.8441
A100: 90 | B100: CGCL | C100: 169.9 | D100: 167.57 | E100: 164.38 | F100: 158.87 | G100: 155.68 | H100: 173.08 | I100: 176.27 | J100: 181.78 | K100: 170.75 | L100: 162.05 | M100: 1.12465
A101: 91 | B101: CHALET | C101: 131.7 | D101: 131.40 | E101: 127.80 | F101: 123.90 | G101: 120.30 | H101: 135.30 | I101: 138.90 | J101: 142.80 | K101: 135 | L101: 127.5 | M101: 1.25281
A102: 92 | B102: CHAMBLFERT | C102: 150.2 | D102: 147.83 | E102: 144.47 | F102: 138.73 | G102: 135.37 | H102: 153.57 | I102: 156.93 | J102: 162.67 | K102: 151.2 | L102: 142.1 | M102: 16.85843
A103: 93 | B103: CHENNPETRO | C103: 76.6 | D103: 76.62 | E103: 74.98 | F103: 73.37 | G103: 71.73 | H103: 78.23 | I103: 79.87 | J103: 81.48 | K103: 78.25 | L103: 75 | M103: 9.60068
A104: 94 | B104: CHOLAFIN | C104: 197 | D104: 194.58 | E104: 189.42 | F104: 181.83 | G104: 176.67 | H104: 202.17 | I104: 207.33 | J104: 214.92 | K104: 199.75 | L104: 187 | M104: 182.53804
A105: 95 | B105: CHOLAHLDNG | C105: 301.1 | D105: 300.42 | E105: 296.08 | F105: 291.07 | G105: 286.73 | H105: 305.43 | I105: 309.77 | J105: 314.78 | K105: 304.75 | L105: 295.4 | M105: 0.26343
A106: 96 | B106: CIPLA | C106: 627.1 | D106: 630.25 | E106: 617.90 | F106: 608.70 | G106: 596.35 | H106: 639.45 | I106: 651.80 | J106: 661.00 | K106: 642.6 | L106: 621.05 | M106: 48.09654
A107: 97 | B107: COALINDIA | C107: 133.85 | D107: 133.30 | E107: 131.95 | F107: 130.05 | G107: 128.70 | H107: 135.20 | I107: 136.55 | J107: 138.45 | K107: 134.65 | L107: 131.4 | M107: 84.13691
A108: 98 | B108: COCHINSHIP | C108: 299.6 | D108: 298.50 | E108: 295.05 | F108: 290.50 | G108: 287.05 | H108: 303.05 | I108: 306.50 | J108: 311.05 | K108: 301.95 | L108: 293.95 | M108: 3.88125
A109: 99 | B109: COLPAL | C109: 1374.8 | D109: 1378.10 | E109: 1358.20 | F109: 1341.60 | G109: 1321.70 | H109: 1394.70 | I109: 1414.60 | J109: 1431.20 | K109: 1398 | L109: 1361.5 | M109: 10.61335
A110: 100 | B110: CONCOR | C110: 413 | D110: 411.73 | E110: 403.57 | F110: 394.13 | G110: 385.97 | H110: 421.17 | I110: 429.33 | J110: 438.77 | K110: 419.9 | L110: 402.3 | M110: 13.27344
A111: 101 | B111: COROMANDEL | C111: 752.2 | D111: 754.12 | E111: 743.23 | F111: 734.27 | G111: 723.38 | H111: 763.08 | I111: 773.97 | J111: 782.93 | K111: 765 | L111: 745.15 | M111: 2.87294
A112: 102 | B112: CREDITACC | C112: 526.8 | D112: 526.27 | E112: 520.53 | F112: 514.27 | G112: 508.53 | H112: 532.53 | I112: 538.27 | J112: 544.53 | K112: 532 | L112: 520 | M112: 0.32062
A113: 103 | B113: CRISIL | C113: 1660.4 | D113: 1655.97 | E113: 1615.48 | F113: 1570.57 | G113: 1530.08 | H113: 1700.88 | I113: 1741.37 | J113: 1786.28 | K113: 1696.45 | L113: 1611.05 | M113: 0.43969
A114: 104 | B114: CROMPTON | C114: 238.8 | D114: 238.27 | E114: 235.58 | F114: 232.37 | G114: 229.68 | H114: 241.48 | I114: 244.17 | J114: 247.38 | K114: 240.95 | L114: 235.05 | M114: 3.6216
A115: 105 | B115: CUB | C115: 122.5 | D115: 122.40 | E115: 120.80 | F115: 119.10 | G115: 117.50 | H115: 124.10 | I115: 125.70 | J115: 127.40 | K115: 124 | L115: 120.7 | M115: 38.99696
A116: 106 | B116: CUMMINSIND | C116: 397.2 | D116: 395.20 | E116: 390.65 | F116: 384.10 | G116: 379.55 | H116: 401.75 | I116: 406.30 | J116: 412.85 | K116: 399.75 | L116: 388.65 | M116: 8.89353
A117: 107 | B117: CYIENT | C117: 280 | D117: 283.52 | E117: 273.53 | F117: 267.07 | G117: 257.08 | H117: 289.98 | I117: 299.97 | J117: 306.43 | K117: 293.5 | L117: 277.05 | M117: 32.70928
A118: 108 | B118: DABUR | C118: 466.6 | D118: 467.72 | E118: 464.43 | F118: 462.27 | G118: 458.98 | H118: 469.88 | I118: 473.17 | J118: 475.33 | K118: 471 | L118: 465.55 | M118: 23.83843
A119: 109 | B119: DALBHARAT | C119: 697.3 | D119: 689.62 | E119: 678.58 | F119: 659.87 | G119: 648.83 | H119: 708.33 | I119: 719.37 | J119: 738.08 | K119: 700.65 | L119: 670.9 | M119: 1.06238
A120: 110 | B120: DBCORP | C120: 74.1 | D120: 74.13 | E120: 73.17 | F120: 72.23 | G120: 71.27 | H120: 75.07 | I120: 76.03 | J120: 76.97 | K120: 75.1 | L120: 73.2 | M120: 1.25584
A121: 111 | B121: DBL | C121: 271.75 | D121: 272.82 | E121: 269.23 | F121: 266.72 | G121: 263.13 | H121: 275.33 | I121: 278.92 | J121: 281.43 | K121: 276.4 | L121: 270.3 | M121: 1.6225
A122: 112 | B122: DCAL | C122: 126.45 | D122: 124.92 | E122: 119.43 | F122: 112.42 | G122: 106.93 | H122: 131.93 | I122: 137.42 | J122: 144.43 | K122: 130.4 | L122: 117.9 | M122: 5.90542
A123: 113 | B123: DCBBANK | C123: 78.85 | D123: 78.02 | E123: 76.53 | F123: 74.22 | G123: 72.73 | H123: 80.33 | I123: 81.82 | J123: 84.13 | K123: 79.5 | L123: 75.7 | M123: 25.94595
A124: 114 | B124: DCMSHRIRAM | C124: 318.85 | D124: 316.98 | E124: 312.97 | F124: 307.08 | G124: 303.07 | H124: 322.87 | I124: 326.88 | J124: 332.77 | K124: 321 | L124: 311.1 | M124: 3.05251
A125: 115 | B125: DEEPAKNTR | C125: 478.75 | D125: 480.23 | E125: 473.62 | F125: 468.48 | G125: 461.87 | H125: 485.37 | I125: 491.98 | J125: 497.12 | K125: 486.85 | L125: 475.1 | M125: 4.74368
A126: 116 | B126: DELTACORP | C126: 90.95 | D126: 89.62 | E126: 88.13 | F126: 85.32 | G126: 83.83 | H126: 92.43 | I126: 93.92 | J126: 96.73 | K126: 91.1 | L126: 86.8 | M126: 16.22727
A127: 117 | B127: DHFL | C127: 15.45 | D127: 15.45 | E127: 15.10 | F127: 14.75 | G127: 14.40 | H127: 15.80 | I127: 16.15 | J127: 16.50 | K127: 15.8 | L127: 15.1 | M127: 11.08046
A128: 118 | B128: DISHTV | C128: 8.1 | D128: 7.87 | E128: 7.63 | F128: 7.17 | G128: 6.93 | H128: 8.33 | I128: 8.57 | J128: 9.03 | K128: 8.1 | L128: 7.4 | M128: 132.53638
A129: 119 | B129: DIVISLAB | C129: 2241.25 | D129: 2252.75 | E129: 2221.50 | F129: 2201.75 | G129: 2170.50 | H129: 2272.50 | I129: 2303.75 | J129: 2323.50 | K129: 2284 | L129: 2233 | M129: 7.88451
A130: 120 | B130: DIXON | C130: 5873.95 | D130: 5822.98 | E130: 5720.97 | F130: 5567.98 | G130: 5465.97 | H130: 5975.97 | I130: 6077.98 | J130: 6230.97 | K130: 5925 | L130: 5670 | M130: 0.6987
A131: 121 | B131: DLF | C131: 150.25 | D131: 150.22 | E131: 147.93 | F131: 145.62 | G131: 143.33 | H131: 152.53 | I131: 154.82 | J131: 157.13 | K131: 152.5 | L131: 147.9 | M131: 73.25712
A132: 122 | B132: DMART | C132: 2289.35 | D132: 2300.45 | E132: 2273.90 | F132: 2258.45 | G132: 2231.90 | H132: 2315.90 | I132: 2342.45 | J132: 2357.90 | K132: 2327 | L132: 2285 | M132: 2.30105
A133: 123 | B133: DRREDDY | C133: 3911.45 | D133: 3921.10 | E133: 3876.20 | F133: 3840.95 | G133: 3796.05 | H133: 3956.35 | I133: 4001.25 | J133: 4036.50 | K133: 3966 | L133: 3885.85 | M133: 6.23565
A134: 124 | B134: ECLERX | C134: 452 | D134: 449.18 | E134: 442.97 | F134: 433.93 | G134: 427.72 | H134: 458.22 | I134: 464.43 | J134: 473.47 | K134: 455.4 | L134: 440.15 | M134: 0.37827
A135: 125 | B135: EDELWEISS | C135: 59.7 | D135: 60.80 | E135: 58.60 | F135: 57.50 | G135: 55.30 | H135: 61.90 | I135: 64.10 | J135: 65.20 | K135: 63 | L135: 59.7 | M135: 17.72035
A136: 126 | B136: EICHERMOT | C136: 18401.95 | D136: 18450.83 | E136: 18252.12 | F136: 18102.28 | G136: 17903.57 | H136: 18600.67 | I136: 18799.38 | J136: 18949.22 | K136: 18649.55 | L136: 18301 | M136: 2.33486
A137: 127 | B137: EIDPARRY | C137: 269.35 | D137: 270.23 | E137: 265.22 | F137: 261.08 | G137: 256.07 | H137: 274.37 | I137: 279.38 | J137: 283.52 | K137: 275.25 | L137: 266.1 | M137: 5.34454
A138: 128 | B138: EIHOTEL | C138: 64.15 | D138: 63.98 | E138: 63.17 | F138: 62.18 | G138: 61.37 | H138: 64.97 | I138: 65.78 | J138: 66.77 | K138: 64.8 | L138: 63 | M138: 4.041
A139: 129 | B139: ELGIEQUIP | C139: 143 | D139: 144.88 | E139: 139.87 | F139: 136.73 | G139: 131.72 | H139: 148.02 | I139: 153.03 | J139: 156.17 | K139: 149.9 | L139: 141.75 | M139: 1.05862
A140: 130 | B140: EMAMILTD | C140: 227.95 | D140: 224.62 | E140: 218.33 | F140: 208.72 | G140: 202.43 | H140: 234.23 | I140: 240.52 | J140: 250.13 | K140: 230.9 | L140: 215 | M140: 25.68362
A141: 131 | B141: ENDURANCE | C141: 877 | D141: 877.52 | E141: 870.23 | F141: 863.47 | G141: 856.18 | H141: 884.28 | I141: 891.57 | J141: 898.33 | K141: 884.8 | L141: 870.75 | M141: 0.53155
A142: 132 | B142: ENGINERSIN | C142: 76.7 | D142: 76.52 | E142: 75.73 | F142: 74.77 | G142: 73.98 | H142: 77.48 | I142: 78.27 | J142: 79.23 | K142: 77.3 | L142: 75.55 | M142: 24.50317
A143: 133 | B143: EQUITAS | C143: 51.5 | D143: 50.87 | E143: 49.73 | F143: 47.97 | G143: 46.83 | H143: 52.63 | I143: 53.77 | J143: 55.53 | K143: 52 | L143: 49.1 | M143: 121.82002
A144: 134 | B144: ERIS | C144: 447.95 | D144: 452.03 | E144: 442.07 | F144: 436.18 | G144: 426.22 | H144: 457.92 | I144: 467.88 | J144: 473.77 | K144: 462 | L144: 446.15 | M144: 0.85476
A145: 135 | B145: ESCORTS | C145: 1033.85 | D145: 1040.32 | E145: 1011.63 | F145: 989.42 | G145: 960.73 | H145: 1062.53 | I145: 1091.22 | J145: 1113.43 | K145: 1069 | L145: 1018.1 | M145: 34.30142
A146: 136 | B146: ESSELPACK | C146: 180 | D146: 180.48 | E146: 177.47 | F146: 174.93 | G146: 171.92 | H146: 183.02 | I146: 186.03 | J146: 188.57 | K146: 183.5 | L146: 177.95 | M146: 0.62456
A147: 137 | B147: EXIDEIND | C147: 148.75 | D147: 148.87 | E147: 147.48 | F147: 146.22 | G147: 144.83 | H147: 150.13 | I147: 151.52 | J147: 152.78 | K147: 150.25 | L147: 147.6 | M147: 22.60662
A148: 138 | B148: FCONSUMER | C148: 15.8 | D148: 15.80 | E148: 15.80 | F148: 15.80 | G148: 15.80 | H148: 15.80 | I148: 15.80 | J148: 15.80 | K148: 15.8 | L148: 15.8 | M148: 38.06314
A149: 139 | B149: FDC | C149: 275.15 | D149: 279.55 | E149: 269.90 | F149: 264.65 | G149: 255.00 | H149: 284.80 | I149: 294.45 | J149: 299.70 | K149: 289.2 | L149: 274.3 | M149: 6.15759
A150: 140 | B150: FEDERALBNK | C150: 53.2 | D150: 52.48 | E150: 51.62 | F150: 50.03 | G150: 49.17 | H150: 54.07 | I150: 54.93 | J150: 56.52 | K150: 53.35 | L150: 50.9 | M150: 265.54225
A151: 141 | B151: FINCABLES | C151: 290.65 | D151: 293.13 | E151: 286.27 | F151: 281.88 | G151: 275.02 | H151: 297.52 | I151: 304.38 | J151: 308.77 | K151: 300 | L151: 288.75 | M151: 2.33381
A152: 142 | B152: FINEORG | C152: 1860.45 | D152: 1873.47 | E152: 1840.98 | F152: 1821.52 | G152: 1789.03 | H152: 1892.93 | I152: 1925.42 | J152: 1944.88 | K152: 1905.95 | L152: 1854 | M152: 0.15656
A153: 143 | B153: FINPIPE | C153: 498.45 | D153: 498.93 | E153: 493.52 | F153: 488.58 | G153: 483.17 | H153: 503.87 | I153: 509.28 | J153: 514.22 | K153: 504.35 | L153: 494 | M153: 0.31966
A154: 144 | B154: FLFL | C154: 155.7 | D154: 153.80 | E154: 151.90 | F154: 148.10 | G154: 146.20 | H154: 157.60 | I154: 159.50 | J154: 163.30 | K154: 155.7 | L154: 150 | M154: 8.42825
A155: 145 | B155: FMGOETZE | C155: 383.95 | D155: 386.00 | E155: 374.50 | F155: 365.05 | G155: 353.55 | H155: 395.45 | I155: 406.95 | J155: 416.40 | K155: 397.5 | L155: 376.55 | M155: 0.01378
A156: 146 | B156: FORTIS | C156: 122.6 | D156: 123.08 | E156: 121.27 | F156: 119.93 | G156: 118.12 | H156: 124.42 | I156: 126.23 | J156: 127.57 | K156: 124.9 | L156: 121.75 | M156: 16.96766
A157: 147 | B157: FRETAIL | C157: 135.25 | D157: 131.33 | E157: 127.42 | F157: 119.58 | G157: 115.67 | H157: 139.17 | I157: 143.08 | J157: 150.92 | K157: 135.25 | L157: 123.5 | M157: 94.85819
A158: 148 | B158: FSL | C158: 36.05 | D158: 36.05 | E158: 35.40 | F158: 34.75 | G158: 34.10 | H158: 36.70 | I158: 37.35 | J158: 38.00 | K158: 36.7 | L158: 35.4 | M158: 17.18327
A159: 149 | B159: GAIL | C159: 102.95 | D159: 102.18 | E159: 101.02 | F159: 99.08 | G159: 97.92 | H159: 104.12 | I159: 105.28 | J159: 107.22 | K159: 103.35 | L159: 100.25 | M159: 99.47216
A160: 150 | B160: GALAXYSURF | C160: 1557.35 | D160: 1534.15 | E160: 1503.30 | F160: 1449.25 | G160: 1418.40 | H160: 1588.20 | I160: 1619.05 | J160: 1673.10 | K160: 1565 | L160: 1480.1 | M160: 0.72541
A161: 151 | B161: GARFIBRES | C161: 1361.2 | D161: 1400.50 | E161: 1302.00 | F161: 1242.80 | G161: 1144.30 | H161: 1459.70 | I161: 1558.20 | J161: 1617.40 | K161: 1499 | L161: 1341.3 | M161: 0.94735
A162: 152 | B162: GAYAPROJ | C162: 14.65 | D162: 14.80 | E162: 14.50 | F162: 14.35 | G162: 14.05 | H162: 14.95 | I162: 15.25 | J162: 15.40 | K162: 15.1 | L162: 14.65 | M162: 4.2048
A163: 153 | B163: GEPIL | C163: 460.35 | D163: 460.57 | E163: 449.03 | F163: 437.72 | G163: 426.18 | H163: 471.88 | I163: 483.42 | J163: 494.73 | K163: 472.1 | L163: 449.25 | M163: 0.22454
A164: 154 | B164: GESHIP | C164: 209.8 | D164: 210.25 | E164: 206.55 | F164: 203.30 | G164: 199.60 | H164: 213.50 | I164: 217.20 | J164: 220.45 | K164: 213.95 | L164: 207 | M164: 3.60426
A165: 155 | B165: GET&D | C165: 73.3 | D165: 73.62 | E165: 72.48 | F165: 71.67 | G165: 70.53 | H165: 74.43 | I165: 75.57 | J165: 76.38 | K165: 74.75 | L165: 72.8 | M165: 0.76841
A166: 156 | B166: GHCL | C166: 135.2 | D166: 135.83 | E166: 133.42 | F166: 131.63 | G166: 129.22 | H166: 137.62 | I166: 140.03 | J166: 141.82 | K166: 138.25 | L166: 134.05 | M166: 0.92082
A167: 157 | B167: GICRE | C167: 151.9 | D167: 152.33 | E167: 150.67 | F167: 149.43 | G167: 147.77 | H167: 153.57 | I167: 155.23 | J167: 156.47 | K167: 154 | L167: 151.1 | M167: 2.7394
A168: 158 | B168: GILLETTE | C168: 5000.05 | D168: 4990.37 | E168: 4955.73 | F168: 4911.42 | G168: 4876.78 | H168: 5034.68 | I168: 5069.32 | J168: 5113.63 | K168: 5025 | L168: 4946.05 | M168: 0.14323
A169: 159 | B169: GLAXO | C169: 1472.35 | D169: 1476.12 | E169: 1462.23 | F169: 1452.12 | G169: 1438.23 | H169: 1486.23 | I169: 1500.12 | J169: 1510.23 | K169: 1490 | L169: 1466 | M169: 0.15679
A170: 160 | B170: GLENMARK | C170: 435.2 | D170: 434.70 | E170: 424.40 | F170: 413.60 | G170: 403.30 | H170: 445.50 | I170: 455.80 | J170: 466.60 | K170: 445 | L170: 423.9 | M170: 210.51292
A171: 161 | B171: GMDCLTD | C171: 40.15 | D171: 40.05 | E171: 39.75 | F171: 39.35 | G171: 39.05 | H171: 40.45 | I171: 40.75 | J171: 41.15 | K171: 40.35 | L171: 39.65 | M171: 5.16348
A172: 162 | B172: GMRINFRA | C172: 20.55 | D172: 20.35 | E172: 20.00 | F172: 19.45 | G172: 19.10 | H172: 20.90 | I172: 21.25 | J172: 21.80 | K172: 20.7 | L172: 19.8 | M172: 120.81015
A173: 163 | B173: GNFC | C173: 155.85 | D173: 154.53 | E173: 152.57 | F173: 149.28 | G173: 147.32 | H173: 157.82 | I173: 159.78 | J173: 163.07 | K173: 156.5 | L173: 151.25 | M173: 7.19858
A174: 164 | B174: GODFRYPHLP | C174: 981.65 | D174: 983.53 | E174: 958.12 | F174: 934.58 | G174: 909.17 | H174: 1007.07 | I174: 1032.48 | J174: 1056.02 | K174: 1008.95 | L174: 960 | M174: 1.94564
A175: 165 | B175: GODREJAGRO | C175: 434.55 | D175: 434.93 | E175: 430.67 | F175: 426.78 | G175: 422.52 | H175: 438.82 | I175: 443.08 | J175: 446.97 | K175: 439.2 | L175: 431.05 | M175: 0.83178
A176: 166 | B176: GODREJCP | C176: 694.85 | D176: 692.25 | E176: 687.65 | F176: 680.45 | G176: 675.85 | H176: 699.45 | I176: 704.05 | J176: 711.25 | K176: 696.85 | L176: 685.05 | M176: 7.08593
A177: 167 | B177: GODREJIND | C177: 405.8 | D177: 410.57 | E177: 398.43 | F177: 391.07 | G177: 378.93 | H177: 417.93 | I177: 430.07 | J177: 437.43 | K177: 422.7 | L177: 403.2 | M177: 0.69467
A178: 168 | B178: GODREJPROP | C178: 856.45 | D178: 859.43 | E178: 849.17 | F178: 841.88 | G178: 831.62 | H178: 866.72 | I178: 876.98 | J178: 884.27 | K178: 869.7 | L178: 852.15 | M178: 2.01022
A179: 169 | B179: GPPL | C179: 76.65 | D179: 76.82 | E179: 75.63 | F179: 74.62 | G179: 73.43 | H179: 77.83 | I179: 79.02 | J179: 80.03 | K179: 78 | L179: 75.8 | M179: 2.39762
A180: 170 | B180: GRANULES | C180: 212 | D180: 209.97 | E180: 206.48 | F180: 200.97 | G180: 197.48 | H180: 215.48 | I180: 218.97 | J180: 224.48 | K180: 213.45 | L180: 204.45 | M180: 37.52789
A181: 171 | B181: GRAPHITE | C181: 183.3 | D181: 183.43 | E181: 180.87 | F181: 178.43 | G181: 175.87 | H181: 185.87 | I181: 188.43 | J181: 190.87 | K181: 186 | L181: 181 | M181: 2.41144
A182: 172 | B182: GRASIM | C182: 614.35 | D182: 617.48 | E182: 609.02 | F182: 603.68 | G182: 595.22 | H182: 622.82 | I182: 631.28 | J182: 636.62 | K182: 625.95 | L182: 612.15 | M182: 13.97405
A183: 173 | B183: GREAVESCOT | C183: 84.4 | D183: 84.25 | E183: 83.65 | F183: 82.90 | G183: 82.30 | H183: 85.00 | I183: 85.60 | J183: 86.35 | K183: 84.85 | L183: 83.5 | M183: 1.59602
A184: 174 | B184: GRINDWELL | C184: 484.7 | D184: 490.92 | E184: 476.83 | F184: 468.97 | G184: 454.88 | H184: 498.78 | I184: 512.87 | J184: 520.73 | K184: 505 | L184: 483.05 | M184: 0.26367
A185: 175 | B185: GSFC | C185: 54.35 | D185: 54.12 | E185: 53.73 | F185: 53.12 | G185: 52.73 | H185: 54.73 | I185: 55.12 | J185: 55.73 | K185: 54.5 | L185: 53.5 | M185: 6.64943
A186: 176 | B186: GSPL | C186: 224.1 | D186: 222.82 | E186: 220.18 | F186: 216.27 | G186: 213.63 | H186: 226.73 | I186: 229.37 | J186: 233.28 | K186: 225.45 | L186: 218.9 | M186: 10.82966
A187: 177 | B187: GUJALKALI | C187: 325.7 | D187: 327.87 | E187: 322.83 | F187: 319.97 | G187: 314.93 | H187: 330.73 | I187: 335.77 | J187: 338.63 | K187: 332.9 | L187: 325 | M187: 0.31535
A188: 178 | B188: GUJGASLTD | C188: 326.6 | D188: 324.55 | E188: 320.30 | F188: 314.00 | G188: 309.75 | H188: 330.85 | I188: 335.10 | J188: 341.40 | K188: 328.8 | L188: 318.25 | M188: 12.92102
A189: 179 | B189: GULFOILLUB | C189: 579.1 | D189: 588.78 | E189: 562.57 | F189: 546.03 | G189: 519.82 | H189: 605.32 | I189: 631.53 | J189: 648.07 | K189: 615 | L189: 572.25 | M189: 0.24398
A190: 180 | B190: HAL | C190: 763.7 | D190: 767.58 | E190: 757.22 | F190: 750.73 | G190: 740.37 | H190: 774.07 | I190: 784.43 | J190: 790.92 | K190: 777.95 | L190: 761.1 | M190: 0.52396
A191: 181 | B191: HATSUN | C191: 648.9 | D191: 646.43 | E191: 622.87 | F191: 596.83 | G191: 573.27 | H191: 672.47 | I191: 696.03 | J191: 722.07 | K191: 670 | L191: 620.4 | M191: 0.38748
A192: 182 | B192: HAVELLS | C192: 574.4 | D192: 576.92 | E192: 569.53 | F192: 564.67 | G192: 557.28 | H192: 581.78 | I192: 589.17 | J192: 594.03 | K192: 584.3 | L192: 572.05 | M192: 14.83762
A193: 183 | B193: HCLTECH | C193: 551.75 | D193: 554.12 | E193: 548.63 | F193: 545.52 | G193: 540.03 | H193: 557.23 | I193: 562.72 | J193: 565.83 | K193: 559.6 | L193: 551 | M193: 30.04728
A194: 184 | B194: HDFC | C194: 1835.15 | D194: 1813.45 | E194: 1782.10 | F194: 1729.05 | G194: 1697.70 | H194: 1866.50 | I194: 1897.85 | J194: 1950.90 | K194: 1844.8 | L194: 1760.4 | M194: 69.91685
A195: 185 | B195: HDFCAMC | C195: 2476.15 | D195: 2479.05 | E195: 2462.10 | F195: 2448.05 | G195: 2431.10 | H195: 2493.10 | I195: 2510.05 | J195: 2524.10 | K195: 2496 | L195: 2465 | M195: 2.45358
A196: 186 | B196: HDFCBANK | C196: 1084.6 | D196: 1080.63 | E196: 1065.27 | F196: 1045.93 | G196: 1030.57 | H196: 1099.97 | I196: 1115.33 | J196: 1134.67 | K196: 1096 | L196: 1061.3 | M196: 174.23378
A197: 187 | B197: HDFCLIFE | C197: 549.65 | D197: 551.93 | E197: 543.87 | F197: 538.08 | G197: 530.02 | H197: 557.72 | I197: 565.78 | J197: 571.57 | K197: 560 | L197: 546.15 | M197: 34.19823
A198: 188 | B198: HEG | C198: 832.45 | D198: 833.25 | E198: 817.80 | F198: 803.15 | G198: 787.70 | H198: 847.90 | I198: 863.35 | J198: 878.00 | K198: 848.7 | L198: 818.6 | M198: 1.94736
A199: 189 | B199: HEIDELBERG | C199: 179 | D199: 179.43 | E199: 177.12 | F199: 175.23 | G199: 172.92 | H199: 181.32 | I199: 183.63 | J199: 185.52 | K199: 181.75 | L199: 177.55 | M199: 2.78299
A200: 190 | B200: HERITGFOOD | C200: 264.45 | D200: 264.43 | E200: 260.97 | F200: 257.48 | G200: 254.02 | H200: 267.92 | I200: 271.38 | J200: 274.87 | K200: 267.9 | L200: 260.95 | M200: 0.15137
A201: 191 | B201: HEROMOTOCO | C201: 2547.45 | D201: 2550.83 | E201: 2526.62 | F201: 2505.78 | G201: 2481.57 | H201: 2571.67 | I201: 2595.88 | J201: 2616.72 | K201: 2575.05 | L201: 2530 | M201: 13.36769
A202: 192 | B202: HEXAWARE | C202: 333.85 | D202: 334.13 | E202: 330.47 | F202: 327.08 | G202: 323.42 | H202: 337.52 | I202: 341.18 | J202: 344.57 | K202: 337.8 | L202: 330.75 | M202: 11.23117
A203: 193 | B203: HFCL | C203: 15.95 | D203: 15.87 | E203: 15.23 | F203: 14.52 | G203: 13.88 | H203: 16.58 | I203: 17.22 | J203: 17.93 | K203: 16.5 | L203: 15.15 | M203: 124.41341
A204: 194 | B204: HIMATSEIDE | C204: 62.9 | D204: 62.90 | E204: 62.10 | F204: 61.30 | G204: 60.50 | H204: 63.70 | I204: 64.50 | J204: 65.30 | K204: 63.7 | L204: 62.1 | M204: 1.32488
A205: 195 | B205: HINDALCO | C205: 147.55 | D205: 146.97 | E205: 145.08 | F205: 142.62 | G205: 140.73 | H205: 149.43 | I205: 151.32 | J205: 153.78 | K205: 148.85 | L205: 144.5 | M205: 82.55408
A206: 196 | B206: HINDCOPPER | C206: 31.65 | D206: 31.72 | E206: 31.18 | F206: 30.72 | G206: 30.18 | H206: 32.18 | I206: 32.72 | J206: 33.18 | K206: 32.25 | L206: 31.25 | M206: 6.86011
... 321 more rows

Sheet Bulk Deals
E6: Back To Main Page
A7: Subject : | B7: BULK DEAL | D7: =Main!B10 -> 2020-07-02
A9: Date | B9: Scrip code | C9: Scrip Name | D9: Client Name | E9: Buy / Sell | F9: Quantity Traded | G9: Trade Price / Wt.Avg.trade price | H9: Exchange
A10: 2020-07-01 | B10: 540024 | C10: ASHARI | D10: RAHUL MADHUKAR WARE | E10: SELL | F10: 44,000 | G10: 9 | H10: BSE
A11: 2020-07-01 | B11: 540024 | C11: ASHARI | D11: SAMADHAN SHANKAR KADAM | E11: SELL | F11: 44,444 | G11: 9 | H11: BSE
A12: 2020-07-01 | B12: 540024 | C12: ASHARI | D12: MANOJKUMAR GUNVANTRAI SOMANI | E12: BUY | F12: 88,444 | G12: 9 | H12: BSE
A13: 2020-07-01 | B13: 540024 | C13: ASHARI | D13: MANOJKUMAR GUNVANTRAI SOMANI | E13: SELL | F13: 8 | G13: 9.37 | H13: BSE
A14: 2020-07-01 | B14: 542934 | C14: CBPL | D14: BEELINE BROKING LIMITED | E14: BUY | F14: 60,000 | G14: 49.75 | H14: BSE
A15: 2020-07-01 | B15: 542934 | C15: CBPL | D15: BEELINE BROKING LIMITED | E15: SELL | F15: 2,000 | G15: 44.3 | H15: BSE
A16: 2020-07-01 | B16: 542934 | C16: CBPL | D16: GOENKA BUSINESS & FINANCE LIMITED | E16: BUY | F16: 40,000 | G16: 49.99 | H16: BSE
A17: 2020-07-01 | B17: 539730 | C17: FREDUN | D17: KAMAL KUMAR JALAN SEC. PVT. LTD | E17: BUY | F17: 33,872 | G17: 184.83 | H17: BSE
A18: 2020-07-01 | B18: 539730 | C18: FREDUN | D18: KAMAL KUMAR JALAN SEC. PVT. LTD | E18: SELL | F18: 33,697 | G18: 187.3 | H18: BSE
A19: 2020-07-01 | B19: 539730 | C19: FREDUN | D19: SURINDER GURMUKH DHAUL | E19: BUY | F19: 24,881 | G19: 183.48 | H19: BSE
A20: 2020-07-01 | B20: 539730 | C20: FREDUN | D20: SURINDER GURMUKH DHAUL | E20: SELL | F20: 24,881 | G20: 186.19 | H20: BSE
A21: 2020-07-01 | B21: 539730 | C21: FREDUN | D21: ZAHEER . | E21: BUY | F21: 112,025 | G21: 186.01 | H21: BSE
A22: 2020-07-01 | B22: 539730 | C22: FREDUN | D22: ZAHEER . | E22: SELL | F22: 112,025 | G22: 183.28 | H22: BSE
A23: 2020-07-01 | B23: 540266 | C23: GLCL | D23: PUSHPABEN SURESHKUMAR JAIN | E23: SELL | F23: 20,000 | G23: 5.5 | H23: BSE
A24: 2020-07-01 | B24: 540266 | C24: GLCL | D24: SANTOSH DOULAT PASTE | E24: SELL | F24: 50,000 | G24: 5.5 | H24: BSE
A25: 2020-07-01 | B25: 540266 | C25: GLCL | D25: RAJESH JOSHI | E25: BUY | F25: 30,000 | G25: 5.5 | H25: BSE
A26: 2020-07-01 | B26: 540266 | C26: GLCL | D26: RAJEEV KUMAR JOSHI | E26: BUY | F26: 40,200 | G26: 5.5 | H26: BSE
A27: 2020-07-01 | B27: 541276 | C27: HARDWYN | D27: JYOJAI48 | E27: SELL | F27: 205,000 | G27: 13.87 | H27: BSE
A28: 2020-07-01 | B28: 541276 | C28: HARDWYN | D28: ATUL JAIN HUF | E28: BUY | F28: 135,000 | G28: 13.81 | H28: BSE
A29: 2020-07-01 | B29: 541627 | C29: HITECHWIND | D29: DEEPAL PRAVINKUMAR SHAH | E29: SELL | F29: 57,000 | G29: 18 | H29: BSE
A30: 2020-07-01 | B30: 541627 | C30: HITECHWIND | D30: KRUTI KEVIN KAPADIA | E30: BUY | F30: 60,000 | G30: 17.99 | H30: BSE
A31: 2020-07-01 | B31: 541983 | C31: INNOVATIVE | D31: NIRAJ LAHERCHAND MODI | E31: SELL | F31: 65,000 | G31: 13.01 | H31: BSE
A32: 2020-07-01 | B32: 540385 | C32: KDLL | D32: AKSHAY SHAH (HUF) | E32: SELL | F32: 29,007 | G32: 29.57 | H32: BSE
A33: 2020-07-01 | B33: 512217 | C33: PRISMMEDI | D33: MANISH NITIN THAKUR | E33: BUY | F33: 37,256 | G33: 14.25 | H33: BSE
A34: 2020-07-01 | B34: 512217 | C34: PRISMMEDI | D34: MANISH NITIN THAKUR | E34: SELL | F34: 39,088 | G34: 13.71 | H34: BSE
A35: 2020-07-01 | B35: 539026 | C35: SSPNFIN | D35: RAJESH RAMANLAL KAPADIA | E35: BUY | F35: 24,000 | G35: 43.61 | H35: BSE
A36: 2020-07-01 | B36: 539026 | C36: SSPNFIN | D36: DEVJEET CHAKRABORTY | E36: SELL | F36: 20,000 | G36: 43.6 | H36: BSE
A37: 2020-07-01 | B37: 533157 | C37: SYNCOM | D37: ALPHA LEON ENTERPRISES LLP | E37: BUY | F37: 6 | G37: 3.24 | H37: BSE
A38: 2020-07-01 | B38: 533157 | C38: SYNCOM | D38: ALPHA LEON ENTERPRISES LLP | E38: SELL | F38: 291,695 | G38: 3.29 | H38: BSE
A39: 2020-07-01 | B39: 539310 | C39: THINKINK | D39: PARAG BABULAL KHALASI | E39: BUY | F39: 150,046 | G39: 33.09 | H39: BSE
A40: 2020-07-01 | B40: 538451 | C40: WORTH | D40: PANKAJ KUMAR MODI | E40: SELL | F40: 24,500 | G40: 12 | H40: BSE
A41: 2020-07-01 | B41: 538451 | C41: WORTH | D41: URMILA RAMESHCHANDRA MEHTA | E41: BUY | F41: 35,941 | G41: 12 | H41: BSE
A42: 2020-07-01 | B42: ANUP | C42: The Anup Engineering Ltd | D42: HDFC MUTUAL FUND A/C HDFC RETIREMENT SAVINGS FUND-EQUITY PLAN | E42: BUY | F42: 83,513 | G42: 380.1 | H42: NSE
A43: 2020-07-01 | B43: BCP | C43: B.C. Power Controls Ltd | D43: SANGHVI ASSOCIATES | E43: BUY | F43: 350,000 | G43: 5.15 | H43: NSE
A44: 2020-07-01 | B44: CENTURYTEX | C44: Century Textiles Ltd. | D44: DIVYA PORTFOLIO PRIVATE LIMITED | E44: BUY | F44: 759,330 | G44: 295.02 | H44: NSE
A45: 2020-07-01 | B45: IBULHSGFIN | C45: Indiabulls Hsg Fin Ltd | D45: ALPHAGREP SECURITIES PRIVATE LIMITED | E45: BUY | F45: 2,521,554 | G45: 220.03 | H45: NSE
A46: 2020-07-01 | B46: IBULHSGFIN | C46: Indiabulls Hsg Fin Ltd | D46: TOWER RESEARCH CAPITAL MARKETS INDIA PRIVATE LIMITED | E46: BUY | F46: 4,425,984 | G46: 219.66 | H46: NSE
A47: 2020-07-01 | B47: IBULHSGFIN | C47: Indiabulls Hsg Fin Ltd | D47: SURJECTIVE RESEARCH CAPITAL LLP | E47: BUY | F47: 3,190,720 | G47: 220.17 | H47: NSE
A48: 2020-07-01 | B48: JUSTDIAL | C48: Justdial Ltd. | D48: REENA AGARWAL | E48: BUY | F48: 365,840 | G48: 401.03 | H48: NSE
A49: 2020-07-01 | B49: LOKESHMACH | C49: Lokesh Machines Limited | D49: PRATIK BHANDARI | E49: BUY | F49: 148,884 | G49: 25.06 | H49: NSE
A50: 2020-07-01 | B50: SPENCERS | C50: Spencer's Retail Limited | D50: GRAVITON RESEARCH CAPITAL LLP | E50: BUY | F50: 496,022 | G50: 88.43 | H50: NSE
A51: 2020-07-01 | B51: SPENCERS | C51: Spencer's Retail Limited | D51: QE SECURITIES | E51: BUY | F51: 519,464 | G51: 90.55 | H51: NSE
A52: 2020-07-01 | B52: SPENCERS | C52: Spencer's Retail Limited | D52: SATYA PRAKASH CHAUDHARY (HUF) | E52: BUY | F52: 1,350,741 | G52: 88.41 | H52: NSE
A53: 2020-07-01 | B53: SPENCERS | C53: Spencer's Retail Limited | D53: RS SECURITIES | E53: BUY | F53: 2,349,344 | G53: 88.26 | H53: NSE
A54: 2020-07-01 | B54: SPENCERS | C54: Spencer's Retail Limited | D54: HRTI PRIVATE LIMITED | E54: BUY | F54: 3,757,445 | G54: 89.4 | H54: NSE
A55: 2020-07-01 | B55: SYNCOM | C55: Syncom Healthcare Ltd | D55: SAUMIL ARVIND BHAVNAGARI | E55: BUY | F55: 307,933 | G55: 3.15 | H55: NSE
A56: 2020-07-01 | B56: SYNCOM | C56: Syncom Healthcare Ltd | D56: NUPUR ANIL SHAH | E56: BUY | F56: 500,000 | G56: 3.15 | H56: NSE
A57: 2020-07-01 | B57: SYNCOM | C57: Syncom Healthcare Ltd | D57: ALPHA LEON ENTERPRISES LLP | E57: BUY | F57: 250,011 | G57: 3.15 | H57: NSE
A58: 2020-07-01 | B58: UJJIVAN | C58: Ujjivan Fin. Servc. Ltd. | D58: TOWER RESEARCH CAPITAL MARKETS INDIA PRIVATE LIMITED | E58: BUY | F58: 736,247 | G58: 227.41 | H58: NSE
A59: 2020-07-01 | B59: UJJIVAN | C59: Ujjivan Fin. Servc. Ltd. | D59: DIVYA PORTFOLIO PRIVATE LIMITED | E59: BUY | F59: 1,028,945 | G59: 225.83 | H59: NSE
A60: 2020-07-01 | B60: CENTURYTEX | C60: Century Textiles Ltd. | D60: DIVYA PORTFOLIO PRIVATE LIMITED | E60: SELL | F60: 759,330 | G60: 295.02 | H60: NSE
A61: 2020-07-01 | B61: GREENPOWER | C61: Orient Green Power Co Ltd | D61: BESSEMER INDIA CAPITAL OGPL LTD | E61: SELL | F61: 13,169,304 | G61: 2.8 | H61: NSE
A62: 2020-07-01 | B62: IBULHSGFIN | C62: Indiabulls Hsg Fin Ltd | D62: ALPHAGREP SECURITIES PRIVATE LIMITED | E62: SELL | F62: 2,521,554 | G62: 220.16 | H62: NSE
A63: 2020-07-01 | B63: IBULHSGFIN | C63: Indiabulls Hsg Fin Ltd | D63: TOWER RESEARCH CAPITAL MARKETS INDIA PRIVATE LIMITED | E63: SELL | F63: 4,753,173 | G63: 219.78 | H63: NSE
A64: 2020-07-01 | B64: IBULHSGFIN | C64: Indiabulls Hsg Fin Ltd | D64: SURJECTIVE RESEARCH CAPITAL LLP | E64: SELL | F64: 3,191,518 | G64: 220.35 | H64: NSE
A65: 2020-07-01 | B65: JUSTDIAL | C65: Justdial Ltd. | D65: REENA AGARWAL | E65: SELL | F65: 365,840 | G65: 400.72 | H65: NSE
A66: 2020-07-01 | B66: LOKESHMACH | C66: Lokesh Machines Limited | D66: PRATIK BHANDARI | E66: SELL | F66: 148,884 | G66: 25.86 | H66: NSE
A67: 2020-07-01 | B67: SOMANYCERA | C67: Somany Ceramics Limited | D67: BIRLA SUN LIFE INSURANCE COMPANY LTD | E67: SELL | F67: 227,000 | G67: 117.8 | H67: NSE
A68: 2020-07-01 | B68: SPENCERS | C68: Spencer's Retail Limited | D68: GRAVITON RESEARCH CAPITAL LLP | E68: SELL | F68: 496,022 | G68: 88.2 | H68: NSE
A69: 2020-07-01 | B69: SPENCERS | C69: Spencer's Retail Limited | D69: SATYA PRAKASH CHAUDHARY (HUF) | E69: SELL | F69: 1,350,741 | G69: 88.56 | H69: NSE
A70: 2020-07-01 | B70: SPENCERS | C70: Spencer's Retail Limited | D70: HRTI PRIVATE LIMITED | E70: SELL | F70: 3,757,445 | G70: 89.24 | H70: NSE
A71: 2020-07-01 | B71: SPENCERS | C71: Spencer's Retail Limited | D71: RS SECURITIES | E71: SELL | F71: 2,349,344 | G71: 88.43 | H71: NSE
A72: 2020-07-01 | B72: SPENCERS | C72: Spencer's Retail Limited | D72: QE SECURITIES | E72: SELL | F72: 519,464 | G72: 90.22 | H72: NSE
A73: 2020-07-01 | B73: SYNCOM | C73: Syncom Healthcare Ltd | D73: ALPHA LEON ENTERPRISES LLP | E73: SELL | F73: 11 | G73: 3.1 | H73: NSE
A74: 2020-07-01 | B74: SYNCOM | C74: Syncom Healthcare Ltd | D74: PRATIK BANKDA | E74: SELL | F74: 2,000,000 | G74: 3.15 | H74: NSE
A75: 2020-07-01 | B75: UJJIVAN | C75: Ujjivan Fin. Servc. Ltd. | D75: DIVYA PORTFOLIO PRIVATE LIMITED | E75: SELL | F75: 1,028,945 | G75: 226.89 | H75: NSE
A76: 2020-07-01 | B76: UJJIVAN | C76: Ujjivan Fin. Servc. Ltd. | D76: TOWER RESEARCH CAPITAL MARKETS INDIA PRIVATE LIMITED | E76: SELL | F76: 736,247 | G76: 226.89 | H76: NSE

Sheet Call Tracker (Equity & F&O)
M5: Back To Main Page
A6: Retail Research Technical Calls & Fundamental Performance Report for the month of July-2020
M7: =Main!B10 -> 2020-07-02
B8: Positional Call
A9: Sr.no | B9: Date | D9: Company | E9: Rec | F9: Rec Price | G9: Stop Loss*** | H9: Call Closed At | I9: Target | J9: Remark | K9: Profit / Loss per Share | L9: Gain / Loss % | M9: Status | N9: Closed Date | O9: NSE Closed Price
A10: 1 | B10: 2020-05-29 | D10: PGHH | E10: Buy | F10: 9870-9930 | G10: 9400 | I10: 10700-10800 | J10: Open | R10: H
A11: 2 | B11: 2020-06-08 | D11: CROMPTON | E11: Buy | F11: 229 | G11: 217.00 | H11: 239.00 | I11: 250-255 | J11: Part Profit of Rs.10/- | K11: =H11-F11 -> 10 | L11: =K11/F11 -> 4.37% | M11: Successful | N11: 2020-06-10 | R11: N
A12: 3 | B12: 2020-06-19 | D12: EXIDEIND | E12: Buy | F12: 150 | G12: 140.00 | H12: 156.00 | I12: 165-170 | J12: Part Profit of Rs.6/- | K12: =H12-F12 -> 6 | L12: =K12/F12 -> 4.00% | M12: Successful | N12: 2020-06-23 | R12: N
A13: 4 | B13: 2020-06-22 | D13: CADILAHC | E13: Buy | F13: 358.5 | G13: 335.00 | H13: 373.00 | I13: 400-410 | J13: Part Profit of Rs.14.5/- | K13: =H13-F13 -> 14.5 | L13: =K13/F13 -> 4.04% | M13: Successful | N13: 2020-06-24 | R13: N
A14: 5 | B14: 2020-06-25 | D14: DIVISLAB | E14: Buy | F14: 2335-2345 | G14: 2200 | I14: 2500-2550 | J14: Open | R14: N
A15: 6 | B15: 2020-06-25 | D15: ADANIPORTS | E15: Buy | F15: 341-344 | G15: 322 | I15: 380 | J15: Open | R15: N
A16: 7 | B16: 2020-06-26 | D16: BALKRISIND | E16: Sell | F16: 1240-1250 | G16: 1310 | I16: 1160-1140 | J16: Open | R16: H
A17: 8 | B17: 2020-06-26 | D17: CDSL | E17: Buy | F17: 276-278 | G17: 261 | I17: 310-315 | J17: Open | R17: N
A18: 9 | B18: 2020-06-26 | D18: GODREJPROP | E18: Buy | F18: 858-868 | G18: 815 | I18: 930-950 | J18: Open | R18: H
A19: 10 | B19: 2020-06-29 | D19: BATAINDIA | E19: Buy | F19: 1295-1305 | G19: 1235 | I19: 1400-1450 | J19: Open | R19: H
A20: 11 | B20: 2020-06-30 | D20: UPL | E20: Buy | F20: 426.5 | G20: 400.00 | H20: 441.50 | I20: 470-480 | J20: Part Profit of Rs.15/- | K20: =H20-F20 -> 15 | L20: =K20/F20 -> 3.52% | M20: Successful | N20: 2020-07-01 | R20: N
A24: CLBS = Closing Basis ***
A25: Dividend adjusted <> | F25: Reinitiated $
A26: Part book {} | F26: Revised stoploss #
B28: Momentum Call
A29: Sr.no | B29: Date | D29: Company | E29: Rec | F29: Rec Price | G29: Stop Loss | H29: Call Closed At | I29: Target | J29: Remark | K29: Profit / Loss per Share/Lot | L29: Gain / Loss % | M29: Gain / Loss per Lot | N29: Lot | O29: Status | P29: Closed Date
A30: 1 | B30: 2020-06-24 | D30: CIPLA | E30: Buy | F30: 646 | G30: 629 | H30: 625.5 | I30: 680-690 | J30: Loss of Rs.20.5/- | K30: =H30-F30 -> -20.5 | L30: =K30/F30 -> -3.17% | M30: Unsuccessful | P30: 2020-07-01 | R30: H
A31: 2 | B31: 2020-06-24 | D31: LT | E31: Buy | F31: 957 | G31: 925 | H31: 925.5 | I31: 1025 | J31: Loss of Rs.31.5/- | K31: -31.5 | L31: -3.29% | M31: Unsuccessful | P31: 2020-07-01 | R31: N
A32: 3 | B32: 2020-06-26 | D32: AUROPHARMA | E32: Buy | F32: 780-784 | G32: 758 | I32: 825 | J32: Open | R32: N
A33: 4 | B33: 2020-06-29 | D33: EXIDEIND | E33: Buy | F33: 146.8-147.2 | G33: 142.5 | I33: 156-158 | J33: Open | R33: H
A34: 5 | B34: 2020-06-30 | D34: ACC | E34: Sell | F34: 1305-1315 | G34: 1352 | I34: 1260-1240 | J34: Open | R34: H
A35: 6 | B35: 2020-06-30 | D35: INFY | E35: Buy | F35: 725-728 | G35: 714 | I35: 750-760 | J35: Open | R35: H
A36: 7 | B36: 2020-07-01 | D36: DIVISLAB | E36: Buy | F36: 2250-2250 | G36: 2200 | I36: 2350 | J36: Open | R36: H
A38: CLBS = Closing Basis ***
A39: Dividend adjusted <> | F39: Reinitiated $
F40: Revised stoploss #
A42: Master Trade High Risk
A43: Sr.no | B43: Date | D43: Company | E43: Rec | F43: Rec Price | G43: Stop Loss | H43: Call Closed At | I43: Target | J43: Remark | K43: Profit / Loss per share | L43: Gain / Loss per Lot | M43: Lot | N43: Status | O43: Closed Date
A44: 1 | B44: 2020-07-01 | D44: NIFTY JUL FUT | E44: Sell | F44: 10390-10400 | G44: 10555 | I44: 10200 | R44: H
D45: NIFTY 9-JUL 10200 PE | E45: Sell | F45: 86-90
A51: Master Trade Medium Risk
A52: Sr.no | B52: Date | D52: Company | E52: Rec | F52: Rec Price | G52: Stop Loss | H52: Call Closed At | I52: Target | J52: Remark | K52: Profit/ Loss per lot | L52: Gain / Loss per Lot | M52: Lot | N52: Status | O52: Closed Date
A56: Techno -Funda (positional)
A57: Sr.no | B57: Date | D57: Company | E57: Rec | F57: Rec Price | G57: Stop Loss*** | H57: Call Closed At | I57: Target | J57: Remark | K57: Profit / Loss per Share | L57: Gain / Loss % | M57: Status | N57: Closed Date | O57: NSE Closed Price
A59: CLBS = Closing Basis *** | F59: Reinitiated $
A60: Dividend adjusted <> | F60: Revised stoploss #
B65: Investment Idea
A66: Sr.no | B66: Date | D66: Company | E66: Rec | F66: Rec Price | G66: Point of Review | H66: Close Rate | I66: Target | J66: Remark | K66: Profit / Loss per Share | L66: Gain / Loss % | M66: Status | N66: Closed Date
A67: 1 | B67: 2013-11-01 | D67: L&T Finance Holding | E67: Accu | F67: 82.00 | G67: - | H67: 100 | I67: 100.00 | J67: Target Achieved | K67: =H67-F67 -> 18.00 | L67: =K67/F67 -> 21.95% | M67: Successful | N67: 2016-10-14
A68: 2 | B68: 2014-06-04 | D68: Finolex Inds | E68: Buy | F68: 257.00 | G68: - | H68: 300 | I68: 300.00 | J68: Target Achieved | K68: 43.00 | L68: 16.73% | M68: Successful | N68: 2014-07-02
A69: 3 | B69: 2014-07-08 | D69: JK Cement | E69: Buy | F69: 393.00 | G69: - | H69: 468 | I69: 468.00 | J69: Target Achieved | K69: 75.00 | L69: 19.08% | M69: Successful | N69: 2014-08-12
A70: 4 | B70: 2014-08-06 | D70: Finolex Cables | E70: Buy | F70: 205.00 | G70: - | H70: 275 | I70: 250.00 | J70: Target Achieved | K70: 70.00 | L70: 34.15% | M70: Successful | N70: 2014-11-19
A71: 5 | B71: 2014-09-04 | D71: Exide Inds | E71: Buy | F71: 162.00 | G71: - | H71: 190 | I71: 190.00 | J71: Target Achieved | K71: 28.00 | L71: 17.28% | M71: Successful | N71: 2015-01-02
A72: 6 | B72: 2014-09-04 | D72: Deepak Nitrite | E72: Buy | F72: 75.00 | G72: - | H72: 91.5 | I72: 95-100 | J72: Profit of Rs.16.50/- | K72: 16.50 | L72: 22.00% | M72: Successful | N72: 2014-11-11
A73: 7 | B73: 2014-10-01 | D73: Mercks | E73: Buy | F73: 850.00 | G73: - | H73: 982.5 | I73: 1050.00 | J73: Profit of Rs.132.50/- | K73: 132.50 | L73: 15.59% | M73: Successful | N73: 2015-02-04
A74: 8 | B74: 2014-10-01 | D74: Grindwell Norton | E74: Buy | F74: 475.00 | G74: - | H74: 515 | I74: 600.00 | J74: Profit of Rs.40/- | K74: 40.00 | L74: 8.42% | M74: Successful | N74: 2014-10-27
A75: 9 | B75: 2014-10-01 | D75: Snowman Logistics | E75: Buy | F75: 86.00 | G75: - | H75: 99 | I75: 140.00 | J75: Profit of Rs.13.00/- | K75: 13.00 | L75: 15.12% | M75: Successful | N75: 2014-10-27
A76: 10 | B76: 2014-10-14 | D76: Birla Corp | E76: Buy | F76: 496.60 | G76: - | H76: 621 | I76: 580.00 | J76: Target Achieved | K76: 124.40 | L76: 25.05% | M76: Successful | N76: 2016-08-23
A77: 11 | B77: 2014-10-14 | D77: Ultratech Cem | E77: Buy | F77: 2481.90 | G77: - | H77: 2840 | I77: 2870.00 | J77: Profit of Rs.358.10/- | K77: 358.10 | L77: 14.43% | M77: Successful | N77: 2015-01-13
A78: 12 | B78: 2014-10-16 | D78: Sintex Inds | E78: Buy | F78: 84.50 | G78: - | H78: 93 | I78: 110.00 | J78: Profit of Rs.8.50/- | K78: 8.50 | L78: 10.06% | M78: Successful | N78: 2014-10-27
A79: 13 | B79: 2014-10-16 | D79: HSIL | E79: Buy | F79: 401.00 | G79: - | H79: 428 | I79: 450.00 | J79: Profit of Rs.27.00/- | K79: 27.00 | L79: 6.73% | M79: Successful | N79: 2015-01-16
A80: 14 | B80: 2014-10-16 | D80: Eveready Inds | E80: Buy | F80: 101.00 | G80: - | H80: 112 | I80: 120.00 | J80: Profit of Rs.11.00/- | K80: 11.00 | L80: 10.89% | M80: Successful | N80: 2014-10-27
A81: 15 | B81: 2014-11-11 | D81: Pennar Inds | E81: Buy | F81: 59.00 | G81: - | H81: 76 | I81: 76.00 | J81: Target Achieved | K81: 17.00 | L81: 28.81% | M81: Successful | N81: 2017-10-24
A82: 16 | B82: 2014-11-11 | D82: Snowman Logistics | E82: Buy | F82: 99.00 | G82: - | H82: 120 | I82: 120.00 | J82: Profit of Rs.21/- | K82: 21.00 | L82: 21.21% | M82: Successful | N82: 2014-11-17
A83: 17 | B83: 2014-11-13 | D83: Dharamsi Morarji Chem | E83: Buy | F83: 22.00 | G83: - | H83: 33.55 | I83: 32.00 | J83: Profit of Rs 11.55/- | K83: 11.55 | L83: 52.50% | M83: Successful | N83: 2015-07-03
A84: 18 | B84: 2014-12-03 | D84: Tatachem | E84: Buy | F84: 440.00 | G84: - | H84: 520 | I84: 520.00 | J84: Profit of Rs 80.00/- | K84: 80.00 | L84: 18.18% | M84: Successful | N84: 2015-07-23
A85: 19 | B85: 2014-12-03 | D85: Advanta | E85: Buy | F85: 360.00 | G85: - | H85: 427 | I85: 425.00 | J85: Profit of Rs.67.00/- | K85: 67.00 | L85: 18.61% | M85: Successful | N85: 2015-02-23
A86: 20 | B86: 2015-01-08 | D86: GDL | E86: Buy | F86: 360.00 | G86: - | H86: 455 | I86: 420.00 | J86: Profit of Rs.95.00/- | K86: 95.00 | L86: 26.39% | M86: Successful | N86: 2015-01-20
A87: 21 | B87: 2015-01-08 | D87: NRB Bearing | E87: Buy | F87: 130.00 | H87: 175.5 | I87: 165.00 | J87: Profit of Rs 45.50/- | K87: 45.50 | L87: 35.00% | M87: Successful | N87: 2017-12-19
A88: 22 | B88: 2015-02-05 | D88: GSFC | E88: Accu | F88: 98.00 | H88: 120 | I88: 120.00 | J88: Target Achieved | K88: 22.00 | L88: 22.45% | M88: Successful | N88: 2017-01-18
A89: 23 | B89: 2015-02-05 | D89: Sundrmfast | E89: Accu | F89: 196.00 | H89: 262 | I89: 255.00 | J89: Target Achieved | K89: 66.00 | L89: 33.67% | M89: Successful | N89: 2016-08-17
A90: 24 | B90: 2015-03-04 | D90: GPPL | E90: Accu | F90: 235 | H90: 77.00 | I90: 280-285 | J90: Loss of Rs.158/- | K90: -158.00 | L90: -67.23% | M90: Unsuccessful | N90: 2019-02-26
A91: 25 | B91: 2015-03-04 | D91: ORIENTCEM | E91: Accu | F91: 185.00 | H91: 224 | I91: 220-225 | J91: Target Achieved | K91: 39.00 | L91: 21.08% | M91: Successful | N91: 2016-10-04
A92: 26 | B92: 2015-03-27 | D92: PFS | E92: Accu | F92: 49.5 | H92: 15.85 | I92: 67.00 | J92: Loss of Rs.33.65/- | K92: -33.65 | L92: -68% | M92: Unsuccessful | N92: 2019-06-11
A93: 27 | B93: 2015-03-30 | D93: Walchandnagar Ind Ltd | E93: Accu | F93: 183.50 | H93: 219 | I93: 218.00 | J93: Profit of Rs.35.50/- | K93: 35.50 | L93: 19.35% | M93: Successful | N93: 2015-04-09
A94: 28 | B94: 2015-04-20 | D94: Kalpataru Power Transmission Ltd | E94: Accu | F94: =(227+237)/2 -> 232.00 | H94: 298 | I94: 298.00 | J94: Target Achieved | K94: 66.00 | L94: 28.45% | M94: Successful | N94: 2017-03-29
A95: 29 | B95: 2015-05-04 | D95: Mastek Ltd | E95: Buy | F95: 385.00 | H95: =212.5+331 -> 543.5 | I95: 510.00 | J95: Profit of Rs 158.50/- | K95: 158.50 | L95: 41.17% | M95: Successful | N95: 2015-08-19
A96: 30 | B96: 2015-05-04 | D96: Suprajit Eng | E96: Buy | F96: 115.50 | H96: 146 | I96: 142.00 | J96: Profit of Rs 30.50/- | K96: 30.50 | L96: 26.41% | M96: Successful | N96: 2015-07-17
A97: 31 | B97: 2015-05-27 | D97: TCI | E97: Buy | F97: 237.50 | H97: 279.5 | I97: 278.00 | J97: Target Achieved | K97: 42.00 | L97: 17.68% | M97: Successful | N97: 2015-08-06
A98: 32 | B98: 2015-06-19 | D98: HSIL | E98: Accu | F98: 340.00 | H98: 448 | I98: 448.00 | J98: Target Achieved | K98: 108.00 | L98: 31.76% | M98: Successful | N98: 2017-10-10
A99: 33 | B99: 2015-07-06 | D99: Capital First | E99: Accu | F99: 390.00 | H99: 460 | I99: 460.00 | J99: Target Achieved | K99: =H99-F99 -> 70.00 | L99: =K99/F99 -> 17.95% | M99: Successful | N99: 2016-04-18
A100: 34 | B100: 2015-07-10 | D100: Dolphin OffShore | E100: Accu | F100: 122.5 | H100: 61.00 | I100: 172.00 | J100: Loss of Rs.61.50/- | K100: -61.50 | L100: -50.20% | M100: Unsuccessful | N100: 2018-08-21
A101: 35 | B101: 2015-08-03 | D101: Allcargo logistics | E101: Accu | F101: 297.50 | H101: 350 | I101: 360.00 | J101: Profit of Rs 52.50/- | K101: 52.50 | L101: 17.65% | M101: Successful | N101: 2015-08-16
A102: 36 | B102: 2015-08-03 | D102: Camline Fine | E102: Accu | F102: 115.50 | H102: 149 | I102: 140.00 | J102: Profit of Rs 33.50/- | K102: 33.50 | L102: 29.00% | M102: Successful | N102: 2017-01-05
A103: 37 | B103: 2015-09-04 | D103: TCI | E103: Accu | F103: 226.00 | H103: 292 | I103: 292.00 | J103: Target Achieved | K103: 66.00 | L103: 29.20% | M103: Successful | N103: 2015-10-09
A104: 38 | B104: 2015-09-07 | D104: Kalpataru Power Transmission Ltd | E104: Accu | F104: 232.50 | H104: 312.5 | I104: 310.00 | J104: Target Achieved | K104: 80.00 | L104: 34.41% | M104: Successful | N104: 2017-03-29
A105: 39 | B105: 2015-09-21 | D105: LLOYD ELECTRIC & ENG LTD | E105: Accu | F105: 196.50 | H105: 238 | I105: 238.00 | J105: Target Achieved | K105: 41.50 | L105: 21.12% | M105: Successful | N105: 2015-10-14
A106: 40 | B106: 2015-09-24 | D106: L&T Finance Holding | E106: Accu | F106: 65.00 | H106: 82 | I106: 82.00 | J106: Target Achieved | K106: 17.00 | L106: 26.15% | M106: Successful | N106: 2016-07-27
A107: 41 | B107: 2015-10-14 | D107: KEC International ltd | E107: Accu | F107: 144.00 | H107: 182.5 | I107: 181.00 | J107: Target Achieved | K107: 38.50 | L107: 26.74% | M107: Successful | N107: 2017-03-23
A108: 42 | B108: 2015-10-14 | D108: Gruh Finance | E108: Accu | F108: 264.00 | H108: 311 | I108: 311.00 | J108: Target Achieved | K108: 47.00 | L108: 17.80% | M108: Successful | N108: 2016-08-22
A109: 43 | B109: 2015-11-10 | D109: Pidilitind | E109: Buy | F109: 549.50 | H109: 630 | I109: 630.00 | J109: Target Achieved | K109: 80.50 | L109: 14.65% | M109: Successful | N109: 2016-02-19
A110: 44 | B110: 2015-12-04 | D110: Zensar Technology | E110: Accu | F110: 1027.50 | H110: 1315 | I110: 1250.00 | J110: Target Achieved | K110: 287.50 | L110: 27.98% | M110: Successful | N110: 2018-05-24
A111: 45 | B111: 2015-12-29 | D111: Vinati Organics Ltd | E111: Accu | F111: 465.00 | H111: 540 | I111: 540.00 | J111: Target Achieved | K111: 75.00 | L111: 16.13% | M111: Successful | N111: 2016-06-09
A112: 46 | B112: 2016-01-11 | D112: GSFC | E112: Buy | F112: 81.00 | H112: 110 | I112: 110.00 | J112: Target Achieved | K112: 29.00 | L112: 35.80% | M112: Successful | N112: 2017-01-10
A113: 47 | B113: 2016-01-13 | D113: SSWL | E113: Buy | F113: 417.50 | H113: 547 | I113: 535.00 | J113: Target Achieved | K113: 129.50 | L113: 31.02% | M113: Successful | N113: 2016-07-27
A114: 48 | B114: 2016-02-08 | D114: Persistent System Ltd | E114: Accu | F114: 650.00 | H114: 800 | I114: 800.00 | J114: Target Achieved | K114: 150.00 | L114: 23.08% | M114: Successful | N114: 2018-02-23
A115: 49 | B115: 2016-03-04 | D115: UPL | E115: Accu | F115: 437.50 | H115: 504.5 | I115: 522.00 | J115: Profit of Rs.67/- | K115: 67.00 | L115: 15.31% | M115: Successful | N115: 2016-04-20
A116: 50 | B116: 2016-03-09 | D116: Ashoka Buildcon Ltd | E116: Accu | F116: 189.50 | H116: 218 | I116: 218.00 | J116: Target Achieved | K116: 28.50 | L116: 15.04% | M116: Successful | N116: 2017-10-26
A117: 51 | B117: 2016-04-11 | D117: PTC INDIA FIN SERV LTD | E117: Accu | F117: 36.5 | H117: 15.85 | I117: 60.00 | J117: Loss of Rs.20.65/- | K117: -20.65 | L117: -56.58% | M117: Unsuccessful | N117: 2019-06-11
A118: 52 | B118: 2016-04-12 | D118: CAMLINFINE $ | E118: Accu | F118: 93.00 | H118: 149 | I118: 140.00 | J118: Profit of Rs 56/- | K118: 56.00 | L118: 60.22% | M118: Successful | N118: 2017-01-05
A119: 53 | B119: 2016-04-12 | D119: Greaves Cotton Ltd. | E119: Accu | F119: 130.00 | H119: 150 | I119: 150-155 | J119: Target Achieved | K119: 20.00 | L119: 15.38% | M119: Successful | N119: 2016-07-13
A120: 54 | B120: 2016-04-13 | D120: DHFL | E120: Accu | F120: 196.00 | H120: 299 | I120: 299.00 | J120: Target Achieved | K120: 103.00 | L120: 52.55% | M120: Successful | N120: 2016-09-07
A121: 55 | B121: 2016-04-13 | D121: Magma | E121: Accu | F121: 88.00 | H121: 103 | I121: 103.00 | J121: Target Achieved | K121: 15.00 | L121: 17.05% | M121: Successful | N121: 2016-06-09
A122: 56 | B122: 2016-05-02 | D122: KEC International ltd $ | E122: Accu | F122: 127.50 | H122: 148 | I122: 148-150 | J122: Target Achieved | K122: =H122-F122 -> 20.50 | L122: =K122/F122 -> 16.08% | M122: Successful | N122: 2016-07-13
A123: 57 | B123: 2016-05-03 | D123: Mindtree | E123: Accu | F123: 675.00 | H123: 815 | I123: 790-800 | J123: Target Achieved | K123: =H123-F123 -> 140.00 | L123: =K123/F123 -> 20.74% | M123: Successful | N123: 2018-02-23
A124: 58 | B124: 2016-06-01 | D124: Atulauto | E124: Accu | F124: 500 | H124: 232.50 | I124: 565-570 | J124: Loss of Rs.267.50 /- | K124: =H124-F124 -> -267.50 | L124: =K124/F124 -> -53.50% | M124: Unsuccessful | N124: 2019-09-27
A125: 59 | B125: 2016-06-06 | D125: TRITURBINE | E125: Accu | F125: 110.00 | H125: 126.5 | I125: 125.00 | J125: Profit of Rs.16.50/- | K125: =H125-F125 -> 16.50 | L125: =K125/F125 -> 15.00% | M125: Successful | N125: 2016-07-01
A126: 60 | B126: 2016-06-17 | D126: Pennar Industries Ltd | E126: Accu | F126: 44.00 | H126: 69.5 | I126: 69.50 | J126: Profit of Rs.25.50/- | K126: =H126-F126 -> 25.50 | L126: =K126/F126 -> 57.95% | M126: Successful | N126: 2017-08-30
A127: 61 | B127: 2016-06-28 | D127: EVEREADY | E127: Accu | F127: 262.50 | H127: 340 | I127: 333.00 | J127: Profit of Rs.77.50/- | K127: 77.50 | L127: 29.52% | M127: Successful | N127: 2017-10-09
A128: 62 | B128: 2016-06-28 | D128: FIEMIND | E128: Accu | F128: 840.00 | H128: 1230 | I128: 1230.00 | J128: Target Achieved | K128: 390.00 | L128: 46.43% | M128: Successful | N128: 2016-10-06
A129: 63 | B129: 2016-07-05 | D129: Bajaj Corp Ltd | E129: Accu | F129: 395 | H129: =(468.5+342.5)/2 -> 405.50 | I129: 510.00 | J129: Profit of Rs.10.50/- | K129: =H129-F129 -> 10.50 | L129: =K129/F129 -> 3% | M129: Neutral | N129: 2019-05-21
A130: 64 | B130: 2016-08-02 | D130: GPPL $ | E130: Buy | F130: =169.5-12.8 -> 156.7 | H130: 77.00 | I130: 198-200 | J130: Loss of Rs.79.7/- | K130: -79.70 | L130: -50.86% | M130: Unsuccessful | N130: 2019-02-26
A131: 65 | B131: 2016-08-04 | D131: WONDERLA HOLIDAYS LTD | E131: Accu | F131: 400 | H131: 305.00 | I131: 475.00 | J131: Loss of Rs.95/- | K131: -95.00 | L131: -23.75% | M131: Unsuccessful | N131: 2019-05-21
A132: 66 | B132: 2016-08-11 | D132: CAMLINFINE | E132: Accu | F132: 86.50 | H132: 130 | I132: 130.00 | J132: Profit of Rs.43.50/- | K132: 43.50 | L132: 50.29% | M132: Successful | N132: 2017-12-22
A133: 67 | B133: 2016-08-18 | D133: GRANULES | E133: Accu | F133: 133.5 | H133: 126.50 | I133: 178.00 | J133: Exit | K133: -7.00 | L133: -5.24% | M133: Unsuccessful | N133: 2016-09-02
A134: 68 | B134: 2016-08-31 | D134: VA TECH WABAG | E134: Accu | F134: 560.00 | H134: 725 | I134: 725.00 | J134: Target Achieved | K134: 165.00 | L134: 29.46% | M134: Successful | N134: 2016-03-27
A135: 69 | B135: 2016-09-01 | D135: SKIPPER LIMITED | E135: Accu | F135: 160.50 | H135: 210 | I135: 210.00 | J135: Target Achieved | K135: 49.50 | L135: 30.84% | M135: Successful | N135: 2017-05-16
A136: 70 | B136: 2016-10-03 | D136: IFBIND | E136: Accu | F136: 430.00 | H136: 596 | I136: 575.00 | J136: Profit of Rs.166/- | K136: 166.00 | L136: 38.60% | M136: Successful | N136: 2017-02-03
A137: 71 | B137: 2016-10-14 | D137: ASIANTILES | E137: Accu | F137: 280.00 | H137: 345 | I137: 345.00 | J137: Target Achieved | K137: =H137-F137 -> 65.00 | L137: =K137/F137 -> 23.21% | M137: Successful | N137: 2017-03-20
A138: 72 | B138: 2016-10-14 | D138: DEEPIND | E138: Accu | F138: 245.00 | H138: 325.5 | I138: 330.00 | J138: Profit of Rs.80.5/- | K138: 80.50 | L138: =K138/F138 -> 32.86% | M138: Successful | N138: 2017-02-03
A139: 73 | B139: 2016-10-17 | D139: DCBBANK | E139: Accu | F139: 125.00 | H139: 160 | I139: 160.00 | J139: Target Achieved | K139: 35.00 | L139: 28.00% | M139: Successful | N139: 2017-03-09
A140: 74 | B140: 2016-10-17 | D140: ORIENTREF | E140: Accu | F140: 114.00 | H140: 145 | I140: 145.00 | J140: Target Achieved | K140: 31.00 | L140: =K140/F140 -> 27.19% | M140: Successful | N140: 2017-05-04
A141: 75 | B141: 2016-10-17 | D141: GANECOS | E141: Accu | F141: 212.00 | H141: 280 | I141: 276.00 | J141: Profit of Rs.68/- | K141: 68.00 | L141: =K141/F141 -> 32.08% | M141: Successful | N141: 2017-05-03
A142: 76 | B142: 2016-11-04 | D142: NBCC | E142: Accu | F142: 155.00 | H142: 210 | I142: 210.00 | J142: Profit of Rs.55/- | K142: 55.00 | L142: =K142/F142 -> 35.48% | M142: Successful | N142: 2017-07-28
A143: 77 | B143: 2016-12-06 | D143: PRECAM | E143: Accu | F143: 150.5 | H143: 72.50 | I143: 174.00 | J143: Loss of Rs.78/- | K143: -78.00 | L143: -51.83% | M143: Unsuccessful | N143: 2018-08-21
A144: 78 | B144: 2016-12-08 | D144: INFRATEL | E144: Accu | F144: 380.00 | H144: 478 | I144: 468.00 | J144: Target Achieved | K144: =H144-F144 -> 98.00 | L144: =K144/F144 -> 25.79% | M144: Successful | N144: 2017-10-17
A145: 79 | B145: 2016-12-30 | D145: GODREJPROP | E145: Accu | F145: 305.00 | H145: 375 | I145: 375.00 | J145: Target Achieved | K145: =H145-F145 -> 70.00 | L145: =K145/F145 -> 22.95% | M145: Successful | N145: 2017-02-02
A146: 80 | B146: 2017-01-04 | D146: DEEPAKNTR | E146: Accu | F146: 99.50 | H146: 158 | I146: 158.00 | J146: Target Achieved | K146: =H146-F146 -> 58.50 | L146: =K146/F146 -> 58.79% | M146: Successful | N146: 2017-06-12
A147: 81 | B147: 2017-01-04 | D147: DEEPAKNTR | E147: Accu | F147: 99.50 | H147: 158 | I147: 158.00 | J147: Target Achieved | K147: 58.50 | L147: 58.79% | M147: Successful | N147: 2017-06-12
A148: 82 | B148: 2017-02-20 | D148: RECLTD | E148: Accu | F148: 140.50 | H148: 220 | I148: 220.00 | J148: Target Achieved | K148: =H148-F148 -> 79.50 | L148: =K148/F148 -> 56.58% | M148: Successful | N148: 2017-05-09
A149: 83 | B149: 2017-02-20 | D149: SUBROS | E149: Accu | F149: 202.50 | H149: 234 | I149: 234.00 | J149: Target Achieved | K149: 31.50 | L149: 15.56% | M149: Successful | N149: 2017-04-11
A150: 84 | B150: 2017-03-24 | D150: VRLLOG | E150: Accu | F150: 300.50 | H150: 417.5 | I150: 420.00 | J150: Profit of Rs.117/- | K150: =H150-F150 -> 117.00 | L150: =K150/F150 -> 38.94% | M150: Successful | N150: 2017-12-01
A151: 85 | B151: 2017-03-24 | D151: FIEMIND | E151: Accu | F151: 850.00 | H151: 1042.5 | I151: 1023.00 | J151: Profit of Rs 192.50/- | K151: 192.50 | L151: 22.65% | M151: Successful | N151: 2017-04-05
A152: 86 | B152: 2017-04-05 | D152: RATNAMANI | E152: Accu | F152: 785.00 | H152: 930 | I152: 920.00 | J152: Profit of Rs.145/- | K152: =H152-F152 -> 145.00 | L152: =K152/F152 -> 18.47% | M152: Successful | N152: 2017-08-29
A153: 87 | B153: 2017-04-06 | D153: ZEEMEDIA | E153: Accu | F153: 40 | H153: 13.10 | I153: 60.00 | J153: Loss of Rs.26.9/- | K153: -26.90 | L153: -67.25% | M153: Unsuccessful | N153: 2018-02-07
A154: 88 | B154: 2017-04-12 | D154: DABUR | E154: Accu | F154: 289.50 | H154: 354 | I154: 360.00 | J154: Profit of Rs.64.5/- | K154: =H154-F154 -> 64.50 | L154: =K154/F154 -> 22.28% | M154: Successful | N154: 2017-11-01
A155: 89 | B155: 2017-04-20 | D155: KPRMILL | E155: Accu | F155: 700.00 | H155: 840 | I155: 840.00 | J155: Profit of Rs.140/- | K155: 140.00 | L155: 20.00% | M155: Successful | N155: 2017-06-07
A156: 90 | B156: 2017-06-01 | D156: ESSELPACK | E156: Accu | F156: 130.00 | H156: 144.25 | I156: 170.00 | J156: Profit of Rs.14.25/- | K156: 14.25 | L156: 10.96% | M156: Successful | N156: 2019-07-29
A157: 91 | B157: 2017-06-15 | D157: KEI | E157: Accu | F157: 214.50 | H157: 262 | I157: 262.00 | J157: Profit of Rs.47.5/- | K157: 47.50 | L157: 22.14% | M157: Successful | N157: 2017-08-30
A158: 92 | B158: 2017-07-17 | D158: MAYURUNIQ | E158: Accu | F158: 370.00 | H158: 447.5 | I158: 450.00 | J158: Target Achieved | K158: 77.50 | L158: 20.95% | M158: Successful | N158: 2017-10-27
A159: 93 | B159: 2017-07-27 | D159: RAMCOCEM | E159: Accu | F159: 657.50 | H159: 825 | I159: 820.00 | J159: Target Achieved | K159: 167.50 | L159: 25.48% | M159: Successful | N159: 2017-12-21
A160: 94 | B160: 2017-08-17 | D160: FINPIPE | E160: Accu | F160: 605.00 | H160: 750 | I160: 750.00 | J160: Profit of Rs.145/- | K160: 145.00 | L160: 23.97% | M160: Successful | N160: 2017-10-19
A161: 95 | B161: 2017-09-01 | D161: SHK | E161: Accu | F161: 255 | H161: 217.25 | I161: 320.00 | J161: Loss of Rs.37.75/- | K161: -37.75 | L161: -15% | M161: Unsuccessful | N161: 2019-07-15
A162: 96 | B162: 2017-09-19 | D162: SKIPPER | E162: Accu | F162: 215.00 | H162: 258 | I162: 258.00 | J162: Target Achieved | K162: 43.00 | L162: 20.00% | M162: Successful | N162: 2017-11-01
A163: 97 | B163: 2017-09-19 | D163: SKIPPER | E163: Accu | F163: 215.00 | H163: 258 | I163: 258.00 | J163: Target Achieved | K163: 43.00 | L163: 20.00% | M163: Successful | N163: 2017-11-01
A164: 98 | B164: 2017-09-20 | D164: CAMLINFINE$ | E164: Accu | F164: 75.00 | H164: 90 | I164: 90.00 | J164: Profit of Rs.15.00/- | K164: =H164-F164 -> 15.00 | L164: =K164/F164 -> 20.00% | M164: Successful | N164: 2017-10-11
A165: 99 | B165: 2017-10-03 | D165: GNA | E165: Accu | F165: 315.00 | H165: 392 | I165: 384.00 | J165: Profit of Rs.77/- | K165: 77.00 | L165: 24.44% | M165: Successful | N165: 2017-10-09
A166: 100 | B166: 2017-10-05 | D166: NOCIL | E166: Accu | F166: 145.00 | H166: 179 | I166: 180.00 | J166: Profit of Rs.34/- | K166: 34.00 | L166: 23.45% | M166: Successful | N166: 2017-10-17
A167: 101 | B167: 2017-10-06 | D167: CENTURYPLY | E167: Accu | F167: 256.00 | H167: 323 | I167: 320.00 | J167: Target Achieved | K167: 67.00 | L167: 26.17% | M167: Successful | N167: 2017-11-28
A168: 102 | B168: 2017-10-09 | D168: EIHOTEL | E168: Accu | F168: 137.50 | H168: 184 | I168: 183.00 | J168: Profit of Rs.46.5/- | K168: 46.50 | L168: 33.82% | M168: Successful | N168: 2018-01-08
A169: 103 | B169: 2017-10-10 | D169: NRBBEARING | E169: Accu | F169: 125.50 | H169: 158 | I169: 155.00 | J169: Profit of Rs.32.5/- | K169: 32.50 | L169: 25.90% | M169: Successful | N169: 2017-11-28
A170: 104 | B170: 2017-10-10 | D170: BOROSIL | E170: Accu | F170: 895.00 | H170: 1122.5 | I170: 1078.00 | J170: Profit of Rs.227.5/- | K170: 227.50 | L170: 25.42% | M170: Successful | N170: 2018-01-17
A171: 105 | B171: 2017-10-12 | D171: CYIENT | E171: Accu | F171: 525.00 | H171: 629 | I171: 629.00 | J171: Target Achieved | K171: 104.00 | L171: 19.81% | M171: Successful | N171: 2018-01-19
A172: 106 | B172: 2017-11-07 | D172: HATSUN | E172: Accu | F172: 740.00 | H172: 892.5 | I172: 900.00 | J172: Profit of Rs.152.5/- | K172: =H172-F172 -> 152.50 | L172: =K172/F172 -> 20.61% | M172: Successful | N172: 2017-11-13
A173: 107 | B173: 2017-12-04 | D173: SANGHIIND | E173: Accu | F173: 118.50 | H173: 143.5 | I173: 145.00 | J173: Profit of Rs.25/- | K173: =H173-F173 -> 25.00 | L173: =K173/F173 -> 21.10% | M173: Successful | N173: 2017-12-28
A174: 108 | B174: 2017-12-21 | D174: KAJARIACER | E174: Accu | F174: 715 | H174: 500.00 | I174: 872.00 | J174: Loss of Rs.215/- | K174: =H174-F174 -> -215.00 | L174: =K174/F174 -> -30.07% | M174: Unsuccessful | N174: 2019-07-24
A175: 109 | B175: 2017-12-29 | D175: GNA | E175: Accu | F175: 435.00 | H175: 542.5 | I175: 539.00 | J175: Target Achieved | K175: 107.50 | L175: 24.71% | M175: Successful | N175: 2018-04-16
A176: 110 | B176: 2017-12-29 | D176: ZENSARTECH | E176: Accu | F176: 885.00 | H176: 1090 | I176: 1084.00 | J176: Target Achieved | K176: 205.00 | L176: 23.16% | M176: Successful | N176: 2018-04-23
A177: 111 | B177: 2018-04-02 | D177: EVERESTIND | E177: Accu | F177: 478.50 | H177: 442 | I177: 613.00 | J177: Loss of Rs.36.50 /- | K177: =H177-F177 -> -36.50 | L177: =K177/F177 -> -7.63% | M177: Unsuccessful | N177: 2019-10-24
A178: 112 | B178: 2018-04-04 | D178: GPPL$ | E178: Accu | F178: =141.5-7.3 -> 134.2 | H178: 77.00 | I178: 180.00 | J178: Loss of Rs.57.2/- | K178: =H178-F178 -> -57.20 | L178: =K178/F178 -> -42.62% | M178: Unsuccessful | N178: 2019-02-26
A179: 113 | B179: 2018-04-19 | D179: MANPASAND | E179: Accu | F179: 430 | H179: 220.00 | I179: 537.00 | J179: Loss of Rs.210/- | K179: =H179-F179 -> -210.00 | L179: =K179/F179 -> -48.84% | M179: Unsuccessful | N179: 2018-06-01
A180: 114 | B180: 2018-04-30 | D180: HEIDELBERG | E180: Accu | F180: 153.50 | H180: 196.00 | I180: 196.00 | J180: Profit of Rs.42.50/- | K180: =H180-F180 -> 42.50 | L180: =K180/F180 -> 28% | M180: Successful | N180: 2019-05-20
A181: 115 | B181: 2018-07-25 | D181: ZEEMEDIA | E181: Accu | F181: 27.5 | H181: 13.10 | I181: 60.00 | J181: Loss of Rs.14.40/- | K181: -14.40 | L181: -52.36% | M181: Unsuccessful | N181: 2018-02-07
A182: 116 | B182: 2018-08-06 | D182: GABRIEL | E182: Accu | F182: 148.5 | H182: 102 | I182: 182.00 | J182: Loss of Rs.46.50/- | K182: =H182-F182 -> -46.50 | L182: =K182/F182 -> -31.31% | M182: Unsuccessful | N182: 2019-07-15
A183: 117 | B183: 2018-08-23 | D183: INDIANHUME | E183: Accu | F183: 285 | H183: 355 | I183: 364.00 | J183: Profit of Rs.70/- | K183: 70.00 | L183: 24.56% | M183: Successful | N183: 2018-12-21
A184: 118 | B184: 2018-08-29 | D184: GRINDWELL | E184: Accu | F184: 525 | H184: 585 | I184: 635.00 | J184: Profit of Rs.60- | K184: =H184-F184 -> 60.00 | L184: =K184/F184 -> 11.43% | M184: Successful | N184: 2019-07-16
A185: 119 | B185: 2018-10-22 | D185: FINPIPE | E185: Accu | F185: 475 | H185: 574 | I185: 570.00 | J185: Target Achieved | K185: 99.00 | L185: 20.84% | M185: Successful | N185: 2018-10-30
A186: 120 | B186: 2018-10-24 | D186: GULFOILLUB | E186: Accu | F186: 707.5 | H186: 872 | I186: 872.00 | J186: Target Achieved | K186: 164.50 | L186: 23.25% | M186: Successful | N186: 2019-01-17
A187: 121 | B187: 2018-10-25 | D187: DBCORP | E187: Accu | F187: 162 | H187: 204 | I187: 209.00 | J187: Profit of Rs.42/- | K187: 42.00 | L187: 25.93% | M187: Successful | N187: 2019-03-15
A188: 122 | B188: 2018-10-26 | D188: RITES | E188: Accu | F188: 240 | H188: 297 | I188: 297.00 | J188: Target Achieved | K188: 57.00 | L188: 23.75% | M188: Successful | N188: 2018-11-13
A189: 123 | B189: 2018-12-05 | D189: BRIGADE | E189: Accu | F189: 202.5 | H189: 255 | I189: 252.00 | J189: Target Achieved | K189: 52.50 | L189: 25.93% | M189: Successful | N189: 2019-03-18
A190: 124 | B190: 2018-12-31 | D190: JKCEMENT | E190: Accu | F190: 710 | H190: 866 | I190: 866.00 | J190: Target Achieved | K190: 156.00 | L190: 21.97% | M190: Successful | N190: 2019-03-29
A191: 125 | B191: 2019-02-26 | D191: MARICO | E191: Accu | F191: 337.25 | H191: 398.5 | I191: 411.00 | J191: Profit of Rs.61.25/- | K191: 61.25 | L191: 18.16% | M191: Successful | N191: 2019-10-22
A192: 126 | B192: 2019-04-04 | D192: ITDCEM | E192: Accu | F192: 130 | H192: 65 | I192: 158.00 | J192: Loss of Rs.65 /- | K192: -65.00 | L192: -50.00% | M192: Unsuccessful | N192: 2019-09-18
A193: 127 | B193: 2017-10-09 | D193: RECLTD | E193: Accu | F193: 141.5 | H193: 183.50 | I193: 210.00 | J193: Part Profit of Rs.42/- | K193: 42.00 | L193: 30% | M193: Successful | N193: 2017-11-03 | R193: V
A194: 128 | B194: 2017-12-05 | D194: ALLCARGO | E194: Accu | F194: 172.00 | H194: 155.25 | I194: 230.00 | J194: Loss of Rs.16.75/- | K194: =H194-F194 -> -16.75 | L194: =K194/F194 -> -9.74% | M194: Unsuccessful | N194: 2019-11-18 | R194: V
A195: 129 | B195: 2018-10-25 | D195: GODREJCP | E195: Accu | F195: 698.50 | H195: 850.00 | I195: 890.00 | J195: Part Profit of Rs.151.50/- | K195: 151.50 | L195: 22% | M195: Successful | N195: 2018-12-19 | R195: V
A196: 130 | B196: 2017-05-22 | D196: GREAVESCOT | E196: Accu | F196: 127.6 | H196: 138.00 | I196: 190.00 | J196: Profit of Rs.10.40 | K196: 10.40 | L196: 8% | M196: Successful | N196: 2019-11-05 | R196: K
A197: 131 | B197: 2018-02-27 | D197: MOLDTKPAC | E197: Accu | F197: 317.00 | I197: 398.00 | M197: Open | R197: K
A198: 132 | B198: 2018-03-05 | D198: LICHSGFIN | E198: Accu | F198: =510-14.4 -> 495.60 | H198: 350 | I198: 672.00 | J198: Loss of Rs.145.60/- | K198: =H198-F198 -> -145.60 | L198: =K198/F198 -> -29.38% | M198: Unsuccessful | N198: 2020-02-26 | R198: K
A199: 133 | B199: 2018-05-17 | D199: PHILIPCARB | E199: Accu | F199: 230.30 | H199: 102.5 | I199: 348.00 | J199: Loss of Rs.127.80/- | K199: =H199-F199 -> -127.80 | L199: =K199/F199 -> -55.49% | M199: Unsuccessful | N199: 2020-03-06 | R199: V
A200: 134 | B200: 2018-06-07 | D200: KEC | E200: Accu | F200: =342.5-5.1 -> 337.40 | I200: 439.00 | M200: Open | R200: K
A201: 135 | B201: 2018-07-04 | D201: ASHOKLEY | E201: Accu | F201: =127.5-5.53 -> 121.97 | I201: 170.00 | M201: Open | R201: K
A202: 136 | B202: 2018-07-13 | D202: FCONSUMER | E202: Accu | F202: 46.50 | H202: 17 | I202: 59.00 | J202: Loss of Rs.29.50/- | K202: =H202-F202 -> -29.50 | L202: =K202/F202 -> -63.44% | M202: Unsuccessful | N202: 2020-02-26 | R202: V
A203: 137 | B203: 2018-10-23 | D203: JKPAPER | E203: Accu | F203: 156.50 | I203: 191.00 | M203: Open | R203: V
A204: 138 | B204: 2018-12-05 | D204: CCL | E204: Accu | F204: 259.50 | I204: 321.00 | M204: Open | R204: K
A205: 139 | B205: 2018-12-05 | D205: VARROC | E205: Accu | F205: 715 | H205: 445 | I205: 840.00 | J205: Loss of Rs.270/- | K205: =H205-F205 -> -270.00 | L205: =K205/F205 -> -37.76% | M205: Unsuccessful | N205: 2019-12-01 | R205: V
A206: 140 | B206: 2019-01-04 | D206: MGL | E206: Accu | F206: 875 | H206: 1165 | I206: 1185.00 | J206: Profit of Rs.290/- | K206: 290.00 | L206: 33.14% | M206: Successful | N206: 2020-01-17 | R206: V
A207: 141 | B207: 2019-04-04 | D207: COCHINSHIP | E207: Accu | F207: =387-14.63 -> 372.37 | H207: 490 | I207: 490.00 | J207: Target Achieved | K207: 117.63 | L207: 31.59% | M207: Successful | N207: 2020-01-20 | R207: V
A208: 142 | B208: 2019-04-23 | D208: MAHINDCIE | E208: Buy | F208: 220 | H208: 127.5 | I208: 284.00 | J208: Loss of Rs.92.50/- | K208: -92.50 | L208: -42.05% | M208: Unsuccessful | N208: 2020-03-06 | R208: V
A209: 143 | B209: 2019-06-06 | D209: RADICO | E209: Buy | F209: 332.8 | H209: 405 | I209: 419.00 | J209: Profit of Rs.72.20/- | K209: =H209-F209 -> 72.20 | L209: =K209/F209 -> 21.69% | M209: Successful | N209: 2020-01-30 | R209: V
A210: 144 | B210: 2019-06-25 | D210: M&MFIN | E210: Accu | F210: 386 | H210: 395.00 | I210: 452.00 | J210: Profit of Rs.9/- | K210: =H210-F210 -> 9.00 | L210: =K210/F210 -> 2% | M210: Neutral | N210: 2020-02-07 | R210: V
A211: 145 | B211: 2019-08-30 | D211: INDHOTEL | E211: Accu | F211: 135-140 | I211: 190.00 | M211: Open | R211: V
A212: 146 | B212: 2019-09-23 | D212: KNRCON | E212: Accu | F212: 235 | H212: 295 | I212: 296.00 | J212: Profit of Rs.60/- | K212: =H212-F212 -> 60.00 | L212: =K212/F212 -> 25.53% | M212: Successful | N212: 2020-01-14 | R212: V
A213: 147 | B213: 2019-10-14 | D213: KEC$ | E213: Accu | F213: 277.5 | H213: 333 | I213: 333.00 | J213: Profit of Rs.55.50/- | K213: =H213-F213 -> 55.50 | L213: =K213/F213 -> 20.00% | M213: Successful | N213: 2020-01-16 | R213: K
A214: 148 | B214: 2019-10-14 | D214: MGL$ | E214: Accu | F214: 930 | H214: 1165 | I214: 1200.00 | J214: Profit of Rs.235/- | K214: =H214-F214 -> 235.00 | L214: =K214/F214 -> 25.27% | M214: Successful | N214: 2020-01-17 | R214: K
A215: 149 | B215: 2019-10-15 | D215: JKPAPER$ | E215: Accu | F215: 111.00 | I215: 141.00 | M215: Open | R215: V
A216: 150 | B216: 2019-10-15 | D216: RADICO$ | E216: Accu | F216: 296.00 | H216: 370 | I216: 370.00 | J216: Target Achieved | K216: =H216-F216 -> 74.00 | L216: =K216/F216 -> 25.00% | M216: Successful | N216: 2020-01-23 | R216: K
A217: 151 | B217: 2019-10-16 | D217: MOLDTKPAC$ | E217: Accu | F217: 298-302 | I217: 344.00 | M217: Open | R217: V
A218: 152 | B218: 2020-01-02 | D218: PSPPROJECT | E218: Accu | F218: 490-500 | I218: 590.00 | M218: Open | R218: K
A219: 153 | B219: 2020-05-15 | D219: BEL | E219: Accu | F219: 67.50 | H219: 86 | I219: 86.00 | J219: Profit of Rs.18.50/- | K219: =H219-F219 -> 18.50 | L219: =K219/F219 -> 27.41% | M219: Successful | N219: 2020-06-26
B220: Re-initiated $

Sheet Sheet2 (hidden)
A1: SYMBOL | B1: SERIES | C1: OPEN | D1: HIGH | E1: LOW | F1: CLOSE | G1: LAST | H1: PREVCLOSE | I1: TOTTRDQTY | J1: TOTTRDVAL | K1: TIMESTAMP | L1: TOTALTRADES | M1: ISIN | N1: ISIN
A2: 20MICRONS | B2: EQ | C2: 27.9 | D2: 29 | E2: 25.9 | F2: 26.2 | G2: 25.9 | H2: 27.5 | I2: 80527 | J2: 2193820.55 | K2: 2020-04-08 | L2: 1099 | M2: INE144J01027
A3: 21STCENMGM | B3: EQ | C3: 10.15 | D3: 10.5 | E3: 10.1 | F3: 10.4 | G3: 10.5 | H3: 10.3 | I3: 3205 | J3: 32728.25 | K3: 2020-04-08 | L3: 28 | M3: INE253B01015
A4: 3IINFOTECH | B4: EQ | C4: 1.35 | D4: 1.35 | E4: 1.2 | F4: 1.25 | G4: 1.25 | H4: 1.35 | I4: 2793301 | J4: 3578364.95 | K4: 2020-04-08 | L4: 46535 | M4: INE748C01020
A5: 3MINDIA | B5: EQ | C5: 18950 | D5: 19170 | E5: 18155.05 | F5: 18318.2 | G5: 18270 | H5: 18755.7 | I5: 9926 | J5: 183605811.2 | K5: 2020-04-08 | L5: 4453 | M5: INE470A01017
A6: 3PLAND | B6: EQ | C6: 3.7 | D6: 3.85 | E6: 3.7 | F6: 3.85 | G6: 3.85 | H6: 3.7 | I6: 406 | J6: 1557.85 | K6: 2020-04-08 | L6: 9 | M6: INE105C01023
A7: 5PAISA | B7: EQ | C7: 119.95 | D7: 134 | E7: 115 | F7: 123.35 | G7: 120.5 | H7: 116.4 | I7: 6500 | J7: 793277.05 | K7: 2020-04-08 | L7: 265 | M7: INE618L01018
A8: 63MOONS | B8: EQ | C8: 50.7 | D8: 55.45 | E8: 50.7 | F8: 53.7 | G8: 53.55 | H8: 50.7 | I8: 72221 | J8: 3890984.7 | K8: 2020-04-08 | L8: 3078 | M8: INE111B01023
A9: A2ZINFRA | B9: EQ | C9: 3.15 | D9: 3.25 | E9: 3.1 | F9: 3.15 | G9: 3.15 | H9: 3.15 | I9: 116011 | J9: 367778.85 | K9: 2020-04-08 | L9: 227 | M9: INE619I01012
A10: AARTIDRUGS | B10: EQ | C10: 627 | D10: 669.3 | E10: 605 | F10: 631.6 | G10: 625 | H10: 607.85 | I10: 75970 | J10: 48223549.15 | K10: 2020-04-08 | L10: 5720 | M10: INE767A01016
A11: AARTIIND | B11: EQ | C11: 839.95 | D11: 909.8 | E11: 818 | F11: 854.9 | G11: 864 | H11: 830.7 | I11: 477805 | J11: 419092386.9 | K11: 2020-04-08 | L11: 50045 | M11: INE769A01020
A12: AARVEEDEN | B12: EQ | C12: 8.95 | D12: 9.25 | E12: 7.85 | F12: 8.35 | G12: 8.45 | H12: 8.1 | I12: 9251 | J12: 77100.1 | K12: 2020-04-08 | L12: 94 | M12: INE273D01019
A13: AAVAS | B13: EQ | C13: 1101 | D13: 1183 | E13: 1101 | F13: 1135.2 | G13: 1137 | H13: 1142.35 | I13: 24179 | J13: 28073100.85 | K13: 2020-04-08 | L13: 3631 | M13: INE216P01012
A14: ABAN | B14: EQ | C14: 15.7 | D14: 16.2 | E14: 15.7 | F14: 16.2 | G14: 16.2 | H14: 15.45 | I14: 37609 | J14: 608439.6 | K14: 2020-04-08 | L14: 288 | M14: INE421A01028
A15: ABB | B15: EQ | C15: 935 | D15: 965 | E15: 910 | F15: 930.7 | G15: 928 | H15: 931.35 | I15: 87757 | J15: 82358527.9 | K15: 2020-04-08 | L15: 4699 | M15: INE117A01022
A16: ABBOTINDIA | B16: EQ | C16: 16799.45 | D16: 18250 | E16: 16750 | F16: 17481.1 | G16: 17488 | H16: 16699.7 | I16: 57991 | J16: 1023745502 | K16: 2020-04-08 | L16: 21022 | M16: INE358A01014
A17: ABCAPITAL | B17: EQ | C17: 45 | D17: 47.9 | E17: 44.25 | F17: 45.6 | G17: 45.7 | H17: 45.1 | I17: 1253267 | J17: 57952493.6 | K17: 2020-04-08 | L17: 7317 | M17: INE674K01013
A18: ABFRL | B18: EQ | C18: 148 | D18: 152.8 | E18: 146.75 | F18: 149 | G18: 148 | H18: 149.85 | I18: 416099 | J18: 62371769.1 | K18: 2020-04-08 | L18: 10148 | M18: INE647O01011
A19: ABSLNN50ET | B19: EQ | C19: 244 | D19: 248 | E19: 210 | F19: 235 | G19: 235 | H19: 244 | I19: 56 | J19: 12779.4 | K19: 2020-04-08 | L19: 13 | M19: INF209KB1B87
A20: ACC | B20: EQ | C20: 1000 | D20: 1029.9 | E20: 941.25 | F20: 956.05 | G20: 958 | H20: 1009.95 | I20: 2153627 | J20: 2101320389 | K20: 2020-04-08 | L20: 79728 | M20: INE012A01025
A21: ACCELYA | B21: EQ | C21: 874.3 | D21: 886 | E21: 862 | F21: 880.45 | G21: 879.95 | H21: 874.3 | I21: 10865 | J21: 9557704.55 | K21: 2020-04-08 | L21: 923 | M21: INE793A01012
A22: ACE | B22: EQ | C22: 32.75 | D22: 35.2 | E22: 32.55 | F22: 33.25 | G22: 33.35 | H22: 32.95 | I22: 244708 | J22: 8296578.4 | K22: 2020-04-08 | L22: 2925 | M22: INE731H01025
A23: ADANIENT | B23: EQ | C23: 136.85 | D23: 147.15 | E23: 134.9 | F23: 138.1 | G23: 137.5 | H23: 138.15 | I23: 3237290 | J23: 456492273.1 | K23: 2020-04-08 | L23: 23696 | M23: INE423A01024
A24: ADANIGAS | B24: EQ | C24: 93.9 | D24: 96.35 | E24: 90.5 | F24: 90.8 | G24: 90.65 | H24: 94 | I24: 1888606 | J24: 176837924.4 | K24: 2020-04-08 | L24: 14517 | M24: INE399L01023
A25: ADANIGREEN | B25: EQ | C25: 166.85 | D25: 166.85 | E25: 162 | F25: 166.45 | G25: 166.85 | H25: 158.95 | I25: 702014 | J25: 116248737 | K25: 2020-04-08 | L25: 10187 | M25: INE364U01010
A26: ADANIPORTS | B26: EQ | C26: 248 | D26: 255.85 | E26: 242.75 | F26: 250.85 | G26: 249.7 | H26: 248.1 | I26: 6897883 | J26: 1724830525 | K26: 2020-04-08 | L26: 81499 | M26: INE742F01042
A27: ADANIPOWER | B27: EQ | C27: 28.65 | D27: 31.15 | E27: 27.5 | F27: 28.95 | G27: 28.85 | H27: 28.8 | I27: 12308064 | J27: 361987996.9 | K27: 2020-04-08 | L27: 23153 | M27: INE814H01011
A28: ADANITRANS | B28: EQ | C28: 196.65 | D28: 202 | E28: 190 | F28: 193.65 | G28: 193.5 | H28: 198.3 | I28: 306320 | J28: 59783940.3 | K28: 2020-04-08 | L28: 4236 | M28: INE931S01010
A29: ADFFOODS | B29: EQ | C29: 187.85 | D29: 192.25 | E29: 184 | F29: 187.7 | G29: 187.3 | H29: 183.1 | I29: 22107 | J29: 4185556.05 | K29: 2020-04-08 | L29: 773 | M29: INE982B01019
A30: ADHUNIKIND | B30: EQ | C30: 13.3 | D30: 13.3 | E30: 13.3 | F30: 13.3 | G30: 13.3 | H30: 12.7 | I30: 5518 | J30: 73389.4 | K30: 2020-04-08 | L30: 21 | M30: INE452L01012
A31: ADLABS | B31: EQ | C31: 2.75 | D31: 2.85 | E31: 2.75 | F31: 2.85 | G31: 2.85 | H31: 2.75 | I31: 19360 | J31: 54965.35 | K31: 2020-04-08 | L31: 72 | M31: INE172N01012
A32: ADORWELD | B32: EQ | C32: 195.7 | D32: 201.9 | E32: 193.95 | F32: 195.1 | G32: 194.45 | H32: 196.75 | I32: 1438 | J32: 283768.75 | K32: 2020-04-08 | L32: 94 | M32: INE045A01017
A33: ADROITINFO | B33: EQ | C33: 5.5 | D33: 5.7 | E33: 5.45 | F33: 5.7 | G33: 5.7 | H33: 5.7 | I33: 691 | J33: 3857 | K33: 2020-04-08 | L33: 25 | M33: INE737B01033
A34: ADSL | B34: EQ | C34: 13.05 | D34: 13.2 | E34: 12.4 | F34: 12.5 | G34: 12.45 | H34: 12.7 | I34: 16203 | J34: 205559.25 | K34: 2020-04-08 | L34: 143 | M34: INE102I01027
A35: ADVANIHOTR | B35: EQ | C35: 30.1 | D35: 33 | E35: 30.1 | F35: 31.8 | G35: 31.5 | H35: 30.65 | I35: 5340 | J35: 169948.95 | K35: 2020-04-08 | L35: 193 | M35: INE199C01026
A36: ADVENZYMES | B36: EQ | C36: 140.2 | D36: 146.55 | E36: 137.95 | F36: 139.2 | G36: 139.75 | H36: 136.55 | I36: 77441 | J36: 11046136.15 | K36: 2020-04-08 | L36: 1990 | M36: INE837H01020
A37: AEGISCHEM | B37: EQ | C37: 150 | D37: 158.5 | E37: 147.1 | F37: 156.35 | G37: 156.05 | H37: 144.1 | I37: 175470 | J37: 27041093.9 | K37: 2020-04-08 | L37: 4268 | M37: INE208C01025
A38: AFFLE | B38: BE | C38: 1050 | D38: 1053.45 | E38: 1030 | F38: 1053.45 | G38: 1053.45 | H38: 1003.3 | I38: 8191 | J38: 8619737.5 | K38: 2020-04-08 | L38: 470 | M38: INE00WC01019
A39: AGARIND | B39: EQ | C39: 49.8 | D39: 52.85 | E39: 49.05 | F39: 52.25 | G39: 52.5 | H39: 49.95 | I39: 7826 | J39: 404450.25 | K39: 2020-04-08 | L39: 207 | M39: INE204E01012
A40: AGCNET | B40: BE | C40: 224.35 | D40: 235.55 | E40: 213.25 | F40: 234.7 | G40: 235.55 | H40: 224.35 | I40: 2524 | J40: 573063 | K40: 2020-04-08 | L40: 70 | M40: INE676A01019
A41: AGRITECH | B41: EQ | C41: 23.95 | D41: 23.95 | E41: 23.95 | F41: 23.95 | G41: 23.95 | H41: 22.85 | I41: 504 | J41: 12070.8 | K41: 2020-04-08 | L41: 18 | M41: INE449G01018
A42: AGROPHOS | B42: EQ | C42: 5.7 | D42: 5.7 | E42: 5.2 | F42: 5.7 | G42: 5.7 | H42: 5.45 | I42: 40596 | J42: 227201.55 | K42: 2020-04-08 | L42: 340 | M42: INE740V01019
A43: AHLEAST | B43: EQ | C43: 133.15 | D43: 141.85 | E43: 128.15 | F43: 131.55 | G43: 128.35 | H43: 131.5 | I43: 3303 | J43: 439718.1 | K43: 2020-04-08 | L43: 350 | M43: INE926K01017
A44: AHLUCONT | B44: EQ | C44: 145.95 | D44: 148 | E44: 136 | F44: 146.3 | G44: 148 | H44: 144.1 | I44: 153910 | J44: 21077811.2 | K44: 2020-04-08 | L44: 995 | M44: INE758C01029
A45: AHLWEST | B45: EQ | C45: 289.9 | D45: 289.9 | E45: 270.95 | F45: 275 | G45: 275 | H45: 277 | I45: 238 | J45: 67030 | K45: 2020-04-08 | L45: 91 | M45: INE915K01010
A46: AIAENG | B46: EQ | C46: 1259.45 | D46: 1291 | E46: 1229 | F46: 1255.85 | G46: 1268 | H46: 1249.9 | I46: 73842 | J46: 92756824.05 | K46: 2020-04-08 | L46: 10503 | M46: INE212H01026
A47: AIONJSW | B47: EQ | C47: 10.9 | D47: 11.1 | E47: 10.2 | F47: 11.1 | G47: 11.1 | H47: 10.6 | I47: 90347 | J47: 996144.95 | K47: 2020-04-08 | L47: 180 | M47: INE743C01021
A48: AIRAN | B48: EQ | C48: 9.8 | D48: 10.3 | E48: 9.75 | F48: 9.8 | G48: 9.75 | H48: 9.85 | I48: 1826 | J48: 18127.1 | K48: 2020-04-08 | L48: 25 | M48: INE645W01026
A49: AJANTPHARM | B49: EQ | C49: 1325.75 | D49: 1450 | E49: 1325 | F49: 1367.5 | G49: 1363 | H49: 1340.2 | I49: 166582 | J49: 233126032.5 | K49: 2020-04-08 | L49: 8748 | M49: INE031B01049
A50: AJMERA | B50: EQ | C50: 64.95 | D50: 70.5 | E50: 64.6 | F50: 68.4 | G50: 69.9 | H50: 64.65 | I50: 31766 | J50: 2167947.5 | K50: 2020-04-08 | L50: 909 | M50: INE298G01027
A51: AKASH | B51: BE | C51: 90 | D51: 90 | E51: 90 | F51: 90 | G51: 90 | H51: 90.95 | I51: 500 | J51: 45000 | K51: 2020-04-08 | L51: 1 | M51: INE737W01013
A52: AKSHARCHEM | B52: EQ | C52: 174.75 | D52: 177.6 | E52: 165.3 | F52: 169.7 | G52: 167.15 | H52: 165.25 | I52: 3130 | J52: 531878.25 | K52: 2020-04-08 | L52: 293 | M52: INE542B01011
A53: AKSHOPTFBR | B53: EQ | C53: 3.6 | D53: 3.6 | E53: 3.6 | F53: 3.6 | G53: 3.6 | H53: 3.45 | I53: 27750 | J53: 99900 | K53: 2020-04-08 | L53: 45 | M53: INE523B01011
A54: AKZOINDIA | B54: EQ | C54: 2084.95 | D54: 2133 | E54: 2030 | F54: 2047.9 | G54: 2040 | H54: 2086.75 | I54: 12835 | J54: 26789836.95 | K54: 2020-04-08 | L54: 2242 | M54: INE133A01011
A55: ALANKIT | B55: EQ | C55: 12.9 | D55: 12.9 | E55: 12.9 | F55: 12.9 | G55: 12.9 | H55: 12.3 | I55: 14247 | J55: 183786.3 | K55: 2020-04-08 | L55: 75 | M55: INE914E01040
A56: ALBERTDAVD | B56: EQ | C56: 338.8 | D56: 364.75 | E56: 338.8 | F56: 353.15 | G56: 352 | H56: 341.15 | I56: 24334 | J56: 8579416.55 | K56: 2020-04-08 | L56: 1220 | M56: INE155C01010
A57: ALCHEM | B57: BE | C57: 1.4 | D57: 1.4 | E57: 1.4 | F57: 1.4 | G57: 1.4 | H57: 1.35 | I57: 8608 | J57: 12051.2 | K57: 2020-04-08 | L57: 18 | M57: INE964B01033
A58: ALEMBICLTD | B58: EQ | C58: 43.7 | D58: 48.05 | E58: 39.7 | F58: 45.05 | G58: 45.5 | H58: 42.15 | I58: 695128 | J58: 31779132.75 | K58: 2020-04-08 | L58: 6991 | M58: INE426A01027
A59: ALICON | B59: EQ | C59: 195.95 | D59: 196 | E59: 181.05 | F59: 184.75 | G59: 184 | H59: 189.25 | I59: 3909 | J59: 722322.5 | K59: 2020-04-08 | L59: 123 | M59: INE062D01024
A60: ALKALI | B60: EQ | C60: 29.95 | D60: 31.75 | E60: 29.65 | F60: 31.75 | G60: 31.75 | H60: 28.9 | I60: 9346 | J60: 289594.95 | K60: 2020-04-08 | L60: 349 | M60: INE773I01017
A61: ALKEM | B61: EQ | C61: 2360 | D61: 2736.5 | E61: 2326.2 | F61: 2671.15 | G61: 2639 | H61: 2324.05 | I61: 371259 | J61: 967330461.6 | K61: 2020-04-08 | L61: 44106 | M61: INE540L01014
A62: ALKYLAMINE | B62: EQ | C62: 1236.6 | D62: 1398 | E62: 1222.2 | F62: 1334.05 | G62: 1334 | H62: 1232.45 | I62: 41501 | J62: 55061848.25 | K62: 2020-04-08 | L62: 3832 | M62: INE150B01021
A63: ALLCARGO | B63: EQ | C63: 63.05 | D63: 65.85 | E63: 63 | F63: 65.7 | G63: 65.85 | H63: 59.9 | I63: 300794 | J63: 19569467.05 | K63: 2020-04-08 | L63: 3098 | M63: INE418H01029
A64: ALLSEC | B64: EQ | C64: 131.7 | D64: 131.9 | E64: 129.35 | F64: 131.9 | G64: 131.9 | H64: 125.65 | I64: 1335 | J64: 175836.2 | K64: 2020-04-08 | L64: 37 | M64: INE835G01018
A65: ALOKINDS | B65: EQ | C65: 4.7 | D65: 4.7 | E65: 4.7 | F65: 4.7 | G65: 4.7 | H65: 4.5 | I65: 1698707 | J65: 7983922.9 | K65: 2020-04-08 | L65: 397 | M65: INE270A01029
A66: ALPA | B66: EQ | C66: 18.55 | D66: 20.15 | E66: 17.8 | F66: 20.15 | G66: 20.15 | H66: 16.8 | I66: 131233 | J66: 2593665.9 | K66: 2020-04-08 | L66: 858 | M66: INE385I01010
A67: ALPHAGEO | B67: EQ | C67: 126 | D67: 137.5 | E67: 126 | F67: 134.45 | G67: 133.3 | H67: 129.7 | I67: 22258 | J67: 2986986.5 | K67: 2020-04-08 | L67: 783 | M67: INE137C01018
A68: ALPSINDUS | B68: EQ | C68: 0.65 | D68: 0.75 | E68: 0.65 | F68: 0.75 | G68: 0.7 | H68: 0.7 | I68: 25369 | J68: 18108.8 | K68: 2020-04-08 | L68: 33 | M68: INE093B01015
A69: AMARAJABAT | B69: EQ | C69: 501.1 | D69: 513.65 | E69: 488.45 | F69: 502.05 | G69: 504.9 | H69: 501.1 | I69: 755312 | J69: 378881689.9 | K69: 2020-04-08 | L69: 18162 | M69: INE885A01032
A70: AMBER | B70: EQ | C70: 1189.9 | D70: 1199 | E70: 1072 | F70: 1108.05 | G70: 1109.25 | H70: 1189.9 | I70: 93512 | J70: 105805912.2 | K70: 2020-04-08 | L70: 14252 | M70: INE371P01015
A71: AMBIKCO | B71: EQ | C71: 539.25 | D71: 559 | E71: 531.05 | F71: 545.2 | G71: 536.4 | H71: 537.25 | I71: 3988 | J71: 2168349.4 | K71: 2020-04-08 | L71: 406 | M71: INE540G01014
A72: AMBUJACEM | B72: EQ | C72: 158.5 | D72: 159.5 | E72: 148.2 | F72: 149.7 | G72: 149.55 | H72: 159 | I72: 10421438 | J72: 1597618498 | K72: 2020-04-08 | L72: 84074 | M72: INE079A01024
A73: AMDIND | B73: EQ | C73: 9.9 | D73: 10.5 | E73: 9.5 | F73: 9.8 | G73: 9.55 | H73: 10 | I73: 17757 | J73: 177659.15 | K73: 2020-04-08 | L73: 707 | M73: INE005I01014
A74: AMJLAND | B74: EQ | C74: 14.3 | D74: 14.95 | E74: 13.7 | F74: 14 | G74: 14 | H74: 14.25 | I74: 12523 | J74: 176065.3 | K74: 2020-04-08 | L74: 106 | M74: INE606A01024
A75: AMRUTANJAN | B75: EQ | C75: 326 | D75: 352 | E75: 320.1 | F75: 345.45 | G75: 344.3 | H75: 324 | I75: 278725 | J75: 95586275.35 | K75: 2020-04-08 | L75: 9075 | M75: INE098F01031
A76: ANANTRAJ | B76: EQ | C76: 19.55 | D76: 20.15 | E76: 18.6 | F76: 18.75 | G76: 18.8 | H76: 19.55 | I76: 184694 | J76: 3509270.8 | K76: 2020-04-08 | L76: 1012 | M76: INE242C01024
A77: ANDHRACEMT | B77: EQ | C77: 1.8 | D77: 1.9 | E77: 1.7 | F77: 1.85 | G77: 1.9 | H77: 1.75 | I77: 105618 | J77: 196578.05 | K77: 2020-04-08 | L77: 227 | M77: INE666E01012
A78: ANDHRAPAP | B78: EQ | C78: 148.55 | D78: 148.55 | E78: 147 | F78: 148.55 | G78: 148.55 | H78: 141.5 | I78: 2622 | J78: 389210.05 | K78: 2020-04-08 | L78: 70 | M78: INE435A01028
A79: ANDHRSUGAR | B79: EQ | C79: 206.95 | D79: 212 | E79: 195 | F79: 206.05 | G79: 205.85 | H79: 203.55 | I79: 35494 | J79: 7286675.25 | K79: 2020-04-08 | L79: 1328 | M79: INE715B01013
A80: ANIKINDS | B80: EQ | C80: 7.25 | D80: 7.25 | E80: 6.65 | F80: 6.8 | G80: 6.8 | H80: 6.95 | I80: 4994 | J80: 34701.65 | K80: 2020-04-08 | L80: 35 | M80: INE087B01017
A81: ANKITMETAL | B81: EQ | C81: 0.4 | D81: 0.45 | E81: 0.35 | F81: 0.45 | G81: 0.45 | H81: 0.4 | I81: 64810 | J81: 27213.05 | K81: 2020-04-08 | L81: 29 | M81: INE106I01010
A82: ANSALAPI | B82: EQ | C82: 3.65 | D82: 3.8 | E82: 3.65 | F82: 3.8 | G82: 3.8 | H82: 3.65 | I82: 3974 | J82: 15023.75 | K82: 2020-04-08 | L82: 28 | M82: INE436A01026
A83: ANSALHSG | B83: EQ | C83: 3 | D83: 3 | E83: 2.8 | F83: 2.9 | G83: 2.9 | H83: 2.9 | I83: 31510 | J83: 91846.6 | K83: 2020-04-08 | L83: 64 | M83: INE880B01015
A84: ANUP | B84: EQ | C84: 304.75 | D84: 323.7 | E84: 303.1 | F84: 313.2 | G84: 313.05 | H84: 312.75 | I84: 11786 | J84: 3732090.6 | K84: 2020-04-08 | L84: 460 | M84: INE294Z01018
A85: APARINDS | B85: EQ | C85: 296.95 | D85: 300.35 | E85: 290.6 | F85: 295.85 | G85: 295.5 | H85: 296.05 | I85: 6051 | J85: 1806443.45 | K85: 2020-04-08 | L85: 427 | M85: INE372A01015
A86: APCL | B86: EQ | C86: 102.4 | D86: 102.4 | E86: 95.2 | F86: 97.35 | G86: 97 | H86: 98.5 | I86: 3739 | J86: 362867.6 | K86: 2020-04-08 | L86: 79 | M86: INE071F01012
A87: APCOTEXIND | B87: EQ | C87: 87.55 | D87: 94.85 | E87: 86 | F87: 87.5 | G87: 86.1 | H87: 87.45 | I87: 13115 | J87: 1175575.25 | K87: 2020-04-08 | L87: 323 | M87: INE116A01032
A88: APEX | B88: EQ | C88: 190 | D88: 201.65 | E88: 185.1 | F88: 201.65 | G88: 201.65 | H88: 183.35 | I88: 141806 | J88: 27768799.35 | K88: 2020-04-08 | L88: 3293 | M88: INE346W01013
A89: APLAPOLLO | B89: EQ | C89: 1245 | D89: 1274 | E89: 1220 | F89: 1259.5 | G89: 1258 | H89: 1231.75 | I89: 21152 | J89: 26442272.1 | K89: 2020-04-08 | L89: 3032 | M89: INE702C01019
A90: APLLTD | B90: EQ | C90: 630 | D90: 702.65 | E90: 615.5 | F90: 640.85 | G90: 626 | H90: 610.2 | I90: 540272 | J90: 353935242.1 | K90: 2020-04-08 | L90: 30323 | M90: INE901L01018
A91: APOLLO | B91: EQ | C91: 45.5 | D91: 56 | E91: 45.25 | F91: 54.3 | G91: 53.55 | H91: 46.7 | I91: 68951 | J91: 3631629.4 | K91: 2020-04-08 | L91: 1694 | M91: INE713T01010
A92: APOLLOHOSP | B92: EQ | C92: 1225.9 | D92: 1338.4 | E92: 1211 | F92: 1263.95 | G92: 1261 | H92: 1225.95 | I92: 2070270 | J92: 2654141027 | K92: 2020-04-08 | L92: 156926 | M92: INE437A01024
A93: APOLLOPIPE | B93: EQ | C93: 279.5 | D93: 304 | E93: 262.95 | F93: 281.3 | G93: 281 | H93: 280.1 | I93: 12940 | J93: 3607793.25 | K93: 2020-04-08 | L93: 543 | M93: INE126J01016
A94: APOLLOTYRE | B94: EQ | C94: 83.5 | D94: 87.15 | E94: 82 | F94: 83.4 | G94: 83.15 | H94: 83.5 | I94: 2950752 | J94: 248872037.1 | K94: 2020-04-08 | L94: 19408 | M94: INE438A01022
A95: APOLSINHOT | B95: EQ | C95: 460.35 | D95: 460.4 | E95: 421.1 | F95: 439.8 | G95: 436 | H95: 438.6 | I95: 694 | J95: 306874.65 | K95: 2020-04-08 | L95: 84 | M95: INE451F01024
A96: APTECHT | B96: EQ | C96: 85.3 | D96: 87.7 | E96: 83.55 | F96: 84.6 | G96: 84.3 | H96: 85.3 | I96: 106721 | J96: 9133416.7 | K96: 2020-04-08 | L96: 2385 | M96: INE266F01018
A97: ARCHIDPLY | B97: EQ | C97: 16.55 | D97: 17 | E97: 16.45 | F97: 16.85 | G97: 16.95 | H97: 16.75 | I97: 4083 | J97: 68300.2 | K97: 2020-04-08 | L97: 63 | M97: INE877I01016
A98: ARCHIES | B98: EQ | C98: 9.4 | D98: 9.5 | E98: 9 | F98: 9.05 | G98: 9.15 | H98: 9.45 | I98: 24343 | J98: 224667.6 | K98: 2020-04-08 | L98: 150 | M98: INE731A01020
A99: ARCOTECH | B99: EQ | C99: 0.9 | D99: 0.95 | E99: 0.85 | F99: 0.9 | G99: 0.9 | H99: 0.9 | I99: 51482 | J99: 47500.05 | K99: 2020-04-08 | L99: 77 | M99: INE574I01035
A100: ARENTERP | B100: EQ | C100: 12.65 | D100: 12.65 | E100: 12.05 | F100: 12.05 | G100: 12.05 | H100: 12.65 | I100: 63 | J100: 765.15 | K100: 2020-04-08 | L100: 4 | M100: INE610C01014
A101: ARIES | B101: EQ | C101: 44.4 | D101: 47.6 | E101: 42.65 | F101: 43.6 | G101: 44 | H101: 44.4 | I101: 50875 | J101: 2250478.25 | K101: 2020-04-08 | L101: 1080 | M101: INE298I01015
A102: ARIHANT | B102: EQ | C102: 12.05 | D102: 12.55 | E102: 11.6 | F102: 12.15 | G102: 12.5 | H102: 12.05 | I102: 964 | J102: 11418.15 | K102: 2020-04-08 | L102: 27 | M102: INE413D01011
A103: ARIHANTSUP | B103: EQ | C103: 21.4 | D103: 21.45 | E103: 19.45 | F103: 19.5 | G103: 21 | H103: 20.45 | I103: 4362 | J103: 85414.05 | K103: 2020-04-08 | L103: 80 | M103: INE643K01018
A104: ARMANFIN | B104: EQ | C104: 340 | D104: 373.2 | E104: 337.7 | F104: 373.05 | G104: 373.2 | H104: 355.45 | I104: 50867 | J104: 18465582.65 | K104: 2020-04-08 | L104: 911 | M104: INE109C01017
A105: AROGRANITE | B105: EQ | C105: 21.95 | D105: 24.5 | E105: 20.85 | F105: 24.2 | G105: 24.5 | H105: 22.35 | I105: 26052 | J105: 602565.3 | K105: 2020-04-08 | L105: 183 | M105: INE210C01013
A106: ARROWGREEN | B106: BE | C106: 33.55 | D106: 35 | E106: 33.45 | F106: 33.45 | G106: 33.45 | H106: 33.85 | I106: 5735 | J106: 195198.5 | K106: 2020-04-08 | L106: 32 | M106: INE570D01018
A107: ARSHIYA | B107: EQ | C107: 7.1 | D107: 7.6 | E107: 7.1 | F107: 7.6 | G107: 7.6 | H107: 7.25 | I107: 23178 | J107: 175819.45 | K107: 2020-04-08 | L107: 63 | M107: INE968D01022
A108: ARSSINFRA | B108: EQ | C108: 11.25 | D108: 12.3 | E108: 10.9 | F108: 11.8 | G108: 11.85 | H108: 11.15 | I108: 16388 | J108: 189874.85 | K108: 2020-04-08 | L108: 107 | M108: INE267I01010
A109: ARTEMISMED | B109: EQ | C109: 140 | D109: 147 | E109: 136.3 | F109: 138 | G109: 137 | H109: 139.15 | I109: 1729 | J109: 245138.4 | K109: 2020-04-08 | L109: 31 | M109: INE025R01013
A110: ARVIND | B110: EQ | C110: 23.5 | D110: 24.4 | E110: 22.45 | F110: 23.75 | G110: 23.75 | H110: 22.2 | I110: 2137547 | J110: 50521243.45 | K110: 2020-04-08 | L110: 7057 | M110: INE034A01011
A111: ARVINDFASN | B111: EQ | C111: 139.8 | D111: 141.9 | E111: 132.2 | F111: 133.8 | G111: 134.75 | H111: 139.85 | I111: 46445 | J111: 6387304.5 | K111: 2020-04-08 | L111: 1243 | M111: INE955V01021
A112: ARVSMART | B112: EQ | C112: 64.05 | D112: 67 | E112: 64 | F112: 65.4 | G112: 65.5 | H112: 65 | I112: 10000 | J112: 656036.65 | K112: 2020-04-08 | L112: 320 | M112: INE034S01021
A113: ASAHIINDIA | B113: EQ | C113: 152 | D113: 158 | E113: 147.05 | F113: 155.5 | G113: 152.35 | H113: 153.2 | I113: 5605 | J113: 858978.65 | K113: 2020-04-08 | L113: 218 | M113: INE439A01020
A114: ASAHISONG | B114: EQ | C114: 80.8 | D114: 88.95 | E114: 80.05 | F114: 85.25 | G114: 86 | H114: 80.9 | I114: 8055 | J114: 692533.2 | K114: 2020-04-08 | L114: 314 | M114: INE228I01012
A115: ASAL | B115: EQ | C115: 14.8 | D115: 14.9 | E115: 14.5 | F115: 14.5 | G115: 14.5 | H115: 14.25 | I115: 8037 | J115: 118819.3 | K115: 2020-04-08 | L115: 36 | M115: INE900C01027
A116: ASALCBR | B116: EQ | C116: 164.9 | D116: 175 | E116: 158 | F116: 165.7 | G116: 165 | H116: 162.9 | I116: 31033 | J116: 5116102.05 | K116: 2020-04-08 | L116: 970 | M116: INE073G01016
A117: ASHAPURMIN | B117: EQ | C117: 22.1 | D117: 22.1 | E117: 22.05 | F117: 22.1 | G117: 22.1 | H117: 21.05 | I117: 8770 | J117: 193792 | K117: 2020-04-08 | L117: 43 | M117: INE348A01023
A118: ASHIANA | B118: EQ | C118: 52.9 | D118: 52.9 | E118: 49.1 | F118: 49.95 | G118: 50 | H118: 50 | I118: 69042 | J118: 3480534.3 | K118: 2020-04-08 | L118: 621 | M118: INE365D01021
A119: ASHIMASYN | B119: EQ | C119: 3.9 | D119: 3.9 | E119: 3.9 | F119: 3.9 | G119: 3.9 | H119: 3.55 | I119: 28914 | J119: 112764.6 | K119: 2020-04-08 | L119: 46 | M119: INE440A01010
A120: ASHOKA | B120: EQ | C120: 38.35 | D120: 42.7 | E120: 37.8 | F120: 42.7 | G120: 42.7 | H120: 38.85 | I120: 1577514 | J120: 65134101.3 | K120: 2020-04-08 | L120: 8475 | M120: INE442H01029
A121: ASHOKLEY | B121: EQ | C121: 39.85 | D121: 47.8 | E121: 38.75 | F121: 43.85 | G121: 43.6 | H121: 39.85 | I121: 76817768 | J121: 3355417806 | K121: 2020-04-08 | L121: 169889 | M121: INE208A01029
A122: ASIANHOTNR | B122: EQ | C122: 70 | D122: 71.8 | E122: 66 | F122: 71.55 | G122: 71.5 | H122: 65.4 | I122: 4982 | J122: 349215.55 | K122: 2020-04-08 | L122: 198 | M122: INE363A01022
A123: ASIANPAINT | B123: EQ | C123: 1623.8 | D123: 1687.8 | E123: 1600 | F123: 1608.95 | G123: 1608 | H123: 1623.8 | I123: 2382216 | J123: 3911658954 | K123: 2020-04-08 | L123: 101146 | M123: INE021A01026
A124: ASIANTILES | B124: EQ | C124: 156 | D124: 162.9 | E124: 155 | F124: 157.6 | G124: 156.5 | H124: 157.65 | I124: 19917 | J124: 3151924.4 | K124: 2020-04-08 | L124: 431 | M124: INE022I01019
A125: ASPINWALL | B125: EQ | C125: 93 | D125: 98.7 | E125: 83.55 | F125: 93 | G125: 93 | H125: 90 | I125: 413 | J125: 38837.15 | K125: 2020-04-08 | L125: 20 | M125: INE991I01015
A126: ASTEC | B126: EQ | C126: 450.65 | D126: 465.05 | E126: 440 | F126: 460.05 | G126: 460.3 | H126: 443.9 | I126: 5283 | J126: 2392645.5 | K126: 2020-04-08 | L126: 494 | M126: INE563J01010
A127: ASTERDM | B127: EQ | C127: 96 | D127: 103.5 | E127: 93.8 | F127: 99.25 | G127: 99 | H127: 94.55 | I127: 996205 | J127: 98978623.7 | K127: 2020-04-08 | L127: 4570 | M127: INE914M01019
A128: ASTRAL | B128: EQ | C128: 962 | D128: 986 | E128: 952 | F128: 955.45 | G128: 954 | H128: 973.85 | I128: 59212 | J128: 57381672.65 | K128: 2020-04-08 | L128: 7623 | M128: INE006I01046
A129: ASTRAMICRO | B129: EQ | C129: 56.9 | D129: 62.55 | E129: 55.85 | F129: 61.7 | G129: 62.55 | H129: 56.9 | I129: 253097 | J129: 15146656.55 | K129: 2020-04-08 | L129: 1961 | M129: INE386C01029
A130: ASTRAZEN | B130: EQ | C130: 2700 | D130: 2830 | E130: 2544 | F130: 2561.6 | G130: 2549 | H130: 2693.65 | I130: 38510 | J130: 104113109 | K130: 2020-04-08 | L130: 6647 | M130: INE203A01020
A131: ASTRON | B131: EQ | C131: 26.15 | D131: 29.9 | E131: 25.3 | F131: 27.5 | G131: 27.8 | H131: 27.65 | I131: 61618 | J131: 1693449.45 | K131: 2020-04-08 | L131: 1743 | M131: INE646X01014
A132: ATFL | B132: EQ | C132: 479.65 | D132: 499 | E132: 475 | F132: 481.55 | G132: 475 | H132: 479.65 | I132: 6104 | J132: 2975754.9 | K132: 2020-04-08 | L132: 411 | M132: INE209A01019
A133: ATLANTA | B133: EQ | C133: 3 | D133: 3.15 | E133: 3 | F133: 3.15 | G133: 3.15 | H133: 3 | I133: 8624 | J133: 26936.35 | K133: 2020-04-08 | L133: 28 | M133: INE285H01022
A134: ATLASCYCLE | B134: BE | C134: 30 | D134: 31.5 | E134: 29.5 | F134: 30.7 | G134: 30.7 | H134: 30 | I134: 2000 | J134: 60118.65 | K134: 2020-04-08 | L134: 42 | M134: INE446A01025
A135: ATNINTER | B135: BE | C135: 0.1 | D135: 0.1 | E135: 0.1 | F135: 0.1 | G135: 0.1 | H135: 0.1 | I135: 12716 | J135: 1271.6 | K135: 2020-04-08 | L135: 5 | M135: INE803A01027
A136: ATUL | B136: EQ | C136: 3930 | D136: 4005 | E136: 3908.35 | F136: 3951.85 | G136: 3954.95 | H136: 3927.1 | I136: 76768 | J136: 304824820.4 | K136: 2020-04-08 | L136: 11635 | M136: INE100A01010
A137: ATULAUTO | B137: EQ | C137: 151.35 | D137: 154.05 | E137: 146.8 | F137: 153.45 | G137: 153.95 | H137: 146.75 | I137: 13699 | J137: 2093863.3 | K137: 2020-04-08 | L137: 810 | M137: INE951D01028
A138: AUBANK | B138: EQ | C138: 461.2 | D138: 490 | E138: 457 | F138: 480.3 | G138: 473 | H138: 478.4 | I138: 1791057 | J138: 837589012.6 | K138: 2020-04-08 | L138: 59410 | M138: INE949L01017
A139: AURIONPRO | B139: EQ | C139: 41.75 | D139: 43.7 | E139: 40 | F139: 42.9 | G139: 42.9 | H139: 40.95 | I139: 8828 | J139: 376649.05 | K139: 2020-04-08 | L139: 213 | M139: INE132H01018
A140: AUROPHARMA | B140: EQ | C140: 432.5 | D140: 476.3 | E140: 426.3 | F140: 438.15 | G140: 438.9 | H140: 445.7 | I140: 13186213 | J140: 5925576015 | K140: 2020-04-08 | L140: 205238 | M140: INE406A01037
A141: AUSOMENT | B141: EQ | C141: 26.1 | D141: 26.1 | E141: 26.1 | F141: 26.1 | G141: 26.1 | H141: 25 | I141: 100 | J141: 2610 | K141: 2020-04-08 | L141: 1 | M141: INE218C01016
A142: AUTOAXLES | B142: EQ | C142: 413 | D142: 423.5 | E142: 398.05 | F142: 413.45 | G142: 416 | H142: 399.3 | I142: 5448 | J142: 2244823.45 | K142: 2020-04-08 | L142: 638 | M142: INE449A01011
A143: AUTOIND | B143: EQ | C143: 11.3 | D143: 11.35 | E143: 11.1 | F143: 11.35 | G143: 11.35 | H143: 10.85 | I143: 9358 | J143: 105383.05 | K143: 2020-04-08 | L143: 68 | M143: INE718H01014
A144: AUTOLITIND | B144: EQ | C144: 13.2 | D144: 14.4 | E144: 13.2 | F144: 13.8 | G144: 13.9 | H144: 13.75 | I144: 4699 | J144: 65525.8 | K144: 2020-04-08 | L144: 68 | M144: INE448A01013
A145: AVADHSUGAR | B145: EQ | C145: 143.55 | D145: 143.55 | E145: 143.55 | F145: 143.55 | G145: 143.55 | H145: 136.75 | I145: 13174 | J145: 1891127.7 | K145: 2020-04-08 | L145: 157 | M145: INE349W01017
A146: AVANTIFEED | B146: EQ | C146: 311 | D146: 341.55 | E146: 310.5 | F146: 341.35 | G146: 341.55 | H146: 310.5 | I146: 748404 | J146: 246839085.1 | K146: 2020-04-08 | L146: 23272 | M146: INE871C01038
A147: AVTNPL | B147: EQ | C147: 25.45 | D147: 27.8 | E147: 24.25 | F147: 27.25 | G147: 27 | H147: 25.05 | I147: 213540 | J147: 5643644.4 | K147: 2020-04-08 | L147: 1601 | M147: INE488D01021
A148: AXISBANK | B148: EQ | C148: 383.75 | D148: 427.7 | E148: 373.5 | F148: 391.35 | G148: 391.4 | H148: 388.85 | I148: 64930772 | J148: 2.575974593e+10 | K148: 2020-04-08 | L148: 769506 | M148: INE238A01034
A149: AXISCADES | B149: EQ | C149: 30.9 | D149: 31.5 | E149: 28.65 | F149: 31.4 | G149: 31.5 | H149: 30 | I149: 39670 | J149: 1232336.75 | K149: 2020-04-08 | L149: 621 | M149: INE555B01013
A150: AXISGOLD | B150: EQ | C150: 3969.9 | D150: 3989 | E150: 3925 | F150: 3973.3 | G150: 3983 | H150: 3919.55 | I150: 701 | J150: 2769851.6 | K150: 2020-04-08 | L150: 206 | M150: INF846K01347
A151: AXISNIFTY | B151: EQ | C151: 1000.01 | D151: 1000.01 | E151: 1000.01 | F151: 1000.01 | G151: 1000.01 | H151: 1007 | I151: 2 | J151: 2000.02 | K151: 2020-04-08 | L151: 1 | M151: INF846K01ZL0
A152: AYMSYNTEX | B152: EQ | C152: 15.5 | D152: 16.8 | E152: 15.5 | F152: 16.5 | G152: 16.5 | H152: 16.1 | I152: 2637 | J152: 43548.55 | K152: 2020-04-08 | L152: 26 | M152: INE193B01039
A153: BAFNAPH | B153: EQ | C153: 16.05 | D153: 16.05 | E153: 16.05 | F153: 16.05 | G153: 16.05 | H153: 15.3 | I153: 272 | J153: 4365.6 | K153: 2020-04-08 | L153: 8 | M153: INE878I01022
A154: BAGFILMS | B154: BE | C154: 1.75 | D154: 1.8 | E154: 1.75 | F154: 1.8 | G154: 1.8 | H154: 1.75 | I154: 3861 | J154: 6912.3 | K154: 2020-04-08 | L154: 20 | M154: INE116D01028
A155: BAJAJ-AUTO | B155: EQ | C155: 2180 | D155: 2383.45 | E155: 2168.55 | F155: 2241.7 | G155: 2260 | H155: 2280.05 | I155: 840875 | J155: 1933266167 | K155: 2020-04-08 | L155: 59866 | M155: INE917I01010
A156: BAJAJCON | B156: EQ | C156: 136 | D156: 148.65 | E156: 135.1 | F156: 137.95 | G156: 138 | H156: 138.15 | I156: 1031633 | J156: 145711259.1 | K156: 2020-04-08 | L156: 26102 | M156: INE933K01021
A157: BAJAJELEC | B157: EQ | C157: 277.3 | D157: 294.5 | E157: 277.3 | F157: 287.8 | G157: 289 | H157: 277.3 | I157: 58251 | J157: 16797537.55 | K157: 2020-04-08 | L157: 3821 | M157: INE193E01025
A158: BAJAJFINSV | B158: EQ | C158: 4575 | D158: 4950 | E158: 4537.8 | F158: 4608.5 | G158: 4604 | H158: 4724.9 | I158: 1113057 | J158: 5259493342 | K158: 2020-04-08 | L158: 158158 | M158: INE918I01018
A159: BAJAJHIND | B159: EQ | C159: 3.05 | D159: 3.05 | E159: 3.05 | F159: 3.05 | G159: 3.05 | H159: 2.95 | I159: 80900 | J159: 246745 | K159: 2020-04-08 | L159: 110 | M159: INE306A01021
A160: BAJAJHLDNG | B160: EQ | C160: 2027.95 | D160: 2073.85 | E160: 1925 | F160: 2024.75 | G160: 2025 | H160: 1978.9 | I160: 25453 | J160: 51363834.45 | K160: 2020-04-08 | L160: 6198 | M160: INE118A01012
A161: BAJFINANCE | B161: EQ | C161: 2184 | D161: 2374 | E161: 2144.15 | F161: 2332.9 | G161: 2329 | H161: 2253.35 | I161: 9109346 | J161: 2.088826331e+10 | K161: 2020-04-08 | L161: 516967 | M161: INE296A01024
A162: BALAJITELE | B162: EQ | C162: 43 | D162: 45 | E162: 40.8 | F162: 41.9 | G162: 42.15 | H162: 43.75 | I162: 194912 | J162: 8414452.4 | K162: 2020-04-08 | L162: 1677 | M162: INE794B01026
A163: BALAMINES | B163: EQ | C163: 277 | D163: 296 | E163: 260.4 | F163: 283.65 | G163: 284.45 | H163: 271.2 | I163: 70594 | J163: 20058887.5 | K163: 2020-04-08 | L163: 2337 | M163: INE050E01027
A164: BALAXI | B164: BE | C164: 82.7 | D164: 82.7 | E164: 75.05 | F164: 79.9 | G164: 79.9 | H164: 79 | I164: 1047 | J164: 78761.9 | K164: 2020-04-08 | L164: 24 | M164: INE618N01014
A165: BALKRISHNA | B165: EQ | C165: 8.6 | D165: 8.8 | E165: 8.35 | F165: 8.8 | G165: 8.8 | H165: 8.4 | I165: 7860 | J165: 67624.35 | K165: 2020-04-08 | L165: 49 | M165: INE875R01011
A166: BALKRISIND | B166: EQ | C166: 822 | D166: 862 | E166: 815 | F166: 821.35 | G166: 818.3 | H166: 823.55 | I166: 444079 | J166: 371870250.3 | K166: 2020-04-08 | L166: 24462 | M166: INE787D01026
A167: BALLARPUR | B167: EQ | C167: 0.4 | D167: 0.4 | E167: 0.3 | F167: 0.35 | G167: 0.35 | H167: 0.35 | I167: 9769871 | J167: 3419941.15 | K167: 2020-04-08 | L167: 514 | M167: INE294A01037
A168: BALMLAWRIE | B168: EQ | C168: 84 | D168: 87.9 | E168: 81 | F168: 84.75 | G168: 85.65 | H168: 85.5 | I168: 202053 | J168: 17357055.25 | K168: 2020-04-08 | L168: 3105 | M168: INE164A01016
A169: BALPHARMA | B169: EQ | C169: 38.9 | D169: 41.7 | E169: 38.9 | F169: 41.7 | G169: 41.7 | H169: 37.95 | I169: 40933 | J169: 1688199.5 | K169: 2020-04-08 | L169: 518 | M169: INE083D01012
A170: BALRAMCHIN | B170: EQ | C170: 123.85 | D170: 126.4 | E170: 123 | F170: 126.4 | G170: 126.4 | H170: 120.4 | I170: 642515 | J170: 80884980.2 | K170: 2020-04-08 | L170: 7125 | M170: INE119A01028
A171: BANARBEADS | B171: EQ | C171: 30.25 | D171: 32.5 | E171: 29.6 | F171: 29.75 | G171: 29.75 | H171: 31.5 | I171: 160 | J171: 4873.85 | K171: 2020-04-08 | L171: 26 | M171: INE655B01011
A172: BANARISUG | B172: EQ | C172: 900 | D172: 925 | E172: 880 | F172: 886.1 | G172: 880 | H172: 893.1 | I172: 410 | J172: 368979.1 | K172: 2020-04-08 | L172: 94 | M172: INE459A01010
A173: BANCOINDIA | B173: EQ | C173: 65.45 | D173: 67.5 | E173: 64.1 | F173: 65.95 | G173: 66 | H173: 65.45 | I173: 40062 | J173: 2654130.6 | K173: 2020-04-08 | L173: 1013 | M173: INE213C01025
A174: BANDHANBNK | B174: EQ | C174: 167.95 | D174: 209.05 | E174: 167.5 | F174: 193.75 | G174: 195.25 | H174: 167.25 | I174: 30692919 | J174: 5833285762 | K174: 2020-04-08 | L174: 332020 | M174: INE545U01014
A175: BANG | B175: EQ | C175: 12.05 | D175: 13.1 | E175: 11.9 | F175: 13.1 | G175: 13.1 | H175: 12.5 | I175: 1590 | J175: 20489 | K175: 2020-04-08 | L175: 31 | M175: INE863I01016
A176: BANKBARODA | B176: EQ | C176: 48 | D176: 51.5 | E176: 47.3 | F176: 48.35 | G176: 48.45 | H176: 48.15 | I176: 27159204 | J176: 1340103716 | K176: 2020-04-08 | L176: 77070 | M176: INE028A01039
A177: BANKBEES | B177: EQ | C177: 190 | D177: 205.4 | E177: 186.06 | F177: 191.28 | G177: 191.4 | H177: 192.12 | I177: 676832 | J177: 131368353.2 | K177: 2020-04-08 | L177: 10023 | M177: INF204KB15I9
A178: BANKINDIA | B178: EQ | C178: 32.7 | D178: 34.75 | E178: 32.5 | F178: 33.35 | G178: 33.25 | H178: 32.95 | I178: 1236627 | J178: 41574499.75 | K178: 2020-04-08 | L178: 6257 | M178: INE084A01016
A179: BANSWRAS | B179: EQ | C179: 77.4 | D179: 77.4 | E179: 70.2 | F179: 71.15 | G179: 70.2 | H179: 73.75 | I179: 22922 | J179: 1667255.55 | K179: 2020-04-08 | L179: 137 | M179: INE629D01012
A180: BASF | B180: EQ | C180: 1154 | D180: 1154 | E180: 1105 | F180: 1119.95 | G180: 1120.5 | H180: 1138.25 | I180: 26139 | J180: 29425244.35 | K180: 2020-04-08 | L180: 2640 | M180: INE373A01013
A181: BASML | B181: EQ | C181: 74.05 | D181: 84 | E181: 74.05 | F181: 80 | G181: 80 | H181: 78.7 | I181: 1648 | J181: 135366.45 | K181: 2020-04-08 | L181: 154 | M181: INE186H01014
A182: BATAINDIA | B182: EQ | C182: 1246.5 | D182: 1339 | E182: 1228 | F182: 1240.05 | G182: 1238.95 | H182: 1246.4 | I182: 1346088 | J182: 1726485633 | K182: 2020-04-08 | L182: 66274 | M182: INE176A01028
A183: BAYERCROP | B183: EQ | C183: 3500 | D183: 3946.6 | E183: 3499.3 | F183: 3818.15 | G183: 3772.15 | H183: 3510 | I183: 32833 | J183: 125437264 | K183: 2020-04-08 | L183: 6737 | M183: INE462A01022
A184: BBL | B184: EQ | C184: 590 | D184: 621.25 | E184: 590 | F184: 613.05 | G184: 621.25 | H184: 589.55 | I184: 9335 | J184: 5684085.45 | K184: 2020-04-08 | L184: 804 | M184: INE464A01028
A185: BBTC | B185: EQ | C185: 810 | D185: 854.3 | E185: 774 | F185: 784.2 | G185: 787.95 | H185: 788.4 | I185: 76612 | J185: 62014517.65 | K185: 2020-04-08 | L185: 5281 | M185: INE050A01025
A186: BCG | B186: EQ | C186: 3.6 | D186: 3.65 | E186: 3.55 | F186: 3.65 | G186: 3.65 | H186: 3.5 | I186: 305718 | J186: 1113234.95 | K186: 2020-04-08 | L186: 149 | M186: INE425B01027
A187: BCP | B187: EQ | C187: 10.75 | D187: 10.75 | E187: 10.5 | F187: 10.75 | G187: 10.75 | H187: 10.25 | I187: 8192 | J187: 87934.6 | K187: 2020-04-08 | L187: 28 | M187: INE905P01028
A188: BDL | B188: EQ | C188: 191 | D188: 229 | E188: 188.2 | F188: 218.2 | G188: 216.4 | H188: 191.4 | I188: 448405 | J188: 97968192.25 | K188: 2020-04-08 | L188: 13672 | M188: INE171Z01018
A189: BEARDSELL | B189: EQ | C189: 6.7 | D189: 7.3 | E189: 6.7 | F189: 7.3 | G189: 7.3 | H189: 7.05 | I189: 1250 | J189: 8417 | K189: 2020-04-08 | L189: 4 | M189: INE520H01022
A190: BEDMUTHA | B190: EQ | C190: 12.8 | D190: 13.05 | E190: 12.45 | F190: 12.45 | G190: 12.45 | H190: 13.1 | I190: 19584 | J190: 245429.15 | K190: 2020-04-08 | L190: 32 | M190: INE844K01012
A191: BEL | B191: EQ | C191: 69 | D191: 71.3 | E191: 65.1 | F191: 66.4 | G191: 66.5 | H191: 69 | I191: 16699885 | J191: 1138705070 | K191: 2020-04-08 | L191: 69587 | M191: INE263A01024
A192: BEML | B192: EQ | C192: 492 | D192: 523.5 | E192: 492 | F192: 503.6 | G192: 503 | H192: 475.95 | I192: 890527 | J192: 458689246.6 | K192: 2020-04-08 | L192: 23670 | M192: INE258A01016
A193: BEPL | B193: EQ | C193: 31 | D193: 32.75 | E193: 30.3 | F193: 31.25 | G193: 31.6 | H193: 30.25 | I193: 333595 | J193: 10578641.1 | K193: 2020-04-08 | L193: 3321 | M193: INE922A01025
A194: BERGEPAINT | B194: EQ | C194: 479.9 | D194: 487.65 | E194: 460 | F194: 463.5 | G194: 462 | H194: 479.2 | I194: 1729062 | J194: 817908730.6 | K194: 2020-04-08 | L194: 32950 | M194: INE463A01038
A195: BFINVEST | B195: EQ | C195: 258 | D195: 268.8 | E195: 244.6 | F195: 246.3 | G195: 248.95 | H195: 257.45 | I195: 4938 | J195: 1236639.95 | K195: 2020-04-08 | L195: 244 | M195: INE878K01010
A196: BFUTILITIE | B196: EQ | C196: 158.35 | D196: 158.35 | E196: 151.05 | F196: 154.05 | G196: 153.7 | H196: 150.85 | I196: 138134 | J196: 21700813.75 | K196: 2020-04-08 | L196: 1649 | M196: INE243D01012
A197: BGRENERGY | B197: EQ | C197: 22.1 | D197: 22.85 | E197: 20.95 | F197: 21.1 | G197: 21.15 | H197: 22.2 | I197: 172282 | J197: 3763089.75 | K197: 2020-04-08 | L197: 1108 | M197: INE661I01014
A198: BHAGERIA | B198: EQ | C198: 85 | D198: 91.05 | E198: 80.65 | F198: 81.6 | G198: 82.3 | H198: 84.2 | I198: 34795 | J198: 2944870.7 | K198: 2020-04-08 | L198: 925 | M198: INE354C01027
A199: BHAGYANGR | B199: EQ | C199: 14.05 | D199: 15.2 | E199: 14 | F199: 14.4 | G199: 14.4 | H199: 14.4 | I199: 1338 | J199: 19622.25 | K199: 2020-04-08 | L199: 50 | M199: INE458B01036
A200: BHAGYAPROP | B200: EQ | C200: 18 | D200: 20 | E200: 18 | F200: 20 | G200: 20 | H200: 19 | I200: 999 | J200: 19011 | K200: 2020-04-08 | L200: 5 | M200: INE363W01018
... 1470 more rows

Sheet Sheet1 (hidden)

Sheet Sheet3 (hidden)

Sheet Sheet4 (hidden)

Sheet Sheet5 (hidden)
